Body Name,Body,Service Label,Service Code,CIPFA Detailed Expenditure Type,CIPFA Detailed Expenditure Code,Date,Transaction Number,Net Amount,Supplier Name,,,,,,,,,#REF!
Nottinghamshire County Council,1111/1001,Surplus or Deficit from Trading Undertak,TRADING,Premises Related,BJA,06/05/2015,02-10001,594.92,Biffa Waste Services Ltd,,,,,,,,,
Nottinghamshire County Council,1111/1001,Surplus or Deficit from Trading Undertak,TRADING,Supplies & Services,DDA,14/05/2015,02-10001,1850.01,Hamelin Paperbrands Ltd,,,,,,,,,
Nottinghamshire County Council,1111/1001,Surplus or Deficit from Trading Undertak,TRADING,Supplies & Services,DDA,28/05/2015,02-10001,7537.48,Hamelin Paperbrands Ltd,,,,,,,,,
Nottinghamshire County Council,1111/1001,Surplus or Deficit from Trading Undertak,TRADING,Supplies & Services,DDA,28/05/2015,02-10001,914.54,Hamelin Paperbrands Ltd,,,,,,,,,
Nottinghamshire County Council,1111/1001,Surplus or Deficit from Trading Undertak,TRADING,Supplies & Services,DDA,28/05/2015,02-10001,2645.12,Hamelin Paperbrands Ltd,,,,,,,,,
Nottinghamshire County Council,1111/1001,Surplus or Deficit from Trading Undertak,TRADING,Supplies & Services,DDA,28/05/2015,02-10001,1095.68,Plastoreg Smidt Gmbh,,,,,,,,,
Nottinghamshire County Council,1111/1001,Surplus or Deficit from Trading Undertak,TRADING,Supplies & Services,DDA,19/05/2015,02-10001,3668,Henkel Loctite Adhesives Ltd,,,,,,,,,
Nottinghamshire County Council,1111/1001,Surplus or Deficit from Trading Undertak,TRADING,Supplies & Services,DDA,26/05/2015,02-10001,12000.8,Henkel Loctite Adhesives Ltd,,,,,,,,,
Nottinghamshire County Council,1111/1001,Surplus or Deficit from Trading Undertak,TRADING,Supplies & Services,DDA,26/05/2015,02-10001,612,The Ruler Company,,,,,,,,,
Nottinghamshire County Council,1111/1001,Surplus or Deficit from Trading Undertak,TRADING,Supplies & Services,DAA,18/05/2015,02-10001,628,Fingersafe Gb Ltd,,,,,,,,,
Nottinghamshire County Council,1111/1001,Surplus or Deficit from Trading Undertak,TRADING,Supplies & Services,DAA,06/05/2015,02-10001,755.84,Bostik Ltd,,,,,,,,,
Nottinghamshire County Council,1111/1001,Surplus or Deficit from Trading Undertak,TRADING,Supplies & Services,DAA,28/05/2015,02-10001,1465.32,Bostik Ltd,,,,,,,,,
Nottinghamshire County Council,1111/1001,Surplus or Deficit from Trading Undertak,TRADING,Supplies & Services,DAA,19/05/2015,02-10001,523.05,Synergy Health (Uk) Ltd,,,,,,,,,
Nottinghamshire County Council,1111/1001,Surplus or Deficit from Trading Undertak,TRADING,Supplies & Services,DAA,28/05/2015,02-10001,523.05,Synergy Health (Uk) Ltd,,,,,,,,,
Nottinghamshire County Council,1111/1001,Surplus or Deficit from Trading Undertak,TRADING,Supplies & Services,DFA,20/05/2015,02-10001,5800.07,Advanced Ticketing Limited,,,,,,,,,
Nottinghamshire County Council,1111/1001,Surplus or Deficit from Trading Undertak,TRADING,Supplies & Services,DAA,06/05/2015,02-10001,504,Vivid Laminating Technologies Ltd,,,,,,,,,
Nottinghamshire County Council,1111/1001,Surplus or Deficit from Trading Undertak,TRADING,Supplies & Services,DAA,06/05/2015,02-10001,1329,Premier Paper Group Ltd,,,,,,,,,
Nottinghamshire County Council,1111/1001,Surplus or Deficit from Trading Undertak,TRADING,Supplies & Services,DAA,11/05/2015,02-10001,880,Premier Paper Group Ltd,,,,,,,,,
Nottinghamshire County Council,1111/1001,Surplus or Deficit from Trading Undertak,TRADING,Supplies & Services,DAA,26/05/2015,02-10001,26071,Sterling Solutions,,,,,,,,,
Nottinghamshire County Council,1111/1001,Surplus or Deficit from Trading Undertak,TRADING,Supplies & Services,DAA,06/05/2015,02-10001,15600,Antalis Key Accounts,,,,,,,,,
Nottinghamshire County Council,1111/1001,Surplus or Deficit from Trading Undertak,TRADING,Supplies & Services,DAA,19/05/2015,02-10001,1292.1,Antalis Key Accounts,,,,,,,,,
Nottinghamshire County Council,1111/1001,Surplus or Deficit from Trading Undertak,TRADING,Supplies & Services,DAA,28/05/2015,02-10001,1143.4,Antalis Key Accounts,,,,,,,,,
Nottinghamshire County Council,1111/1001,Surplus or Deficit from Trading Undertak,TRADING,Supplies & Services,DAA,14/05/2015,02-10001,651,Xma Ltd,,,,,,,,,
Nottinghamshire County Council,1111/1001,Surplus or Deficit from Trading Undertak,TRADING,Supplies & Services,DAA,07/05/2015,02-10001,640.15,Rocom Ltd.,,,,,,,,,
Nottinghamshire County Council,1111/1001,Surplus or Deficit from Trading Undertak,TRADING,Premises Related,BAA,28/05/2015,02-10001,640.5,Avery Uk,,,,,,,,,
Nottinghamshire County Council,1111/1001,Surplus or Deficit from Trading Undertak,TRADING,Premises Related,BJA,28/05/2015,02-10001,1165.8,Freudenberg Household Products Lp,,,,,,,,,
Nottinghamshire County Council,1111/1001,Surplus or Deficit from Trading Undertak,TRADING,Premises Related,BJA,11/05/2015,02-10001,1534.82,Kimberley Clark European Services Ltd,,,,,,,,,
Nottinghamshire County Council,1111/1001,Surplus or Deficit from Trading Undertak,TRADING,Premises Related,BJA,19/05/2015,02-10001,3867.18,Kimberley Clark European Services Ltd,,,,,,,,,
Nottinghamshire County Council,1111/1001,Surplus or Deficit from Trading Undertak,TRADING,Premises Related,BJA,14/05/2015,02-10001,1433.56,Cromwell Polythene Ltd,,,,,,,,,
Nottinghamshire County Council,1111/1001,Surplus or Deficit from Trading Undertak,TRADING,Premises Related,BJA,28/05/2015,02-10001,1018.56,Cromwell Polythene Ltd,,,,,,,,,
Nottinghamshire County Council,1111/1001,Surplus or Deficit from Trading Undertak,TRADING,Premises Related,BJA,11/05/2015,02-10001,575.64,3M (United Kingdom) Plc,,,,,,,,,
Nottinghamshire County Council,1111/1001,Surplus or Deficit from Trading Undertak,TRADING,Premises Related,BJA,18/05/2015,02-10001,2269.42,Johnson Diversey,,,,,,,,,
Nottinghamshire County Council,1111/1001,Surplus or Deficit from Trading Undertak,TRADING,Premises Related,BJA,19/05/2015,02-10001,3053.79,Johnson Diversey,,,,,,,,,
Nottinghamshire County Council,1111/1001,Surplus or Deficit from Trading Undertak,TRADING,Premises Related,BJA,28/05/2015,02-10001,2822.77,Johnson Diversey,,,,,,,,,
Nottinghamshire County Council,1111/1001,Surplus or Deficit from Trading Undertak,TRADING,Premises Related,BJA,18/05/2015,02-10001,4103.98,Premiere Products (James Briggs Ltd),,,,,,,,,
Nottinghamshire County Council,1111/1001,Surplus or Deficit from Trading Undertak,TRADING,Premises Related,BJA,18/05/2015,02-10001,6156.42,Premiere Products (James Briggs Ltd),,,,,,,,,
Nottinghamshire County Council,1111/1001,Surplus or Deficit from Trading Undertak,TRADING,Premises Related,BJA,18/05/2015,02-10001,1435.19,Premiere Products (James Briggs Ltd),,,,,,,,,
Nottinghamshire County Council,1111/1001,Surplus or Deficit from Trading Undertak,TRADING,Premises Related,BJA,21/05/2015,02-10001,2908.8,Premiere Products (James Briggs Ltd),,,,,,,,,
Nottinghamshire County Council,1111/1001,Surplus or Deficit from Trading Undertak,TRADING,Premises Related,BJA,06/05/2015,02-10001,602.33,Numatic International Ltd,,,,,,,,,
Nottinghamshire County Council,1111/1001,Surplus or Deficit from Trading Undertak,TRADING,Premises Related,BJA,14/05/2015,02-10001,517.75,Cromwell Tools Ltd,,,,,,,,,
Nottinghamshire County Council,1111/1001,Surplus or Deficit from Trading Undertak,TRADING,Supplies & Services,DAA,07/05/2015,02-10001,647.52,W V Howe (Hardware) Ltd,,,,,,,,,
Nottinghamshire County Council,1111/1001,Surplus or Deficit from Trading Undertak,TRADING,Supplies & Services,DAA,06/05/2015,02-10001,521.88,Catering Supplies (Wakefield) Ltd,,,,,,,,,
Nottinghamshire County Council,1111/1001,Surplus or Deficit from Trading Undertak,TRADING,Supplies & Services,DAA,19/05/2015,02-10001,2241.6,Sca Hygiene,,,,,,,,,
Nottinghamshire County Council,1111/1001,Surplus or Deficit from Trading Undertak,TRADING,Supplies & Services,DAA,19/05/2015,02-10001,3645.5,Sca Hygiene,,,,,,,,,
Nottinghamshire County Council,1111/1001,Surplus or Deficit from Trading Undertak,TRADING,Supplies & Services,DAA,19/05/2015,02-10001,3034.94,Sca Hygiene,,,,,,,,,
Nottinghamshire County Council,1111/1001,Surplus or Deficit from Trading Undertak,TRADING,Supplies & Services,DAA,19/05/2015,02-10001,5632.5,Sca Hygiene,,,,,,,,,
Nottinghamshire County Council,1111/1001,Surplus or Deficit from Trading Undertak,TRADING,Supplies & Services,DAA,19/05/2015,02-10001,1541.15,Sca Hygiene,,,,,,,,,
Nottinghamshire County Council,1111/1001,Surplus or Deficit from Trading Undertak,TRADING,Supplies & Services,DAA,06/05/2015,02-10001,738.89,Dualit Ltd,,,,,,,,,
Nottinghamshire County Council,1111/1001,Surplus or Deficit from Trading Undertak,TRADING,Supplies & Services,DCA,06/05/2015,02-10001,605.23,Shermond,,,,,,,,,
Nottinghamshire County Council,1111/1001,Surplus or Deficit from Trading Undertak,TRADING,Supplies & Services,DCA,12/05/2015,02-10001,1372.4,Shermond,,,,,,,,,
Nottinghamshire County Council,1111/1001,Surplus or Deficit from Trading Undertak,TRADING,Supplies & Services,DCA,28/05/2015,02-10001,1475.45,Shermond,,,,,,,,,
Nottinghamshire County Council,1111/1001,Surplus or Deficit from Trading Undertak,TRADING,Supplies & Services,DKA,06/05/2015,02-10001,1063,Bunzl Cleaning & Hygiene Supplies,,,,,,,,,
Nottinghamshire County Council,1111/1001,Surplus or Deficit from Trading Undertak,TRADING,Supplies & Services,DKA,14/05/2015,02-10001,502.39,Bunzl Cleaning & Hygiene Supplies,,,,,,,,,
Nottinghamshire County Council,1111/1001,Surplus or Deficit from Trading Undertak,TRADING,Supplies & Services,DKA,19/05/2015,02-10001,1155.24,Bunzl Cleaning & Hygiene Supplies,,,,,,,,,
Nottinghamshire County Council,1111/1001,Surplus or Deficit from Trading Undertak,TRADING,Supplies & Services,DKA,19/05/2015,02-10001,747.41,Bunzl Cleaning & Hygiene Supplies,,,,,,,,,
Nottinghamshire County Council,1111/1001,Surplus or Deficit from Trading Undertak,TRADING,Supplies & Services,DKA,28/05/2015,02-10001,788.1,Bunzl Cleaning & Hygiene Supplies,,,,,,,,,
Nottinghamshire County Council,1111/1001,Surplus or Deficit from Trading Undertak,TRADING,Supplies & Services,DKA,28/05/2015,02-10001,1155.24,Bunzl Cleaning & Hygiene Supplies,,,,,,,,,
Nottinghamshire County Council,1111/1001,Surplus or Deficit from Trading Undertak,TRADING,Supplies & Services,DAA,18/05/2015,02-10001,1471,R Scott & Sons Ltd,,,,,,,,,
Nottinghamshire County Council,1111/1001,Surplus or Deficit from Trading Undertak,TRADING,Supplies & Services,DAA,18/05/2015,02-10001,590.25,R Scott & Sons Ltd,,,,,,,,,
Nottinghamshire County Council,1111/1001,Surplus or Deficit from Trading Undertak,TRADING,Supplies & Services,DAA,18/05/2015,02-10001,846.95,R Scott & Sons Ltd,,,,,,,,,
Nottinghamshire County Council,1111/1001,Surplus or Deficit from Trading Undertak,TRADING,Supplies & Services,DAA,20/05/2015,02-10001,2182.15,R Scott & Sons Ltd,,,,,,,,,
Nottinghamshire County Council,1111/1001,Surplus or Deficit from Trading Undertak,TRADING,Supplies & Services,DAA,14/05/2015,02-10001,747.5,Principal Furniture,,,,,,,,,
Nottinghamshire County Council,1111/1001,Surplus or Deficit from Trading Undertak,TRADING,Supplies & Services,DAA,19/05/2015,02-10001,608.48,Combined Office Interiors Ltd,,,,,,,,,
Nottinghamshire County Council,1111/1001,Surplus or Deficit from Trading Undertak,TRADING,Supplies & Services,DAA,26/05/2015,02-10001,706.14,Complete Office Solutions (Uk) Ltd,,,,,,,,,
Nottinghamshire County Council,1111/1001,Surplus or Deficit from Trading Undertak,TRADING,Supplies & Services,DAA,07/05/2015,02-10001,787.19,Denis Rawlins Ltd,,,,,,,,,
Nottinghamshire County Council,1111/1001,Surplus or Deficit from Trading Undertak,TRADING,Supplies & Services,DAA,06/05/2015,02-10001,636.84,Lockhart Catering Equipment Ltd,,,,,,,,,
Nottinghamshire County Council,1111/1001,Surplus or Deficit from Trading Undertak,TRADING,Supplies & Services,DAA,26/05/2015,02-10001,721.3,Posturite Uk Ltd,,,,,,,,,
Nottinghamshire County Council,1111/1001,Surplus or Deficit from Trading Undertak,TRADING,Supplies & Services,DAA,18/05/2015,02-10001,825.75,Anchor Fast Products Ltd,,,,,,,,,
Nottinghamshire County Council,1111/1001,Surplus or Deficit from Trading Undertak,TRADING,Supplies & Services,DAA,11/05/2015,02-10001,1032.04,Kent County Supplies,,,,,,,,,
Nottinghamshire County Council,1111/1001,Surplus or Deficit from Trading Undertak,TRADING,Supplies & Services,DAA,18/05/2015,02-10001,904,Grosvenor House Papers Ltd,,,,,,,,,
Nottinghamshire County Council,1111/1001,Surplus or Deficit from Trading Undertak,TRADING,Supplies & Services,DAA,11/05/2015,02-10001,2881.82,Newell Rubbermaid,,,,,,,,,
Nottinghamshire County Council,1111/1001,Surplus or Deficit from Trading Undertak,TRADING,Supplies & Services,DAA,28/05/2015,02-10001,918.62,Newell Rubbermaid,,,,,,,,,
Nottinghamshire County Council,1111/1001,Surplus or Deficit from Trading Undertak,TRADING,Supplies & Services,DAA,06/05/2015,02-10001,788.13,Acco-Rexel Ltd,,,,,,,,,
Nottinghamshire County Council,1111/1001,Surplus or Deficit from Trading Undertak,TRADING,Supplies & Services,DAA,11/05/2015,02-10001,587.1,Newclay Products Ltd,,,,,,,,,
Nottinghamshire County Council,1111/1001,Surplus or Deficit from Trading Undertak,TRADING,Supplies & Services,DAA,26/05/2015,02-10001,596.4,R.H.Ritchings Ltd,,,,,,,,,
Nottinghamshire County Council,1111/1001,Surplus or Deficit from Trading Undertak,TRADING,Supplies & Services,DAA,26/05/2015,02-10001,521.6,R.H.Ritchings Ltd,,,,,,,,,
Nottinghamshire County Council,1111/1001,Surplus or Deficit from Trading Undertak,TRADING,Supplies & Services,DAA,19/05/2015,02-10001,1029.8,Staedtler (Uk) Ltd,,,,,,,,,
Nottinghamshire County Council,1111/1001,Surplus or Deficit from Trading Undertak,TRADING,Supplies & Services,DAA,26/05/2015,02-10001,3258.25,Staedtler (Uk) Ltd,,,,,,,,,
Nottinghamshire County Council,1111/1001,Surplus or Deficit from Trading Undertak,TRADING,Supplies & Services,DAA,14/05/2015,02-10001,1022.46,Bic U.K. Ltd,,,,,,,,,
Nottinghamshire County Council,1111/1001,Surplus or Deficit from Trading Undertak,TRADING,Supplies & Services,DAA,28/05/2015,02-10001,500,Edding Uk Ltd,,,,,,,,,
Nottinghamshire County Council,1111/1001,Surplus or Deficit from Trading Undertak,TRADING,Supplies & Services,DAA,06/05/2015,02-10001,1007.88,Rapesco Office Products Plc,,,,,,,,,
Nottinghamshire County Council,1111/1001,Surplus or Deficit from Trading Undertak,TRADING,Supplies & Services,DAA,06/05/2015,02-10001,609.75,Allen Glenold Ltd,,,,,,,,,
Nottinghamshire County Council,1111/1001,Surplus or Deficit from Trading Undertak,TRADING,Supplies & Services,DAA,11/05/2015,02-10001,862.4,Allen Glenold Ltd,,,,,,,,,
Nottinghamshire County Council,1111/1001,Surplus or Deficit from Trading Undertak,TRADING,Supplies & Services,DAA,19/05/2015,02-10001,892.06,Allen Glenold Ltd,,,,,,,,,
Nottinghamshire County Council,1111/1001,Surplus or Deficit from Trading Undertak,TRADING,Supplies & Services,DAA,18/05/2015,02-10001,2461.84,Higher Kings Mill Ltd,,,,,,,,,
Nottinghamshire County Council,1111/1001,Surplus or Deficit from Trading Undertak,TRADING,Supplies & Services,DAA,06/05/2015,02-10001,1564.09,Slater Harrison & Co Ltd,,,,,,,,,
Nottinghamshire County Council,1111/1001,Surplus or Deficit from Trading Undertak,TRADING,Supplies & Services,DAA,14/05/2015,02-10001,840.1,Slater Harrison & Co Ltd,,,,,,,,,
Nottinghamshire County Council,1111/1001,Surplus or Deficit from Trading Undertak,TRADING,Supplies & Services,DAA,19/05/2015,02-10001,1610.86,Slater Harrison & Co Ltd,,,,,,,,,
Nottinghamshire County Council,1111/1001,Surplus or Deficit from Trading Undertak,TRADING,Supplies & Services,DAA,28/05/2015,02-10001,1788.57,Slater Harrison & Co Ltd,,,,,,,,,
Nottinghamshire County Council,1111/1001,Surplus or Deficit from Trading Undertak,TRADING,Supplies & Services,DAA,19/05/2015,02-10001,551.12,E V Naish Ltd,,,,,,,,,
Nottinghamshire County Council,1111/1001,Surplus or Deficit from Trading Undertak,TRADING,Supplies & Services,DAA,07/05/2015,02-10001,608.82,Creativity International Ltd,,,,,,,,,
Nottinghamshire County Council,1111/1001,Surplus or Deficit from Trading Undertak,TRADING,Supplies & Services,DAA,07/05/2015,02-10001,573.6,Creativity International Ltd,,,,,,,,,
Nottinghamshire County Council,1111/1001,Surplus or Deficit from Trading Undertak,TRADING,Supplies & Services,DAA,19/05/2015,02-10001,1209.88,Valentine Clays,,,,,,,,,
Nottinghamshire County Council,1111/1001,Surplus or Deficit from Trading Undertak,TRADING,Supplies & Services,DAA,19/05/2015,02-10001,514.64,Bright Ideas Marketing Ltd,,,,,,,,,
Nottinghamshire County Council,1111/1001,Surplus or Deficit from Trading Undertak,TRADING,Supplies & Services,DAA,14/05/2015,02-10001,751.25,Eastpoint,,,,,,,,,
Nottinghamshire County Council,1111/1001,Surplus or Deficit from Trading Undertak,TRADING,Supplies & Services,DAA,14/05/2015,02-10001,824.7,Eastpoint,,,,,,,,,
Nottinghamshire County Council,1111/1001,Surplus or Deficit from Trading Undertak,TRADING,Supplies & Services,DAA,19/05/2015,02-10001,1076.4,William Sinclair Horticulture Ltd,,,,,,,,,
Nottinghamshire County Council,1111/1001,Surplus or Deficit from Trading Undertak,TRADING,Supplies & Services,DAA,07/05/2015,02-10001,546.1,Brian Clegg (Educational Products) Ltd,,,,,,,,,
Nottinghamshire County Council,1111/1001,Surplus or Deficit from Trading Undertak,TRADING,Supplies & Services,DAA,06/05/2015,02-10001,548,Commotion Technology Supplies,,,,,,,,,
Nottinghamshire County Council,1111/1001,Surplus or Deficit from Trading Undertak,TRADING,Supplies & Services,DAA,11/05/2015,02-10001,757.86,Profile Education Ltd,,,,,,,,,
Nottinghamshire County Council,1111/1001,Surplus or Deficit from Trading Undertak,TRADING,Supplies & Services,DAA,07/05/2015,02-10001,790.33,Monarch Computer Furniture,,,,,,,,,
Nottinghamshire County Council,1111/1001,Surplus or Deficit from Trading Undertak,TRADING,Supplies & Services,DFA,20/05/2015,02-10001,3538.08,Legion Distribution Services Ltd,,,,,,,,,
Nottinghamshire County Council,1111/1001,Children and Young People,CYP,Premises Related,BCA,22/05/2015,02-11705,508.63,Corona Energy Retail 4 Ltd,,,,,,,,,
Nottinghamshire County Council,1111/1001,Children and Young People,CYP,Premises Related,BDA,05/05/2015,02-10001,650,Ashfield District Council,,,,,,,,,
Nottinghamshire County Council,1111/1001,Children and Young People,CYP,Premises Related,BDA,05/05/2015,02-10002,5747.54,Making It! Enterprises Ltd,,,,,,,,,
Nottinghamshire County Council,1111/1001,Children and Young People,CYP,Premises Related,BDA,05/05/2015,02-10003,1099.99,Nottingham City Council,,,,,,,,,
Nottinghamshire County Council,1111/1001,Children and Young People,CYP,Premises Related,BDA,05/05/2015,02-10004,4674.76,Making It! Enterprises Ltd,,,,,,,,,
Nottinghamshire County Council,1111/1001,Children and Young People,CYP,Premises Related,BDA,05/05/2015,02-10006,606.67,J Sedoo t/a Sedoo Investments,,,,,,,,,
Nottinghamshire County Council,1111/1001,Children and Young People,CYP,Premises Related,BDA,05/05/2015,02-10007,606.67,J Sedoo t/a Sedoo Investments,,,,,,,,,
Nottinghamshire County Council,1111/1001,Children and Young People,CYP,Premises Related,BDA,05/05/2015,02-10008,606.67,J Sedoo t/a Sedoo Investments,,,,,,,,,
Nottinghamshire County Council,1111/1001,Children and Young People,CYP,Premises Related,BDA,06/05/2015,02-10011,2838.17,Making It! Enterprises Ltd,,,,,,,,,
Nottinghamshire County Council,1111/1001,Children and Young People,CYP,Premises Related,BDA,27/05/2015,02-10013,6050,High Peak Borough Council,,,,,,,,,
Nottinghamshire County Council,1111/1001,Children and Young People,CYP,Premises Related,BDA,28/05/2015,02-10014,1515.54,Tuntum Housing,,,,,,,,,
Nottinghamshire County Council,1111/1001,Children and Young People,CYP,Transport Related,CCA,05/05/2015,02-10176,1296,Taxicover Uk Ltd,,,,,,,,,
Nottinghamshire County Council,1111/1001,Children and Young People,CYP,Transport Related,CCA,05/05/2015,02-10177,1692,Taxicover Uk Ltd,,,,,,,,,
Nottinghamshire County Council,1111/1001,Children and Young People,CYP,Transport Related,CCA,05/05/2015,02-10178,1773,Taxicover Uk Ltd,,,,,,,,,
Nottinghamshire County Council,1111/1001,Children and Young People,CYP,Transport Related,CCA,05/05/2015,02-10179,1868.46,Taxicover Uk Ltd,,,,,,,,,
Nottinghamshire County Council,1111/1001,Children and Young People,CYP,Transport Related,CCA,05/05/2015,02-10180,1723.92,Taxicover Uk Ltd,,,,,,,,,
Nottinghamshire County Council,1111/1001,Children and Young People,CYP,Transport Related,CCA,05/05/2015,02-10181,2074.05,Taxicover Uk Ltd,,,,,,,,,
Nottinghamshire County Council,1111/1001,Children and Young People,CYP,Transport Related,CCA,05/05/2015,02-10182,1768.91,Taxicover Uk Ltd,,,,,,,,,
Nottinghamshire County Council,1111/1001,Children and Young People,CYP,Transport Related,CCA,05/05/2015,02-10184,1639,Taxicover Uk Ltd,,,,,,,,,
Nottinghamshire County Council,1111/1001,Children and Young People,CYP,Transport Related,CCA,05/05/2015,02-10185,1395,Taxicover Uk Ltd,,,,,,,,,
Nottinghamshire County Council,1111/1001,Children and Young People,CYP,Transport Related,CCA,05/05/2015,02-10186,1251,Taxicover Uk Ltd,,,,,,,,,
Nottinghamshire County Council,1111/1001,Children and Young People,CYP,Transport Related,CCA,05/05/2015,02-10187,1332,Taxicover Uk Ltd,,,,,,,,,
Nottinghamshire County Council,1111/1001,Children and Young People,CYP,Transport Related,CCA,05/05/2015,02-10188,1428,Taxicover Uk Ltd,,,,,,,,,
Nottinghamshire County Council,1111/1001,Children and Young People,CYP,Transport Related,CCA,05/05/2015,02-10189,1404,Taxicover Uk Ltd,,,,,,,,,
Nottinghamshire County Council,1111/1001,Children and Young People,CYP,Transport Related,CCA,05/05/2015,02-10191,703.8,Southside Cars,,,,,,,,,
Nottinghamshire County Council,1111/1001,Children and Young People,CYP,Transport Related,CCA,05/05/2015,02-10192,827.86,Southside Cars,,,,,,,,,
Nottinghamshire County Council,1111/1001,Children and Young People,CYP,Transport Related,CCA,05/05/2015,02-10193,812.02,Southside Cars,,,,,,,,,
Nottinghamshire County Council,1111/1001,Children and Young People,CYP,Transport Related,CCA,05/05/2015,02-10194,966,Southside Cars,,,,,,,,,
Nottinghamshire County Council,1111/1001,Children and Young People,CYP,Transport Related,CCA,05/05/2015,02-10195,550,Southside Cars,,,,,,,,,
Nottinghamshire County Council,1111/1001,Children and Young People,CYP,Transport Related,CCA,05/05/2015,02-10196,631.62,Southside Cars,,,,,,,,,
Nottinghamshire County Council,1111/1001,Children and Young People,CYP,Transport Related,CCA,05/05/2015,02-10197,824,Southside Cars,,,,,,,,,
Nottinghamshire County Council,1111/1001,Children and Young People,CYP,Transport Related,CCA,05/05/2015,02-10198,533.94,Southside Cars,,,,,,,,,
Nottinghamshire County Council,1111/1001,Children and Young People,CYP,Transport Related,CCA,05/05/2015,02-10201,1086.5,Arrow Specialised Transport Ltd,,,,,,,,,
Nottinghamshire County Council,1111/1001,Children and Young People,CYP,Transport Related,CCA,05/05/2015,02-10202,1006.7,Arrow Specialised Transport Ltd,,,,,,,,,
Nottinghamshire County Council,1111/1001,Children and Young People,CYP,Transport Related,CCA,05/05/2015,02-10203,1302.8,Arrow Specialised Transport Ltd,,,,,,,,,
Nottinghamshire County Council,1111/1001,Children and Young People,CYP,Transport Related,CCA,05/05/2015,02-10204,1450,Arrow Specialised Transport Ltd,,,,,,,,,
Nottinghamshire County Council,1111/1001,Children and Young People,CYP,Transport Related,CCA,05/05/2015,02-10205,1147.85,Arrow Specialised Transport Ltd,,,,,,,,,
Nottinghamshire County Council,1111/1001,Children and Young People,CYP,Transport Related,CCA,05/05/2015,02-10206,1183.2,Arrow Specialised Transport Ltd,,,,,,,,,
Nottinghamshire County Council,1111/1001,Children and Young People,CYP,Transport Related,CCA,05/05/2015,02-10207,1301.52,Arrow Specialised Transport Ltd,,,,,,,,,
Nottinghamshire County Council,1111/1001,Children and Young People,CYP,Transport Related,CCA,05/05/2015,02-10208,949.74,Arrow Specialised Transport Ltd,,,,,,,,,
Nottinghamshire County Council,1111/1001,Children and Young People,CYP,Transport Related,CCA,05/05/2015,02-10209,1507.66,Arrow Specialised Transport Ltd,,,,,,,,,
Nottinghamshire County Council,1111/1001,Children and Young People,CYP,Transport Related,CCA,05/05/2015,02-10210,1396.23,Arrow Specialised Transport Ltd,,,,,,,,,
Nottinghamshire County Council,1111/1001,Children and Young People,CYP,Transport Related,CCA,05/05/2015,02-10212,1850.53,Arrow Specialised Transport Ltd,,,,,,,,,
Nottinghamshire County Council,1111/1001,Children and Young People,CYP,Transport Related,CCA,05/05/2015,02-10213,1604.46,Arrow Specialised Transport Ltd,,,,,,,,,
Nottinghamshire County Council,1111/1001,Children and Young People,CYP,Transport Related,CCA,05/05/2015,02-10214,562.87,Arrow Specialised Transport Ltd,,,,,,,,,
Nottinghamshire County Council,1111/1001,Children and Young People,CYP,Transport Related,CCA,05/05/2015,02-10215,1562.99,Arrow Specialised Transport Ltd,,,,,,,,,
Nottinghamshire County Council,1111/1001,Children and Young People,CYP,Transport Related,CCA,05/05/2015,02-10216,1819.95,Arrow Specialised Transport Ltd,,,,,,,,,
Nottinghamshire County Council,1111/1001,Children and Young People,CYP,Transport Related,CCA,05/05/2015,02-10217,752.18,Arrow Specialised Transport Ltd,,,,,,,,,
Nottinghamshire County Council,1111/1001,Children and Young People,CYP,Transport Related,CCA,05/05/2015,02-10218,1305.26,Arrow Specialised Transport Ltd,,,,,,,,,
Nottinghamshire County Council,1111/1001,Children and Young People,CYP,Transport Related,CCA,05/05/2015,02-10219,1137.29,Arrow Specialised Transport Ltd,,,,,,,,,
Nottinghamshire County Council,1111/1001,Children and Young People,CYP,Transport Related,CCA,05/05/2015,02-10220,1049.4,Arrow Specialised Transport Ltd,,,,,,,,,
Nottinghamshire County Council,1111/1001,Children and Young People,CYP,Transport Related,CCA,05/05/2015,02-10221,1272.7,Arrow Specialised Transport Ltd,,,,,,,,,
Nottinghamshire County Council,1111/1001,Children and Young People,CYP,Transport Related,CCA,05/05/2015,02-10222,1063.48,Arrow Specialised Transport Ltd,,,,,,,,,
Nottinghamshire County Council,1111/1001,Children and Young People,CYP,Transport Related,CCA,05/05/2015,02-10223,1205.8,Arrow Specialised Transport Ltd,,,,,,,,,
Nottinghamshire County Council,1111/1001,Children and Young People,CYP,Transport Related,CCA,05/05/2015,02-10224,1158.4,Arrow Specialised Transport Ltd,,,,,,,,,
Nottinghamshire County Council,1111/1001,Children and Young People,CYP,Transport Related,CCA,05/05/2015,02-10225,910.8,Arrow Specialised Transport Ltd,,,,,,,,,
Nottinghamshire County Council,1111/1001,Children and Young People,CYP,Transport Related,CCA,05/05/2015,02-10226,1117,Arrow Specialised Transport Ltd,,,,,,,,,
Nottinghamshire County Council,1111/1001,Children and Young People,CYP,Transport Related,CCA,05/05/2015,02-10227,1045.6,Arrow Specialised Transport Ltd,,,,,,,,,
Nottinghamshire County Council,1111/1001,Children and Young People,CYP,Transport Related,CCA,05/05/2015,02-10228,1009.2,Arrow Specialised Transport Ltd,,,,,,,,,
Nottinghamshire County Council,1111/1001,Children and Young People,CYP,Transport Related,CCA,05/05/2015,02-10231,881.54,Fozcabs Newark Taxis,,,,,,,,,
Nottinghamshire County Council,1111/1001,Children and Young People,CYP,Transport Related,CCA,05/05/2015,02-10232,922.24,Fozcabs Newark Taxis,,,,,,,,,
Nottinghamshire County Council,1111/1001,Children and Young People,CYP,Transport Related,CCA,05/05/2015,02-10233,750,Fozcabs Newark Taxis,,,,,,,,,
Nottinghamshire County Council,1111/1001,Children and Young People,CYP,Transport Related,CCA,05/05/2015,02-10235,990,Horizon Travel,,,,,,,,,
Nottinghamshire County Council,1111/1001,Children and Young People,CYP,Transport Related,CCA,05/05/2015,02-10236,1278,Horizon Travel,,,,,,,,,
Nottinghamshire County Council,1111/1001,Children and Young People,CYP,Transport Related,CCA,05/05/2015,02-10239,1165.5,K & S Coaches,,,,,,,,,
Nottinghamshire County Council,1111/1001,Children and Young People,CYP,Transport Related,CCA,05/05/2015,02-10240,1168.65,Midfield Travel,,,,,,,,,
Nottinghamshire County Council,1111/1001,Children and Young People,CYP,Transport Related,CCA,06/05/2015,02-10454,538.67,CBC Taxis Ltd,,,,,,,,,
Nottinghamshire County Council,1111/1001,Children and Young People,CYP,Transport Related,CCA,06/05/2015,02-10455,769.12,CBC Taxis Ltd,,,,,,,,,
Nottinghamshire County Council,1111/1001,Children and Young People,CYP,Transport Related,CCA,06/05/2015,02-10457,724.82,Alpha Cars,,,,,,,,,
Nottinghamshire County Council,1111/1001,Children and Young People,CYP,Transport Related,CCA,06/05/2015,02-10459,1420.12,Arrow Specialised Transport Ltd,,,,,,,,,
Nottinghamshire County Council,1111/1001,Children and Young People,CYP,Transport Related,CCA,06/05/2015,02-10460,1146.38,Arrow Specialised Transport Ltd,,,,,,,,,
Nottinghamshire County Council,1111/1001,Children and Young People,CYP,Transport Related,CCA,06/05/2015,02-10461,1299.1,Arrow Specialised Transport Ltd,,,,,,,,,
Nottinghamshire County Council,1111/1001,Children and Young People,CYP,Transport Related,CCA,06/05/2015,02-10462,1120.02,Arrow Specialised Transport Ltd,,,,,,,,,
Nottinghamshire County Council,1111/1001,Children and Young People,CYP,Transport Related,CCA,06/05/2015,02-10463,605.88,Arrow Specialised Transport Ltd,,,,,,,,,
Nottinghamshire County Council,1111/1001,Children and Young People,CYP,Transport Related,CCA,06/05/2015,02-10465,1814.8,Arrow Specialised Transport Ltd,,,,,,,,,
Nottinghamshire County Council,1111/1001,Children and Young People,CYP,Transport Related,CCA,06/05/2015,02-10467,1100.7,Arrow Specialised Transport Ltd,,,,,,,,,
Nottinghamshire County Council,1111/1001,Children and Young People,CYP,Transport Related,CCA,06/05/2015,02-10469,1848,Arrow Specialised Transport Ltd,,,,,,,,,
Nottinghamshire County Council,1111/1001,Children and Young People,CYP,Transport Related,CCA,06/05/2015,02-10470,1161,Arrow Specialised Transport Ltd,,,,,,,,,
Nottinghamshire County Council,1111/1001,Children and Young People,CYP,Transport Related,CCA,06/05/2015,02-10471,1497.76,Arrow Specialised Transport Ltd,,,,,,,,,
Nottinghamshire County Council,1111/1001,Children and Young People,CYP,Transport Related,CCA,06/05/2015,02-10473,840,Arrow Specialised Transport Ltd,,,,,,,,,
Nottinghamshire County Council,1111/1001,Children and Young People,CYP,Transport Related,CCA,06/05/2015,02-10474,1051.38,Arrow Specialised Transport Ltd,,,,,,,,,
Nottinghamshire County Council,1111/1001,Children and Young People,CYP,Transport Related,CCA,06/05/2015,02-10476,679.8,Arrow Specialised Transport Ltd,,,,,,,,,
Nottinghamshire County Council,1111/1001,Children and Young People,CYP,Transport Related,CCA,06/05/2015,02-10487,962.72,Bridges Transport Services,,,,,,,,,
Nottinghamshire County Council,1111/1001,Children and Young People,CYP,Transport Related,CCA,06/05/2015,02-10488,1823.14,Bridges Transport Services,,,,,,,,,
Nottinghamshire County Council,1111/1001,Children and Young People,CYP,Transport Related,CCA,06/05/2015,02-10489,1539.12,Bridges Transport Services,,,,,,,,,
Nottinghamshire County Council,1111/1001,Children and Young People,CYP,Transport Related,CCA,06/05/2015,02-10490,609.84,Bridges Transport Services,,,,,,,,,
Nottinghamshire County Council,1111/1001,Children and Young People,CYP,Transport Related,CCA,06/05/2015,02-10491,903.98,Bridges Transport Services,,,,,,,,,
Nottinghamshire County Council,1111/1001,Children and Young People,CYP,Transport Related,CCA,06/05/2015,02-10492,792.77,Bridges Transport Services,,,,,,,,,
Nottinghamshire County Council,1111/1001,Children and Young People,CYP,Transport Related,CCA,06/05/2015,02-10493,1559.36,Bridges Transport Services,,,,,,,,,
Nottinghamshire County Council,1111/1001,Children and Young People,CYP,Transport Related,CCA,06/05/2015,02-10494,809.05,Bridges Transport Services,,,,,,,,,
Nottinghamshire County Council,1111/1001,Children and Young People,CYP,Transport Related,CCA,06/05/2015,02-10495,2288.77,Bridges Transport Services,,,,,,,,,
Nottinghamshire County Council,1111/1001,Children and Young People,CYP,Transport Related,CCA,06/05/2015,02-10496,334.73,Bridges Transport Services,,,,,,,,,
Nottinghamshire County Council,1111/1001,Children and Young People,CYP,Transport Related,CCA,06/05/2015,02-10498,1201.7,Bridges Transport Services,,,,,,,,,
Nottinghamshire County Council,1111/1001,Children and Young People,CYP,Transport Related,CCA,06/05/2015,02-10499,807.9,Bridges Transport Services,,,,,,,,,
Nottinghamshire County Council,1111/1001,Children and Young People,CYP,Transport Related,CCA,06/05/2015,02-10500,643.1,Bridges Transport Services,,,,,,,,,
Nottinghamshire County Council,1111/1001,Children and Young People,CYP,Transport Related,CCA,06/05/2015,02-10502,802.29,Bridges Transport Services,,,,,,,,,
Nottinghamshire County Council,1111/1001,Children and Young People,CYP,Transport Related,CCA,06/05/2015,02-10505,500,Galaxy Cabs,,,,,,,,,
Nottinghamshire County Council,1111/1001,Children and Young People,CYP,Transport Related,CCA,06/05/2015,02-10506,855,Galaxy Cabs,,,,,,,,,
Nottinghamshire County Council,1111/1001,Children and Young People,CYP,Transport Related,CCA,06/05/2015,02-10507,762.96,Oasis Taxis Mansfield Ltd,,,,,,,,,
Nottinghamshire County Council,1111/1001,Children and Young People,CYP,Transport Related,CCA,06/05/2015,02-10509,1428,Sprays Transport Ltd,,,,,,,,,
Nottinghamshire County Council,1111/1001,Children and Young People,CYP,Transport Related,CCA,06/05/2015,02-10510,1433.4,Sprays Transport Ltd,,,,,,,,,
Nottinghamshire County Council,1111/1001,Children and Young People,CYP,Transport Related,CCA,06/05/2015,02-10511,1169.74,Sprays Transport Ltd,,,,,,,,,
Nottinghamshire County Council,1111/1001,Children and Young People,CYP,Transport Related,CCA,06/05/2015,02-10512,1130,Sprays Transport Ltd,,,,,,,,,
Nottinghamshire County Council,1111/1001,Children and Young People,CYP,Transport Related,CCA,06/05/2015,02-10513,840,Sprays Transport Ltd,,,,,,,,,
Nottinghamshire County Council,1111/1001,Children and Young People,CYP,Transport Related,CCA,06/05/2015,02-10514,1155,Sprays Transport Ltd,,,,,,,,,
Nottinghamshire County Council,1111/1001,Children and Young People,CYP,Transport Related,CCA,06/05/2015,02-10515,1032.24,Sprays Transport Ltd,,,,,,,,,
Nottinghamshire County Council,1111/1001,Children and Young People,CYP,Transport Related,CCA,06/05/2015,02-10516,850.3,Sprays Transport Ltd,,,,,,,,,
Nottinghamshire County Council,1111/1001,Children and Young People,CYP,Transport Related,CCA,06/05/2015,02-10517,1040.27,Sprays Transport Ltd,,,,,,,,,
Nottinghamshire County Council,1111/1001,Children and Young People,CYP,Transport Related,CCA,06/05/2015,02-10518,814.43,Sprays Transport Ltd,,,,,,,,,
Nottinghamshire County Council,1111/1001,Children and Young People,CYP,Transport Related,CCA,06/05/2015,02-10520,935.7,Sprays Transport Ltd,,,,,,,,,
Nottinghamshire County Council,1111/1001,Children and Young People,CYP,Transport Related,CCA,06/05/2015,02-10521,882.7,Sprays Transport Ltd,,,,,,,,,
Nottinghamshire County Council,1111/1001,Children and Young People,CYP,Transport Related,CCA,06/05/2015,02-10522,1065.9,Sprays Transport Ltd,,,,,,,,,
Nottinghamshire County Council,1111/1001,Children and Young People,CYP,Transport Related,CCA,06/05/2015,02-10523,982.52,Sprays Transport Ltd,,,,,,,,,
Nottinghamshire County Council,1111/1001,Children and Young People,CYP,Transport Related,CCA,06/05/2015,02-10524,1052.92,Sprays Transport Ltd,,,,,,,,,
Nottinghamshire County Council,1111/1001,Children and Young People,CYP,Transport Related,CCA,06/05/2015,02-10525,1183.27,Sprays Transport Ltd,,,,,,,,,
Nottinghamshire County Council,1111/1001,Children and Young People,CYP,Transport Related,CCA,06/05/2015,02-10526,990,Sprays Transport Ltd,,,,,,,,,
Nottinghamshire County Council,1111/1001,Children and Young People,CYP,Transport Related,CCA,07/05/2015,02-10891,1963.5,Sharpes Of Nottingham,,,,,,,,,
Nottinghamshire County Council,1111/1001,Children and Young People,CYP,Transport Related,CCA,07/05/2015,02-10892,1346.4,Sharpes Of Nottingham,,,,,,,,,
Nottinghamshire County Council,1111/1001,Children and Young People,CYP,Transport Related,CCA,07/05/2015,02-10896,1098,Martins Travel,,,,,,,,,
Nottinghamshire County Council,1111/1001,Children and Young People,CYP,Transport Related,CCA,07/05/2015,02-10897,1585.32,Martins Travel,,,,,,,,,
Nottinghamshire County Council,1111/1001,Children and Young People,CYP,Transport Related,CCA,07/05/2015,02-10900,525,Ace Of Mansfield Ltd,,,,,,,,,
Nottinghamshire County Council,1111/1001,Children and Young People,CYP,Transport Related,CCA,07/05/2015,02-10902,329.28,Acorn Contracts,,,,,,,,,
Nottinghamshire County Council,1111/1001,Children and Young People,CYP,Transport Related,CCA,07/05/2015,02-10904,1952.68,Arrow Specialised Transport Ltd,,,,,,,,,
Nottinghamshire County Council,1111/1001,Children and Young People,CYP,Transport Related,CCA,07/05/2015,02-10905,1005.29,Arrow Specialised Transport Ltd,,,,,,,,,
Nottinghamshire County Council,1111/1001,Children and Young People,CYP,Transport Related,CCA,07/05/2015,02-10906,1702.69,Arrow Specialised Transport Ltd,,,,,,,,,
Nottinghamshire County Council,1111/1001,Children and Young People,CYP,Transport Related,CCA,07/05/2015,02-10907,919.8,Arrow Specialised Transport Ltd,,,,,,,,,
Nottinghamshire County Council,1111/1001,Children and Young People,CYP,Transport Related,CCA,07/05/2015,02-10908,7664.28,Arrow Specialised Transport Ltd,,,,,,,,,
Nottinghamshire County Council,1111/1001,Children and Young People,CYP,Transport Related,CCA,07/05/2015,02-10909,981,Arrow Specialised Transport Ltd,,,,,,,,,
Nottinghamshire County Council,1111/1001,Children and Young People,CYP,Transport Related,CCA,07/05/2015,02-10910,891,Arrow Specialised Transport Ltd,,,,,,,,,
Nottinghamshire County Council,1111/1001,Children and Young People,CYP,Transport Related,CCA,07/05/2015,02-10911,1071,Arrow Specialised Transport Ltd,,,,,,,,,
Nottinghamshire County Council,1111/1001,Children and Young People,CYP,Transport Related,CCA,07/05/2015,02-10912,741.96,Arrow Specialised Transport Ltd,,,,,,,,,
Nottinghamshire County Council,1111/1001,Children and Young People,CYP,Transport Related,CCA,07/05/2015,02-10914,907.8,Arrow Specialised Transport Ltd,,,,,,,,,
Nottinghamshire County Council,1111/1001,Children and Young People,CYP,Transport Related,CCA,07/05/2015,02-10915,496.88,Arrow Specialised Transport Ltd,,,,,,,,,
Nottinghamshire County Council,1111/1001,Children and Young People,CYP,Transport Related,CCA,07/05/2015,02-10917,1942.08,Arrow Specialised Transport Ltd,,,,,,,,,
Nottinghamshire County Council,1111/1001,Children and Young People,CYP,Transport Related,CCA,07/05/2015,02-10918,1984.92,Arrow Specialised Transport Ltd,,,,,,,,,
Nottinghamshire County Council,1111/1001,Children and Young People,CYP,Transport Related,CCA,07/05/2015,02-10919,1500.38,Arrow Specialised Transport Ltd,,,,,,,,,
Nottinghamshire County Council,1111/1001,Children and Young People,CYP,Transport Related,CCA,07/05/2015,02-10920,2163.28,Arrow Specialised Transport Ltd,,,,,,,,,
Nottinghamshire County Council,1111/1001,Children and Young People,CYP,Transport Related,CCA,07/05/2015,02-10921,820.49,Arrow Specialised Transport Ltd,,,,,,,,,
Nottinghamshire County Council,1111/1001,Children and Young People,CYP,Transport Related,CCA,07/05/2015,02-10922,1402.5,Arrow Specialised Transport Ltd,,,,,,,,,
Nottinghamshire County Council,1111/1001,Children and Young People,CYP,Transport Related,CCA,07/05/2015,02-10923,998.58,Arrow Specialised Transport Ltd,,,,,,,,,
Nottinghamshire County Council,1111/1001,Children and Young People,CYP,Transport Related,CCA,07/05/2015,02-10924,1245.42,Arrow Specialised Transport Ltd,,,,,,,,,
Nottinghamshire County Council,1111/1001,Children and Young People,CYP,Transport Related,CCA,07/05/2015,02-10925,1408,Arrow Specialised Transport Ltd,,,,,,,,,
Nottinghamshire County Council,1111/1001,Children and Young People,CYP,Transport Related,CCA,07/05/2015,02-10926,936.32,Arrow Specialised Transport Ltd,,,,,,,,,
Nottinghamshire County Council,1111/1001,Children and Young People,CYP,Transport Related,CCA,07/05/2015,02-10927,418.99,Arrow Specialised Transport Ltd,,,,,,,,,
Nottinghamshire County Council,1111/1001,Children and Young People,CYP,Transport Related,CCA,07/05/2015,02-10929,982.52,Arrow Specialised Transport Ltd,,,,,,,,,
Nottinghamshire County Council,1111/1001,Children and Young People,CYP,Transport Related,CCA,07/05/2015,02-10930,878.57,Arrow Specialised Transport Ltd,,,,,,,,,
Nottinghamshire County Council,1111/1001,Children and Young People,CYP,Transport Related,CCA,07/05/2015,02-10931,1093.84,Arrow Specialised Transport Ltd,,,,,,,,,
Nottinghamshire County Council,1111/1001,Children and Young People,CYP,Transport Related,CCA,07/05/2015,02-10932,794.31,Arrow Specialised Transport Ltd,,,,,,,,,
Nottinghamshire County Council,1111/1001,Children and Young People,CYP,Transport Related,CCA,07/05/2015,02-10934,1248.39,Arrow Specialised Transport Ltd,,,,,,,,,
Nottinghamshire County Council,1111/1001,Children and Young People,CYP,Transport Related,CCA,07/05/2015,02-10935,1298.99,Arrow Specialised Transport Ltd,,,,,,,,,
Nottinghamshire County Council,1111/1001,Children and Young People,CYP,Transport Related,CCA,07/05/2015,02-10936,1628,Arrow Specialised Transport Ltd,,,,,,,,,
Nottinghamshire County Council,1111/1001,Children and Young People,CYP,Transport Related,CCA,07/05/2015,02-10937,891,Arrow Specialised Transport Ltd,,,,,,,,,
Nottinghamshire County Council,1111/1001,Children and Young People,CYP,Transport Related,CCA,07/05/2015,02-10938,990,Arrow Specialised Transport Ltd,,,,,,,,,
Nottinghamshire County Council,1111/1001,Children and Young People,CYP,Transport Related,CCA,07/05/2015,02-10939,1008,Arrow Specialised Transport Ltd,,,,,,,,,
Nottinghamshire County Council,1111/1001,Children and Young People,CYP,Transport Related,CCA,07/05/2015,02-10940,1237.17,Erewash Community Transport,,,,,,,,,
Nottinghamshire County Council,1111/1001,Children and Young People,CYP,Transport Related,CCA,07/05/2015,02-10941,1701,Erewash Community Transport,,,,,,,,,
Nottinghamshire County Council,1111/1001,Children and Young People,CYP,Transport Related,CCA,07/05/2015,02-10942,464.6,Erewash Community Transport,,,,,,,,,
Nottinghamshire County Council,1111/1001,Children and Young People,CYP,Transport Related,CCA,07/05/2015,02-10944,1020.6,Erewash Community Transport,,,,,,,,,
Nottinghamshire County Council,1111/1001,Children and Young People,CYP,Transport Related,CCA,07/05/2015,02-10945,1184,Erewash Community Transport,,,,,,,,,
Nottinghamshire County Council,1111/1001,Children and Young People,CYP,Transport Related,CCA,07/05/2015,02-10947,1440,Ja Travel Ltd,,,,,,,,,
Nottinghamshire County Council,1111/1001,Children and Young People,CYP,Transport Related,CCA,07/05/2015,02-10948,1462.5,Ja Travel Ltd,,,,,,,,,
Nottinghamshire County Council,1111/1001,Children and Young People,CYP,Transport Related,CCA,07/05/2015,02-10950,990,Ng11 Cars,,,,,,,,,
Nottinghamshire County Council,1111/1001,Children and Young People,CYP,Transport Related,CCA,07/05/2015,02-10951,1458.6,Shelleys Taxis Ltd,,,,,,,,,
Nottinghamshire County Council,1111/1001,Children and Young People,CYP,Transport Related,CCA,07/05/2015,02-10952,617.1,Shelleys Taxis Ltd,,,,,,,,,
Nottinghamshire County Council,1111/1001,Children and Young People,CYP,Transport Related,CCA,07/05/2015,02-10953,673.2,Shelleys Taxis Ltd,,,,,,,,,
Nottinghamshire County Council,1111/1001,Children and Young People,CYP,Transport Related,CCA,07/05/2015,02-10954,979.2,Shelleys Taxis Ltd,,,,,,,,,
Nottinghamshire County Council,1111/1001,Children and Young People,CYP,Transport Related,CCA,07/05/2015,02-10956,570,Shelleys Taxis Ltd,,,,,,,,,
Nottinghamshire County Council,1111/1001,Children and Young People,CYP,Transport Related,CCA,07/05/2015,02-10957,770,Shelleys Taxis Ltd,,,,,,,,,
Nottinghamshire County Council,1111/1001,Children and Young People,CYP,Transport Related,CCA,07/05/2015,02-10958,1018.6,Sprays Transport Ltd,,,,,,,,,
Nottinghamshire County Council,1111/1001,Children and Young People,CYP,Transport Related,CCA,07/05/2015,02-10959,1239.04,Sprays Transport Ltd,,,,,,,,,
Nottinghamshire County Council,1111/1001,Children and Young People,CYP,Transport Related,CCA,07/05/2015,02-10960,1086.58,Sprays Transport Ltd,,,,,,,,,
Nottinghamshire County Council,1111/1001,Children and Young People,CYP,Transport Related,CCA,07/05/2015,02-10961,1661.11,Sprays Transport Ltd,,,,,,,,,
Nottinghamshire County Council,1111/1001,Children and Young People,CYP,Transport Related,CCA,07/05/2015,02-10962,1121.56,Sprays Transport Ltd,,,,,,,,,
Nottinghamshire County Council,1111/1001,Children and Young People,CYP,Transport Related,CCA,07/05/2015,02-10963,1150,Sprays Transport Ltd,,,,,,,,,
Nottinghamshire County Council,1111/1001,Children and Young People,CYP,Transport Related,CCA,07/05/2015,02-10964,945,Sprays Transport Ltd,,,,,,,,,
Nottinghamshire County Council,1111/1001,Children and Young People,CYP,Transport Related,CCA,07/05/2015,02-10965,1080,Sprays Transport Ltd,,,,,,,,,
Nottinghamshire County Council,1111/1001,Children and Young People,CYP,Transport Related,CCA,07/05/2015,02-10969,1514.7,F & J Marriott T/A Unity Coaches,,,,,,,,,
Nottinghamshire County Council,1111/1001,Children and Young People,CYP,Transport Related,CCA,07/05/2015,02-10970,1514.7,F & J Marriott T/A Unity Coaches,,,,,,,,,
Nottinghamshire County Council,1111/1001,Children and Young People,CYP,Transport Related,CCA,07/05/2015,02-10971,1560.46,F & J Marriott T/A Unity Coaches,,,,,,,,,
Nottinghamshire County Council,1111/1001,Children and Young People,CYP,Transport Related,CCA,07/05/2015,02-10976,1332,Vallances Coaches,,,,,,,,,
Nottinghamshire County Council,1111/1001,Children and Young People,CYP,Transport Related,CCA,07/05/2015,02-10977,1543.8,Goldstar Travel Nottm Ltd,,,,,,,,,
Nottinghamshire County Council,1111/1001,Children and Young People,CYP,Transport Related,CCA,07/05/2015,02-10978,1479.94,Goldstar Travel Nottm Ltd,,,,,,,,,
Nottinghamshire County Council,1111/1001,Children and Young People,CYP,Transport Related,CCA,07/05/2015,02-10979,809.05,Goldstar Travel Nottm Ltd,,,,,,,,,
Nottinghamshire County Council,1111/1001,Children and Young People,CYP,Transport Related,CCA,07/05/2015,02-10996,851.2,Nunns Cars,,,,,,,,,
Nottinghamshire County Council,1111/1001,Children and Young People,CYP,Transport Related,CCA,07/05/2015,02-10998,1904,K Matthews Travel,,,,,,,,,
Nottinghamshire County Council,1111/1001,Children and Young People,CYP,Transport Related,CCA,07/05/2015,02-11007,10666.66,Hope House School Ltd,,,,,,,,,
Nottinghamshire County Council,1111/1001,Children and Young People,CYP,Transport Related,CCA,07/05/2015,02-11008,950,Diamond Cars,,,,,,,,,
Nottinghamshire County Council,1111/1001,Children and Young People,CYP,Transport Related,CCA,07/05/2015,02-11009,1150,Diamond Cars,,,,,,,,,
Nottinghamshire County Council,1111/1001,Children and Young People,CYP,Transport Related,CCA,12/05/2015,02-11257,1270.28,D G Private Hire Ltd,,,,,,,,,
Nottinghamshire County Council,1111/1001,Children and Young People,CYP,Transport Related,CCA,12/05/2015,02-11258,1258.9,D G Private Hire Ltd,,,,,,,,,
Nottinghamshire County Council,1111/1001,Children and Young People,CYP,Transport Related,CCA,12/05/2015,02-11259,851.26,D G Private Hire Ltd,,,,,,,,,
Nottinghamshire County Council,1111/1001,Children and Young People,CYP,Transport Related,CCA,12/05/2015,02-11260,873.88,D G Private Hire Ltd,,,,,,,,,
Nottinghamshire County Council,1111/1001,Children and Young People,CYP,Transport Related,CCA,12/05/2015,02-11261,367.2,Fozcabs Newark Taxis,,,,,,,,,
Nottinghamshire County Council,1111/1001,Children and Young People,CYP,Transport Related,CCA,12/05/2015,02-11263,1289.82,Fozcabs Newark Taxis,,,,,,,,,
Nottinghamshire County Council,1111/1001,Children and Young People,CYP,Transport Related,CCA,12/05/2015,02-11264,579.36,Fozcabs Newark Taxis,,,,,,,,,
Nottinghamshire County Council,1111/1001,Children and Young People,CYP,Transport Related,CCA,12/05/2015,02-11265,535.5,Fozcabs Newark Taxis,,,,,,,,,
Nottinghamshire County Council,1111/1001,Children and Young People,CYP,Transport Related,CCA,12/05/2015,02-11267,1108.36,Headland Taxi Services,,,,,,,,,
Nottinghamshire County Council,1111/1001,Children and Young People,CYP,Transport Related,CCA,12/05/2015,02-11268,1033.38,Headland Taxi Services,,,,,,,,,
Nottinghamshire County Council,1111/1001,Children and Young People,CYP,Transport Related,CCA,12/05/2015,02-11269,812,Shelleys Taxis Ltd,,,,,,,,,
Nottinghamshire County Council,1111/1001,Children and Young People,CYP,Transport Related,CCA,12/05/2015,02-11270,1313.84,Carlton Cars Ltd T/A Trent Cars,,,,,,,,,
Nottinghamshire County Council,1111/1001,Children and Young People,CYP,Transport Related,CCA,12/05/2015,02-11271,1870,Vallances Coaches,,,,,,,,,
Nottinghamshire County Council,1111/1001,Children and Young People,CYP,Transport Related,CCA,12/05/2015,02-11272,1875.58,Vallances Coaches,,,,,,,,,
Nottinghamshire County Council,1111/1001,Children and Young People,CYP,Transport Related,CCA,12/05/2015,02-11273,633.42,D G Private Hire Ltd,,,,,,,,,
Nottinghamshire County Council,1111/1001,Children and Young People,CYP,Transport Related,CCA,12/05/2015,02-11274,1120,D G Private Hire Ltd,,,,,,,,,
Nottinghamshire County Council,1111/1001,Children and Young People,CYP,Transport Related,CCA,12/05/2015,02-11275,902.11,D G Private Hire Ltd,,,,,,,,,
Nottinghamshire County Council,1111/1001,Children and Young People,CYP,Transport Related,CCA,12/05/2015,02-11276,972.73,D G Private Hire Ltd,,,,,,,,,
Nottinghamshire County Council,1111/1001,Children and Young People,CYP,Transport Related,CCA,12/05/2015,02-11277,1050,D G Private Hire Ltd,,,,,,,,,
Nottinghamshire County Council,1111/1001,Children and Young People,CYP,Transport Related,CCA,12/05/2015,02-11278,1120,D G Private Hire Ltd,,,,,,,,,
Nottinghamshire County Council,1111/1001,Children and Young People,CYP,Transport Related,CCA,12/05/2015,02-11279,1100,D G Private Hire Ltd,,,,,,,,,
Nottinghamshire County Council,1111/1001,Children and Young People,CYP,Transport Related,CCA,12/05/2015,02-11281,715,Abacus Cars,,,,,,,,,
Nottinghamshire County Council,1111/1001,Children and Young People,CYP,Transport Related,CCA,12/05/2015,02-11282,900,Abacus Cars,,,,,,,,,
Nottinghamshire County Council,1111/1001,Children and Young People,CYP,Transport Related,CCA,12/05/2015,02-11286,1113.84,Abacus Cars,,,,,,,,,
Nottinghamshire County Council,1111/1001,Children and Young People,CYP,Transport Related,CCA,12/05/2015,02-11287,672,Abacus Cars,,,,,,,,,
Nottinghamshire County Council,1111/1001,Children and Young People,CYP,Transport Related,CCA,12/05/2015,02-11288,630,Abacus Cars,,,,,,,,,
Nottinghamshire County Council,1111/1001,Children and Young People,CYP,Transport Related,CCA,12/05/2015,02-11289,732.6,Abacus Cars,,,,,,,,,
Nottinghamshire County Council,1111/1001,Children and Young People,CYP,Transport Related,CCA,12/05/2015,02-11312,4151.4,Kettlewell Retford Ltd,,,,,,,,,
Nottinghamshire County Council,1111/1001,Children and Young People,CYP,Transport Related,CCA,12/05/2015,02-11319,1526.7,Rio Cabs,,,,,,,,,
Nottinghamshire County Council,1111/1001,Children and Young People,CYP,Transport Related,CCA,12/05/2015,02-11320,850.08,Rio Cabs,,,,,,,,,
Nottinghamshire County Council,1111/1001,Children and Young People,CYP,Transport Related,CCA,13/05/2015,02-11387,1238.02,Central Cars Nottm Ltd,,,,,,,,,
Nottinghamshire County Council,1111/1001,Children and Young People,CYP,Transport Related,CCA,13/05/2015,02-11388,936.36,Central Cars Nottm Ltd,,,,,,,,,
Nottinghamshire County Council,1111/1001,Children and Young People,CYP,Transport Related,CCA,13/05/2015,02-11390,840,Central Cars Nottm Ltd,,,,,,,,,
Nottinghamshire County Council,1111/1001,Children and Young People,CYP,Transport Related,CCA,13/05/2015,02-11391,1197.02,Central Cars Nottm Ltd,,,,,,,,,
Nottinghamshire County Council,1111/1001,Children and Young People,CYP,Transport Related,CCA,13/05/2015,02-11392,884.3,Central Cars Nottm Ltd,,,,,,,,,
Nottinghamshire County Council,1111/1001,Children and Young People,CYP,Transport Related,CCA,13/05/2015,02-11393,1428,Central Cars Nottm Ltd,,,,,,,,,
Nottinghamshire County Council,1111/1001,Children and Young People,CYP,Transport Related,CCA,13/05/2015,02-11394,1193.4,Central Cars Nottm Ltd,,,,,,,,,
Nottinghamshire County Council,1111/1001,Children and Young People,CYP,Transport Related,CCA,13/05/2015,02-11395,1560,Central Cars Nottm Ltd,,,,,,,,,
Nottinghamshire County Council,1111/1001,Children and Young People,CYP,Transport Related,CCA,13/05/2015,02-11396,1444.56,Central Cars Nottm Ltd,,,,,,,,,
Nottinghamshire County Council,1111/1001,Children and Young People,CYP,Transport Related,CCA,13/05/2015,02-11397,840,Central Cars Nottm Ltd,,,,,,,,,
Nottinghamshire County Council,1111/1001,Children and Young People,CYP,Transport Related,CCA,13/05/2015,02-11406,1971.72,Butler Brothers Ltd,,,,,,,,,
Nottinghamshire County Council,1111/1001,Children and Young People,CYP,Transport Related,CCA,13/05/2015,02-11408,544,Shelleys Taxis Ltd,,,,,,,,,
Nottinghamshire County Council,1111/1001,Children and Young People,CYP,Transport Related,CCA,13/05/2015,02-11411,1269.4,123 Taxis,,,,,,,,,
Nottinghamshire County Council,1111/1001,Children and Young People,CYP,Transport Related,CCA,13/05/2015,02-11444,1584,Eurocab 2000 Ltd,,,,,,,,,
Nottinghamshire County Council,1111/1001,Children and Young People,CYP,Transport Related,CCA,13/05/2015,02-11445,770,Eurocab 2000 Ltd,,,,,,,,,
Nottinghamshire County Council,1111/1001,Children and Young People,CYP,Transport Related,CCA,13/05/2015,02-11446,1639,Eurocab 2000 Ltd,,,,,,,,,
Nottinghamshire County Council,1111/1001,Children and Young People,CYP,Transport Related,CCA,13/05/2015,02-11447,1885,Eurocab 2000 Ltd,,,,,,,,,
Nottinghamshire County Council,1111/1001,Children and Young People,CYP,Transport Related,CCA,14/05/2015,02-11483,774,6 Five 2s,,,,,,,,,
Nottinghamshire County Council,1111/1001,Children and Young People,CYP,Transport Related,CCA,14/05/2015,02-11484,864,6 Five 2s,,,,,,,,,
Nottinghamshire County Council,1111/1001,Children and Young People,CYP,Transport Related,CCA,14/05/2015,02-11485,702,6 Five 2s,,,,,,,,,
Nottinghamshire County Council,1111/1001,Children and Young People,CYP,Transport Related,CCA,14/05/2015,02-11486,846,6 Five 2s,,,,,,,,,
Nottinghamshire County Council,1111/1001,Children and Young People,CYP,Transport Related,CCA,14/05/2015,02-11487,666,6 Five 2s,,,,,,,,,
Nottinghamshire County Council,1111/1001,Children and Young People,CYP,Transport Related,CCA,14/05/2015,02-11488,504,6 Five 2s,,,,,,,,,
Nottinghamshire County Council,1111/1001,Children and Young People,CYP,Transport Related,CCA,14/05/2015,02-11489,932.4,6 Five 2s,,,,,,,,,
Nottinghamshire County Council,1111/1001,Children and Young People,CYP,Transport Related,CCA,14/05/2015,02-11490,897.6,6 Five 2s,,,,,,,,,
Nottinghamshire County Council,1111/1001,Children and Young People,CYP,Transport Related,CCA,14/05/2015,02-11491,1204.06,6 Five 2s,,,,,,,,,
Nottinghamshire County Council,1111/1001,Children and Young People,CYP,Transport Related,CCA,14/05/2015,02-11492,738.36,6 Five 2s,,,,,,,,,
Nottinghamshire County Council,1111/1001,Children and Young People,CYP,Transport Related,CCA,14/05/2015,02-11493,614.02,6 Five 2s,,,,,,,,,
Nottinghamshire County Council,1111/1001,Children and Young People,CYP,Transport Related,CCA,14/05/2015,02-11494,1054.8,6 Five 2s,,,,,,,,,
Nottinghamshire County Council,1111/1001,Children and Young People,CYP,Transport Related,CCA,14/05/2015,02-11495,2066.68,6 Five 2s,,,,,,,,,
Nottinghamshire County Council,1111/1001,Children and Young People,CYP,Transport Related,CCA,14/05/2015,02-11496,1054.02,6 Five 2s,,,,,,,,,
Nottinghamshire County Council,1111/1001,Children and Young People,CYP,Transport Related,CCA,14/05/2015,02-11497,1241.38,6 Five 2s,,,,,,,,,
Nottinghamshire County Council,1111/1001,Children and Young People,CYP,Transport Related,CCA,14/05/2015,02-11498,1773.4,6 Five 2s,,,,,,,,,
Nottinghamshire County Council,1111/1001,Children and Young People,CYP,Transport Related,CCA,14/05/2015,02-11499,852.39,6 Five 2s,,,,,,,,,
Nottinghamshire County Council,1111/1001,Children and Young People,CYP,Transport Related,CCA,14/05/2015,02-11501,1241.38,6 Five 2s,,,,,,,,,
Nottinghamshire County Council,1111/1001,Children and Young People,CYP,Transport Related,CCA,14/05/2015,02-11502,614.69,6 Five 2s,,,,,,,,,
Nottinghamshire County Council,1111/1001,Children and Young People,CYP,Transport Related,CCA,14/05/2015,02-11504,552.2,6 Five 2s,,,,,,,,,
Nottinghamshire County Council,1111/1001,Children and Young People,CYP,Transport Related,CCA,14/05/2015,02-11505,1041.26,6 Five 2s,,,,,,,,,
Nottinghamshire County Council,1111/1001,Children and Young People,CYP,Transport Related,CCA,14/05/2015,02-11506,2196.04,6 Five 2s,,,,,,,,,
Nottinghamshire County Council,1111/1001,Children and Young People,CYP,Transport Related,CCA,14/05/2015,02-11507,838.64,6 Five 2s,,,,,,,,,
Nottinghamshire County Council,1111/1001,Children and Young People,CYP,Transport Related,CCA,14/05/2015,02-11508,2163.92,6 Five 2s,,,,,,,,,
Nottinghamshire County Council,1111/1001,Children and Young People,CYP,Transport Related,CCA,14/05/2015,02-11509,547.36,6 Five 2s,,,,,,,,,
Nottinghamshire County Council,1111/1001,Children and Young People,CYP,Transport Related,CCA,14/05/2015,02-11510,1860.1,6 Five 2s,,,,,,,,,
Nottinghamshire County Council,1111/1001,Children and Young People,CYP,Transport Related,CCA,14/05/2015,02-11511,672.9,6 Five 2s,,,,,,,,,
Nottinghamshire County Council,1111/1001,Children and Young People,CYP,Transport Related,CCA,14/05/2015,02-11513,1665.72,6 Five 2s,,,,,,,,,
Nottinghamshire County Council,1111/1001,Children and Young People,CYP,Transport Related,CCA,14/05/2015,02-11515,1018.2,6 Five 2s,,,,,,,,,
Nottinghamshire County Council,1111/1001,Children and Young People,CYP,Transport Related,CCA,14/05/2015,02-11516,1003.3,6 Five 2s,,,,,,,,,
Nottinghamshire County Council,1111/1001,Children and Young People,CYP,Transport Related,CCA,14/05/2015,02-11517,948.64,6 Five 2s,,,,,,,,,
Nottinghamshire County Council,1111/1001,Children and Young People,CYP,Transport Related,CCA,14/05/2015,02-11518,994.84,6 Five 2s,,,,,,,,,
Nottinghamshire County Council,1111/1001,Children and Young People,CYP,Transport Related,CCA,14/05/2015,02-11519,480.48,6 Five 2s,,,,,,,,,
Nottinghamshire County Council,1111/1001,Children and Young People,CYP,Transport Related,CCA,14/05/2015,02-11521,1950.74,6 Five 2s,,,,,,,,,
Nottinghamshire County Council,1111/1001,Children and Young People,CYP,Transport Related,CCA,14/05/2015,02-11522,1539.05,All Wayz Travel,,,,,,,,,
Nottinghamshire County Council,1111/1001,Children and Young People,CYP,Transport Related,CCA,14/05/2015,02-11525,1062,F4Control Ltd (t/a First4care),,,,,,,,,
Nottinghamshire County Council,1111/1001,Children and Young People,CYP,Transport Related,CCA,14/05/2015,02-11526,1071,F4Control Ltd (t/a First4care),,,,,,,,,
Nottinghamshire County Council,1111/1001,Children and Young People,CYP,Transport Related,CCA,14/05/2015,02-11527,1008,F4Control Ltd (t/a First4care),,,,,,,,,
Nottinghamshire County Council,1111/1001,Children and Young People,CYP,Transport Related,CCA,14/05/2015,02-11530,1530,Johnson Bros Tours Ltd,,,,,,,,,
Nottinghamshire County Council,1111/1001,Children and Young People,CYP,Transport Related,CCA,14/05/2015,02-11531,660,Fozcabs Newark Taxis,,,,,,,,,
Nottinghamshire County Council,1111/1001,Children and Young People,CYP,Transport Related,CCA,14/05/2015,02-11532,1574.4,Oasis Taxis Mansfield Ltd,,,,,,,,,
Nottinghamshire County Council,1111/1001,Children and Young People,CYP,Transport Related,CCA,14/05/2015,02-11533,1839.37,Oasis Taxis Mansfield Ltd,,,,,,,,,
Nottinghamshire County Council,1111/1001,Children and Young People,CYP,Transport Related,CCA,14/05/2015,02-11534,510,Sprays Transport Ltd,,,,,,,,,
Nottinghamshire County Council,1111/1001,Children and Young People,CYP,Transport Related,CCA,14/05/2015,02-11536,1034.04,Sprays Transport Ltd,,,,,,,,,
Nottinghamshire County Council,1111/1001,Children and Young People,CYP,Transport Related,CCA,14/05/2015,02-11537,1017.17,Sprays Transport Ltd,,,,,,,,,
Nottinghamshire County Council,1111/1001,Children and Young People,CYP,Transport Related,CCA,14/05/2015,02-11538,1666,Sprays Transport Ltd,,,,,,,,,
Nottinghamshire County Council,1111/1001,Children and Young People,CYP,Transport Related,CCA,14/05/2015,02-11539,1685.04,Sprays Transport Ltd,,,,,,,,,
Nottinghamshire County Council,1111/1001,Children and Young People,CYP,Transport Related,CCA,14/05/2015,02-11540,948.84,Sprays Transport Ltd,,,,,,,,,
Nottinghamshire County Council,1111/1001,Children and Young People,CYP,Transport Related,CCA,14/05/2015,02-11543,1945.4,BN Gibson Ltd,,,,,,,,,
Nottinghamshire County Council,1111/1001,Children and Young People,CYP,Transport Related,CCA,14/05/2015,02-11544,1496.55,BN Gibson Ltd,,,,,,,,,
Nottinghamshire County Council,1111/1001,Children and Young People,CYP,Transport Related,CCA,14/05/2015,02-11546,2013.9,BN Gibson Ltd,,,,,,,,,
Nottinghamshire County Council,1111/1001,Children and Young People,CYP,Transport Related,CCA,14/05/2015,02-11547,1625.14,BN Gibson Ltd,,,,,,,,,
Nottinghamshire County Council,1111/1001,Children and Young People,CYP,Transport Related,CCA,14/05/2015,02-11548,2088.13,BN Gibson Ltd,,,,,,,,,
Nottinghamshire County Council,1111/1001,Children and Young People,CYP,Transport Related,CCA,14/05/2015,02-11549,1918.29,BN Gibson Ltd,,,,,,,,,
Nottinghamshire County Council,1111/1001,Children and Young People,CYP,Transport Related,CCA,14/05/2015,02-11551,1702.2,BN Gibson Ltd,,,,,,,,,
Nottinghamshire County Council,1111/1001,Children and Young People,CYP,Transport Related,CCA,14/05/2015,02-11552,2173.7,BN Gibson Ltd,,,,,,,,,
Nottinghamshire County Council,1111/1001,Children and Young People,CYP,Transport Related,CCA,14/05/2015,02-11553,2339.4,BN Gibson Ltd,,,,,,,,,
Nottinghamshire County Council,1111/1001,Children and Young People,CYP,Transport Related,CCA,14/05/2015,02-11580,679.24,Stagecoach Services Ltd,,,,,,,,,
Nottinghamshire County Council,1111/1001,Children and Young People,CYP,Transport Related,CCA,14/05/2015,02-11604,1738.99,L A Travel,,,,,,,,,
Nottinghamshire County Council,1111/1001,Children and Young People,CYP,Transport Related,CCA,18/05/2015,02-11655,10010,Sharpes Of Nottingham,,,,,,,,,
Nottinghamshire County Council,1111/1001,Children and Young People,CYP,Transport Related,CCA,18/05/2015,02-11662,1610.4,F4Control Ltd (t/a First4care),,,,,,,,,
Nottinghamshire County Council,1111/1001,Children and Young People,CYP,Transport Related,CCA,18/05/2015,02-11663,1091.74,F4Control Ltd (t/a First4care),,,,,,,,,
Nottinghamshire County Council,1111/1001,Children and Young People,CYP,Transport Related,CCA,18/05/2015,02-11669,795.6,Galaxy Cabs,,,,,,,,,
Nottinghamshire County Council,1111/1001,Children and Young People,CYP,Transport Related,CCA,18/05/2015,02-11671,973.06,Ja Travel Ltd,,,,,,,,,
Nottinghamshire County Council,1111/1001,Children and Young People,CYP,Transport Related,CCA,18/05/2015,02-11673,2389.24,Marshalls Of Sutton On Trent Ltd,,,,,,,,,
Nottinghamshire County Council,1111/1001,Children and Young People,CYP,Transport Related,CCA,18/05/2015,02-11675,1951.88,Travel Wright Ltd,,,,,,,,,
Nottinghamshire County Council,1111/1001,Children and Young People,CYP,Transport Related,CCA,18/05/2015,02-11676,885.36,P & P Taxis,,,,,,,,,
Nottinghamshire County Council,1111/1001,Children and Young People,CYP,Transport Related,CCA,18/05/2015,02-11683,1400,Trevor Bailey t/a Trevor Bailey Tra,,,,,,,,,
Nottinghamshire County Council,1111/1001,Children and Young People,CYP,Transport Related,CCA,18/05/2015,02-11684,1330,Target Taxis,,,,,,,,,
Nottinghamshire County Council,1111/1001,Children and Young People,CYP,Transport Related,CCA,19/05/2015,02-14980,874.5,Tiger European Uk Ltd,,,,,,,,,
Nottinghamshire County Council,1111/1001,Children and Young People,CYP,Transport Related,CCA,19/05/2015,02-15001,1144.85,Southside Cars,,,,,,,,,
Nottinghamshire County Council,1111/1001,Children and Young People,CYP,Transport Related,CCA,19/05/2015,02-15002,1612.55,Southside Cars,,,,,,,,,
Nottinghamshire County Council,1111/1001,Children and Young People,CYP,Transport Related,CCA,19/05/2015,02-15003,3962,Redfern Travel,,,,,,,,,
Nottinghamshire County Council,1111/1001,Children and Young People,CYP,Transport Related,CCA,19/05/2015,02-15004,1731.25,Redfern Travel,,,,,,,,,
Nottinghamshire County Council,1111/1001,Children and Young People,CYP,Transport Related,CCA,19/05/2015,02-15006,1565.19,Bridges Transport Services,,,,,,,,,
Nottinghamshire County Council,1111/1001,Children and Young People,CYP,Transport Related,CCA,19/05/2015,02-15008,2136.26,Bridges Transport Services,,,,,,,,,
Nottinghamshire County Council,1111/1001,Children and Young People,CYP,Transport Related,CCA,19/05/2015,02-15009,2004.94,Bridges Transport Services,,,,,,,,,
Nottinghamshire County Council,1111/1001,Children and Young People,CYP,Transport Related,CCA,19/05/2015,02-15010,537,Bridges Transport Services,,,,,,,,,
Nottinghamshire County Council,1111/1001,Children and Young People,CYP,Transport Related,CCA,19/05/2015,02-15011,1101.6,D G Private Hire Ltd,,,,,,,,,
Nottinghamshire County Council,1111/1001,Children and Young People,CYP,Transport Related,CCA,19/05/2015,02-15012,2483.64,D G Private Hire Ltd,,,,,,,,,
Nottinghamshire County Council,1111/1001,Children and Young People,CYP,Transport Related,CCA,19/05/2015,02-15013,840,AOT Coaches,,,,,,,,,
Nottinghamshire County Council,1111/1001,Children and Young People,CYP,Transport Related,CCA,19/05/2015,02-15014,1470,AOT Coaches,,,,,,,,,
Nottinghamshire County Council,1111/1001,Children and Young People,CYP,Transport Related,CCA,19/05/2015,02-15015,1620,AOT Coaches,,,,,,,,,
Nottinghamshire County Council,1111/1001,Children and Young People,CYP,Transport Related,CCA,19/05/2015,02-15016,813.2,Jb Tours Watnall Ltd,,,,,,,,,
Nottinghamshire County Council,1111/1001,Children and Young People,CYP,Transport Related,CCA,19/05/2015,02-15017,601.8,Jb Tours Watnall Ltd,,,,,,,,,
Nottinghamshire County Council,1111/1001,Children and Young People,CYP,Transport Related,CCA,19/05/2015,02-15023,1155,Silverdale Tours Nottm Ltd,,,,,,,,,
Nottinghamshire County Council,1111/1001,Children and Young People,CYP,Transport Related,CCA,19/05/2015,02-15024,1170,Silverdale Tours Nottm Ltd,,,,,,,,,
Nottinghamshire County Council,1111/1001,Children and Young People,CYP,Transport Related,CCA,19/05/2015,02-15025,1110,Tiger European Uk Ltd,,,,,,,,,
Nottinghamshire County Council,1111/1001,Children and Young People,CYP,Transport Related,CCA,19/05/2015,02-15026,2574,P & P Taxis,,,,,,,,,
Nottinghamshire County Council,1111/1001,Children and Young People,CYP,Transport Related,CCA,19/05/2015,02-15027,1210,P & P Taxis,,,,,,,,,
Nottinghamshire County Council,1111/1001,Children and Young People,CYP,Transport Related,CCA,19/05/2015,02-15028,1948.3,Freeway Coaches Ltd,,,,,,,,,
Nottinghamshire County Council,1111/1001,Children and Young People,CYP,Transport Related,CCA,19/05/2015,02-15029,538,Paul S Winson Coaches,,,,,,,,,
Nottinghamshire County Council,1111/1001,Children and Young People,CYP,Transport Related,CCA,19/05/2015,02-15030,1950.4,C W Moxon Ltd,,,,,,,,,
Nottinghamshire County Council,1111/1001,Children and Young People,CYP,Transport Related,CCA,19/05/2015,02-15031,1045.24,Town Cars (UK) Ltd,,,,,,,,,
Nottinghamshire County Council,1111/1001,Children and Young People,CYP,Transport Related,CCA,19/05/2015,02-15032,660,Town Cars (UK) Ltd,,,,,,,,,
Nottinghamshire County Council,1111/1001,Children and Young People,CYP,Transport Related,CCA,19/05/2015,02-15034,851.62,A2B Licensed Taxis,,,,,,,,,
Nottinghamshire County Council,1111/1001,Children and Young People,CYP,Transport Related,CCA,20/05/2015,02-15095,865.2,Cabline Uk Ltd,,,,,,,,,
Nottinghamshire County Council,1111/1001,Children and Young People,CYP,Transport Related,CCA,20/05/2015,02-15096,566.5,Cabline Uk Ltd,,,,,,,,,
Nottinghamshire County Council,1111/1001,Children and Young People,CYP,Transport Related,CCA,20/05/2015,02-15104,2713,D G Private Hire Ltd,,,,,,,,,
Nottinghamshire County Council,1111/1001,Children and Young People,CYP,Transport Related,CCA,20/05/2015,02-15105,1463,D G Private Hire Ltd,,,,,,,,,
Nottinghamshire County Council,1111/1001,Children and Young People,CYP,Transport Related,CCA,20/05/2015,02-15106,764.99,D G Private Hire Ltd,,,,,,,,,
Nottinghamshire County Council,1111/1001,Children and Young People,CYP,Transport Related,CCA,20/05/2015,02-15111,516,D G Private Hire Ltd,,,,,,,,,
Nottinghamshire County Council,1111/1001,Children and Young People,CYP,Transport Related,CCA,20/05/2015,02-15112,520,D G Private Hire Ltd,,,,,,,,,
Nottinghamshire County Council,1111/1001,Children and Young People,CYP,Transport Related,CCA,20/05/2015,02-15113,810,D G Private Hire Ltd,,,,,,,,,
Nottinghamshire County Council,1111/1001,Children and Young People,CYP,Transport Related,CCA,20/05/2015,02-15114,500,D G Private Hire Ltd,,,,,,,,,
Nottinghamshire County Council,1111/1001,Children and Young People,CYP,Transport Related,CCA,20/05/2015,02-15122,770,Abacus Cars,,,,,,,,,
Nottinghamshire County Council,1111/1001,Children and Young People,CYP,Transport Related,CCA,20/05/2015,02-15123,1512,Abacus Cars,,,,,,,,,
Nottinghamshire County Council,1111/1001,Children and Young People,CYP,Transport Related,CCA,20/05/2015,02-15131,1054.96,Rio Cabs,,,,,,,,,
Nottinghamshire County Council,1111/1001,Children and Young People,CYP,Transport Related,CCA,21/05/2015,02-15262,1248.48,Central Cars Nottm Ltd,,,,,,,,,
Nottinghamshire County Council,1111/1001,Children and Young People,CYP,Transport Related,CCA,21/05/2015,02-15267,510,Arrow Specialised Transport Ltd,,,,,,,,,
Nottinghamshire County Council,1111/1001,Children and Young People,CYP,Transport Related,CCA,21/05/2015,02-15275,795.6,Shelleys Taxis Ltd,,,,,,,,,
Nottinghamshire County Council,1111/1001,Children and Young People,CYP,Transport Related,CCA,21/05/2015,02-15278,572,D G Private Hire Ltd,,,,,,,,,
Nottinghamshire County Council,1111/1001,Children and Young People,CYP,Transport Related,CCA,21/05/2015,02-15279,845,Abacus Cars,,,,,,,,,
Nottinghamshire County Council,1111/1001,Children and Young People,CYP,Transport Related,CCA,22/05/2015,02-15366,1213.56,F4Control Ltd (t/a First4care),,,,,,,,,
Nottinghamshire County Council,1111/1001,Children and Young People,CYP,Transport Related,CCA,22/05/2015,02-15367,974.93,F4Control Ltd (t/a First4care),,,,,,,,,
Nottinghamshire County Council,1111/1001,Children and Young People,CYP,Transport Related,CCA,22/05/2015,02-15368,1383.8,F4Control Ltd (t/a First4care),,,,,,,,,
Nottinghamshire County Council,1111/1001,Children and Young People,CYP,Transport Related,CCA,22/05/2015,02-15369,982,F4Control Ltd (t/a First4care),,,,,,,,,
Nottinghamshire County Council,1111/1001,Children and Young People,CYP,Transport Related,CCA,22/05/2015,02-15370,1168.75,F4Control Ltd (t/a First4care),,,,,,,,,
Nottinghamshire County Council,1111/1001,Children and Young People,CYP,Transport Related,CCA,22/05/2015,02-15371,1077.23,F4Control Ltd (t/a First4care),,,,,,,,,
Nottinghamshire County Council,1111/1001,Children and Young People,CYP,Transport Related,CCA,22/05/2015,02-15372,1317.03,F4Control Ltd (t/a First4care),,,,,,,,,
Nottinghamshire County Council,1111/1001,Children and Young People,CYP,Transport Related,CCA,22/05/2015,02-15373,1093.62,F4Control Ltd (t/a First4care),,,,,,,,,
Nottinghamshire County Council,1111/1001,Children and Young People,CYP,Transport Related,CCA,22/05/2015,02-15374,1680.36,F4Control Ltd (t/a First4care),,,,,,,,,
Nottinghamshire County Council,1111/1001,Children and Young People,CYP,Transport Related,CCA,22/05/2015,02-15375,1180.52,F4Control Ltd (t/a First4care),,,,,,,,,
Nottinghamshire County Council,1111/1001,Children and Young People,CYP,Transport Related,CCA,22/05/2015,02-15376,1289.31,F4Control Ltd (t/a First4care),,,,,,,,,
Nottinghamshire County Council,1111/1001,Children and Young People,CYP,Transport Related,CCA,22/05/2015,02-15378,1264.78,F4Control Ltd (t/a First4care),,,,,,,,,
Nottinghamshire County Council,1111/1001,Children and Young People,CYP,Transport Related,CCA,22/05/2015,02-15379,1315.6,F4Control Ltd (t/a First4care),,,,,,,,,
Nottinghamshire County Council,1111/1001,Children and Young People,CYP,Transport Related,CCA,22/05/2015,02-15381,989.61,F4Control Ltd (t/a First4care),,,,,,,,,
Nottinghamshire County Council,1111/1001,Children and Young People,CYP,Transport Related,CCA,29/05/2015,02-15936,2160,Taxicover Uk Ltd,,,,,,,,,
Nottinghamshire County Council,1111/1001,Children and Young People,CYP,Transport Related,CCA,29/05/2015,02-15937,2820,Taxicover Uk Ltd,,,,,,,,,
Nottinghamshire County Council,1111/1001,Children and Young People,CYP,Transport Related,CCA,29/05/2015,02-15938,2758,Taxicover Uk Ltd,,,,,,,,,
Nottinghamshire County Council,1111/1001,Children and Young People,CYP,Transport Related,CCA,29/05/2015,02-15939,2547.9,Taxicover Uk Ltd,,,,,,,,,
Nottinghamshire County Council,1111/1001,Children and Young People,CYP,Transport Related,CCA,29/05/2015,02-15940,2350.8,Taxicover Uk Ltd,,,,,,,,,
Nottinghamshire County Council,1111/1001,Children and Young People,CYP,Transport Related,CCA,29/05/2015,02-15941,2828.25,Taxicover Uk Ltd,,,,,,,,,
Nottinghamshire County Council,1111/1001,Children and Young People,CYP,Transport Related,CCA,29/05/2015,02-15942,2412.15,Taxicover Uk Ltd,,,,,,,,,
Nottinghamshire County Council,1111/1001,Children and Young People,CYP,Transport Related,CCA,29/05/2015,02-15943,2086,Taxicover Uk Ltd,,,,,,,,,
Nottinghamshire County Council,1111/1001,Children and Young People,CYP,Transport Related,CCA,29/05/2015,02-15944,2170,Taxicover Uk Ltd,,,,,,,,,
Nottinghamshire County Council,1111/1001,Children and Young People,CYP,Transport Related,CCA,29/05/2015,02-15945,1946,Taxicover Uk Ltd,,,,,,,,,
Nottinghamshire County Council,1111/1001,Children and Young People,CYP,Transport Related,CCA,29/05/2015,02-15946,2072,Taxicover Uk Ltd,,,,,,,,,
Nottinghamshire County Council,1111/1001,Children and Young People,CYP,Transport Related,CCA,29/05/2015,02-15947,2352,Taxicover Uk Ltd,,,,,,,,,
Nottinghamshire County Council,1111/1001,Children and Young People,CYP,Transport Related,CCA,29/05/2015,02-15948,2184,Taxicover Uk Ltd,,,,,,,,,
Nottinghamshire County Council,1111/1001,Children and Young People,CYP,Transport Related,CCA,29/05/2015,02-15949,918,Southside Cars,,,,,,,,,
Nottinghamshire County Council,1111/1001,Children and Young People,CYP,Transport Related,CCA,29/05/2015,02-15950,1128.9,Southside Cars,,,,,,,,,
Nottinghamshire County Council,1111/1001,Children and Young People,CYP,Transport Related,CCA,29/05/2015,02-15951,1438.5,Southside Cars,,,,,,,,,
Nottinghamshire County Council,1111/1001,Children and Young People,CYP,Transport Related,CCA,29/05/2015,02-15952,1033.48,Southside Cars,,,,,,,,,
Nottinghamshire County Council,1111/1001,Children and Young People,CYP,Transport Related,CCA,29/05/2015,02-15953,1449,Southside Cars,,,,,,,,,
Nottinghamshire County Council,1111/1001,Children and Young People,CYP,Transport Related,CCA,29/05/2015,02-15954,750,Southside Cars,,,,,,,,,
Nottinghamshire County Council,1111/1001,Children and Young People,CYP,Transport Related,CCA,29/05/2015,02-15955,861.3,Southside Cars,,,,,,,,,
Nottinghamshire County Council,1111/1001,Children and Young People,CYP,Transport Related,CCA,29/05/2015,02-15956,1483.2,Southside Cars,,,,,,,,,
Nottinghamshire County Council,1111/1001,Children and Young People,CYP,Transport Related,CCA,29/05/2015,02-15957,1660.5,Southside Cars,,,,,,,,,
Nottinghamshire County Council,1111/1001,Children and Young People,CYP,Transport Related,CCA,29/05/2015,02-15958,728.1,Southside Cars,,,,,,,,,
Nottinghamshire County Council,1111/1001,Children and Young People,CYP,Transport Related,CCA,29/05/2015,02-15959,1657.44,All Wayz Travel,,,,,,,,,
Nottinghamshire County Council,1111/1001,Children and Young People,CYP,Transport Related,CCA,29/05/2015,02-15963,1080.64,Johnson Bros Tours Ltd,,,,,,,,,
Nottinghamshire County Council,1111/1001,Children and Young People,CYP,Transport Related,CCA,29/05/2015,02-15964,1398,SJW (Muskham) Ltd T/A Z Cars,,,,,,,,,
Nottinghamshire County Council,1111/1001,Children and Young People,CYP,Transport Related,CCA,29/05/2015,02-15966,1238.44,Ja Travel Ltd,,,,,,,,,
Nottinghamshire County Council,1111/1001,Children and Young People,CYP,Transport Related,CCA,29/05/2015,02-15967,2275,Ja Travel Ltd,,,,,,,,,
Nottinghamshire County Council,1111/1001,Children and Young People,CYP,Transport Related,CCA,29/05/2015,02-15968,2400,Ja Travel Ltd,,,,,,,,,
Nottinghamshire County Council,1111/1001,Children and Young People,CYP,Transport Related,CCA,29/05/2015,02-15969,971.04,Oasis Taxis Mansfield Ltd,,,,,,,,,
Nottinghamshire County Council,1111/1001,Children and Young People,CYP,Transport Related,CCA,29/05/2015,02-15970,1968,Oasis Taxis Mansfield Ltd,,,,,,,,,
Nottinghamshire County Council,1111/1001,Children and Young People,CYP,Transport Related,CCA,29/05/2015,02-15971,1980.86,Oasis Taxis Mansfield Ltd,,,,,,,,,
Nottinghamshire County Council,1111/1001,Children and Young People,CYP,Transport Related,CCA,29/05/2015,02-15975,2065.5,F & J Marriott T/A Unity Coaches,,,,,,,,,
Nottinghamshire County Council,1111/1001,Children and Young People,CYP,Transport Related,CCA,29/05/2015,02-15976,2065.5,F & J Marriott T/A Unity Coaches,,,,,,,,,
Nottinghamshire County Council,1111/1001,Children and Young People,CYP,Transport Related,CCA,29/05/2015,02-15977,2127.9,F & J Marriott T/A Unity Coaches,,,,,,,,,
Nottinghamshire County Council,1111/1001,Children and Young People,CYP,Transport Related,CCA,29/05/2015,02-15978,1942.5,K & S Coaches,,,,,,,,,
Nottinghamshire County Council,1111/1001,Children and Young People,CYP,Transport Related,CCA,29/05/2015,02-15979,1947.75,Midfield Travel,,,,,,,,,
Nottinghamshire County Council,1111/1001,Children and Young People,CYP,Transport Related,CCA,29/05/2015,02-15980,1615.6,123 Taxis,,,,,,,,,
Nottinghamshire County Council,1111/1001,Children and Young People,CYP,Transport Related,CCA,29/05/2015,02-15993,652.5,P & P Taxis,,,,,,,,,
Nottinghamshire County Council,1111/1001,Children and Young People,CYP,Transport Related,CCA,29/05/2015,02-15994,948.6,P & P Taxis,,,,,,,,,
Nottinghamshire County Council,1111/1001,Children and Young People,CYP,Transport Related,CCA,29/05/2015,02-15995,1650,P & P Taxis,,,,,,,,,
Nottinghamshire County Council,1111/1001,Children and Young People,CYP,Transport Related,CCA,29/05/2015,02-15999,2428.7,Freeway Coaches Ltd,,,,,,,,,
Nottinghamshire County Council,1111/1001,Children and Young People,CYP,Transport Related,CCA,29/05/2015,02-16012,5661,Kettlewell Retford Ltd,,,,,,,,,
Nottinghamshire County Council,1111/1001,Children and Young People,CYP,Transport Related,CCA,29/05/2015,02-16013,2213.26,L A Travel,,,,,,,,,
Nottinghamshire County Council,1111/1001,Children and Young People,CYP,Transport Related,CCA,29/05/2015,02-16014,1710,Diamond Cars,,,,,,,,,
Nottinghamshire County Council,1111/1001,Children and Young People,CYP,Transport Related,CCA,29/05/2015,02-16015,855,Diamond Cars,,,,,,,,,
Nottinghamshire County Council,1111/1001,Children and Young People,CYP,Transport Related,CCA,29/05/2015,02-16020,1330,Target Taxis,,,,,,,,,
Nottinghamshire County Council,1111/1001,Children and Young People,CYP,Transport Related,CDA,05/05/2015,02-10243,1375,Nottingham Minibuses & Coaches,,,,,,,,,
Nottinghamshire County Council,1111/1001,Children and Young People,CYP,Transport Related,CDA,05/05/2015,02-10244,1045,Nottingham Minibuses & Coaches,,,,,,,,,
Nottinghamshire County Council,1111/1001,Children and Young People,CYP,Transport Related,CDA,05/05/2015,02-10245,1430,Nottingham Minibuses & Coaches,,,,,,,,,
Nottinghamshire County Council,1111/1001,Children and Young People,CYP,Transport Related,CDA,05/05/2015,02-10246,1540,Nottingham Minibuses & Coaches,,,,,,,,,
Nottinghamshire County Council,1111/1001,Children and Young People,CYP,Transport Related,CDA,06/05/2015,02-10502,29.71,Bridges Transport Services,,,,,,,,,
Nottinghamshire County Council,1111/1001,Children and Young People,CYP,Transport Related,CDA,06/05/2015,02-10518,271.47,Sprays Transport Ltd,,,,,,,,,
Nottinghamshire County Council,1111/1001,Children and Young People,CYP,Transport Related,CDA,07/05/2015,02-10913,863.76,Arrow Specialised Transport Ltd,,,,,,,,,
Nottinghamshire County Council,1111/1001,Children and Young People,CYP,Transport Related,CDA,07/05/2015,02-10915,298.12,Arrow Specialised Transport Ltd,,,,,,,,,
Nottinghamshire County Council,1111/1001,Children and Young People,CYP,Transport Related,CDA,07/05/2015,02-10927,418.99,Arrow Specialised Transport Ltd,,,,,,,,,
Nottinghamshire County Council,1111/1001,Children and Young People,CYP,Transport Related,CDA,07/05/2015,02-10932,794.31,Arrow Specialised Transport Ltd,,,,,,,,,
Nottinghamshire County Council,1111/1001,Children and Young People,CYP,Transport Related,CDA,12/05/2015,02-11265,535.5,Fozcabs Newark Taxis,,,,,,,,,
Nottinghamshire County Council,1111/1001,Children and Young People,CYP,Transport Related,CDA,13/05/2015,02-11388,104.04,Central Cars Nottm Ltd,,,,,,,,,
Nottinghamshire County Council,1111/1001,Children and Young People,CYP,Transport Related,CDA,13/05/2015,02-11414,1584,AOT Coaches,,,,,,,,,
Nottinghamshire County Council,1111/1001,Children and Young People,CYP,Transport Related,CDA,13/05/2015,02-11415,1984.4,AOT Coaches,,,,,,,,,
Nottinghamshire County Council,1111/1001,Children and Young People,CYP,Transport Related,CDA,14/05/2015,02-11513,332.98,6 Five 2s,,,,,,,,,
Nottinghamshire County Council,1111/1001,Children and Young People,CYP,Transport Related,CDA,14/05/2015,02-11534,510,Sprays Transport Ltd,,,,,,,,,
Nottinghamshire County Council,1111/1001,Children and Young People,CYP,Transport Related,CDA,18/05/2015,02-11669,795.6,Galaxy Cabs,,,,,,,,,
Nottinghamshire County Council,1111/1001,Children and Young People,CYP,Transport Related,CDA,19/05/2015,02-15006,117.81,Bridges Transport Services,,,,,,,,,
Nottinghamshire County Council,1111/1001,Children and Young People,CYP,Transport Related,CDA,19/05/2015,02-15019,1820,Nottingham Minibuses & Coaches,,,,,,,,,
Nottinghamshire County Council,1111/1001,Children and Young People,CYP,Transport Related,CDA,19/05/2015,02-15020,1960,Nottingham Minibuses & Coaches,,,,,,,,,
Nottinghamshire County Council,1111/1001,Children and Young People,CYP,Transport Related,CDA,19/05/2015,02-15021,2057,Nottingham Minibuses & Coaches,,,,,,,,,
Nottinghamshire County Council,1111/1001,Children and Young People,CYP,Transport Related,CDA,19/05/2015,02-15022,3850,Nottingham Minibuses & Coaches,,,,,,,,,
Nottinghamshire County Council,1111/1001,Children and Young People,CYP,Transport Related,CDA,20/05/2015,02-15106,764.98,D G Private Hire Ltd,,,,,,,,,
Nottinghamshire County Council,1111/1001,Children and Young People,CYP,Transport Related,CDA,20/05/2015,02-15108,1057.6,D G Private Hire Ltd,,,,,,,,,
Nottinghamshire County Council,1111/1001,Children and Young People,CYP,Transport Related,CDA,20/05/2015,02-15119,575,D G Private Hire Ltd,,,,,,,,,
Nottinghamshire County Council,1111/1001,Children and Young People,CYP,Transport Related,CDA,21/05/2015,02-15276,255,D G Private Hire Ltd,,,,,,,,,
Nottinghamshire County Council,1111/1001,Children and Young People,CYP,Transport Related,CDA,22/05/2015,02-15383,1760,Abacus Cars,,,,,,,,,
Nottinghamshire County Council,1111/1001,Children and Young People,CYP,Transport Related,CDA,29/05/2015,02-15983,1950,Nottingham Minibuses & Coaches,,,,,,,,,
Nottinghamshire County Council,1111/1001,Children and Young People,CYP,Transport Related,CDA,29/05/2015,02-15984,2100,Nottingham Minibuses & Coaches,,,,,,,,,
Nottinghamshire County Council,1111/1001,Children and Young People,CYP,Transport Related,CDA,29/05/2015,02-15986,1875,Nottingham Minibuses & Coaches,,,,,,,,,
Nottinghamshire County Council,1111/1001,Children and Young People,CYP,Transport Related,CDA,29/05/2015,02-15987,1425,Nottingham Minibuses & Coaches,,,,,,,,,
Nottinghamshire County Council,1111/1001,Children and Young People,CYP,Transport Related,CDA,29/05/2015,02-15988,1950,Nottingham Minibuses & Coaches,,,,,,,,,
Nottinghamshire County Council,1111/1001,Children and Young People,CYP,Transport Related,CDA,29/05/2015,02-15989,2100,Nottingham Minibuses & Coaches,,,,,,,,,
Nottinghamshire County Council,1111/1001,Children and Young People,CYP,Transport Related,CDA,29/05/2015,02-15991,2805,Nottingham Minibuses & Coaches,,,,,,,,,
Nottinghamshire County Council,1111/1001,Children and Young People,CYP,Transport Related,CDA,29/05/2015,02-15992,5775,Nottingham Minibuses & Coaches,,,,,,,,,
Nottinghamshire County Council,1111/1001,Children and Young People,CYP,Transport Related,CDA,29/05/2015,02-15996,713.85,P & P Taxis,,,,,,,,,
Nottinghamshire County Council,1111/1001,Children and Young People,CYP,Supplies & Services,DAA,22/05/2015,02-11072,1184.89,Corona Energy Retail 4 Ltd,,,,,,,,,
Nottinghamshire County Council,1111/1001,Children and Young People,CYP,Supplies & Services,DAA,29/05/2015,02-11828,369,Lafarge Tarmac Trading Ltd (HO),,,,,,,,,
Nottinghamshire County Council,1111/1001,Children and Young People,CYP,Supplies & Services,DBA,06/05/2015,02-10429,181.93,Brake Bros Ltd,,,,,,,,,
Nottinghamshire County Council,1111/1001,Children and Young People,CYP,Supplies & Services,DBA,06/05/2015,02-10432,228.72,Brake Bros Ltd,,,,,,,,,
Nottinghamshire County Council,1111/1001,Children and Young People,CYP,Supplies & Services,DBA,06/05/2015,02-10434,189.26,Brake Bros Ltd,,,,,,,,,
Nottinghamshire County Council,1111/1001,Children and Young People,CYP,Supplies & Services,DBA,06/05/2015,02-10437,324.28,Brake Bros Ltd,,,,,,,,,
Nottinghamshire County Council,1111/1001,Children and Young People,CYP,Supplies & Services,DBA,06/05/2015,02-10442,145.19,Brake Bros Ltd,,,,,,,,,
Nottinghamshire County Council,1111/1001,Children and Young People,CYP,Supplies & Services,DBA,12/05/2015,02-11241,310.91,Hallam Country Fresh Foods Ltd,,,,,,,,,
Nottinghamshire County Council,1111/1001,Children and Young People,CYP,Supplies & Services,DBA,12/05/2015,02-11245,186.82,Hallam Country Fresh Foods Ltd,,,,,,,,,
Nottinghamshire County Council,1111/1001,Children and Young People,CYP,Supplies & Services,DBA,13/05/2015,02-11350,406.78,Brake Bros Ltd,,,,,,,,,
Nottinghamshire County Council,1111/1001,Children and Young People,CYP,Supplies & Services,DBA,14/05/2015,02-11467,317.81,Brake Bros Ltd,,,,,,,,,
Nottinghamshire County Council,1111/1001,Children and Young People,CYP,Supplies & Services,DBA,14/05/2015,02-11470,645.89,Brake Bros Ltd,,,,,,,,,
Nottinghamshire County Council,1111/1001,Children and Young People,CYP,Supplies & Services,DBA,14/05/2015,02-11473,805.54,Brake Bros Ltd,,,,,,,,,
Nottinghamshire County Council,1111/1001,Children and Young People,CYP,Supplies & Services,DBA,19/05/2015,02-15044,228.29,Hallam Country Fresh Foods Ltd,,,,,,,,,
Nottinghamshire County Council,1111/1001,Children and Young People,CYP,Supplies & Services,DBA,21/05/2015,02-15287,351.57,Brake Bros Ltd,,,,,,,,,
Nottinghamshire County Council,1111/1001,Children and Young People,CYP,Supplies & Services,DBA,21/05/2015,02-15289,246.57,Brake Bros Ltd,,,,,,,,,
Nottinghamshire County Council,1111/1001,Children and Young People,CYP,Supplies & Services,DBA,21/05/2015,02-15292,193.84,Brake Bros Ltd,,,,,,,,,
Nottinghamshire County Council,1111/1001,Children and Young People,CYP,Supplies & Services,DBA,21/05/2015,02-15295,339.6,Brake Bros Ltd,,,,,,,,,
Nottinghamshire County Council,1111/1001,Children and Young People,CYP,Supplies & Services,DBA,26/05/2015,02-15472,82.51,M Maloney Country Butchers & B Ltd,,,,,,,,,
Nottinghamshire County Council,1111/1001,Children and Young People,CYP,Supplies & Services,DBA,27/05/2015,02-15823,111.56,Brake Bros Ltd,,,,,,,,,
Nottinghamshire County Council,1111/1001,Children and Young People,CYP,Supplies & Services,DBA,27/05/2015,02-15826,90.8,Brake Bros Ltd,,,,,,,,,
Nottinghamshire County Council,1111/1001,Children and Young People,CYP,Supplies & Services,DBA,27/05/2015,02-15829,438.63,Brake Bros Ltd,,,,,,,,,
Nottinghamshire County Council,1111/1001,Children and Young People,CYP,Supplies & Services,DBA,27/05/2015,02-15832,80.74,M Maloney Country Butchers & B Ltd,,,,,,,,,
Nottinghamshire County Council,1111/1001,Children and Young People,CYP,Supplies & Services,DBA,27/05/2015,02-15836,92.62,M Maloney Country Butchers & B Ltd,,,,,,,,,
Nottinghamshire County Council,1111/1001,Children and Young People,CYP,Supplies & Services,DBA,27/05/2015,02-15852,264.35,Hallam Country Fresh Foods Ltd,,,,,,,,,
Nottinghamshire County Council,1111/1001,Children and Young People,CYP,Supplies & Services,DBA,27/05/2015,02-15856,71.15,M Maloney Country Butchers & B Ltd,,,,,,,,,
Nottinghamshire County Council,1111/1001,Children and Young People,CYP,Supplies & Services,DFA,08/05/2015,02-11015,562.68,Lantec Services Ltd,,,,,,,,,
Nottinghamshire County Council,1111/1001,Children and Young People,CYP,Supplies & Services,DHA,26/05/2015,02-15813,9000,Emery Construction Systems Ltd,,,,,,,,,
Nottinghamshire County Council,1111/1001,Children and Young People,CYP,Supplies & Services,DKA,01/05/2015,02-10033,7580,Sutton Community Academy,,,,,,,,,
Nottinghamshire County Council,1111/1001,Children and Young People,CYP,Supplies & Services,DKA,05/05/2015,02-10137,3800,Peafield Lane Academy,,,,,,,,,
Nottinghamshire County Council,1111/1001,Children and Young People,CYP,Supplies & Services,DKA,05/05/2015,02-10139,19610,Joseph Whittaker Academy,,,,,,,,,
Nottinghamshire County Council,1111/1001,Children and Young People,CYP,Supplies & Services,DKA,06/05/2015,02-10138,3800,Scawthorpe Castle Hills Primary Sch,,,,,,,,,
Nottinghamshire County Council,1111/1001,Children and Young People,CYP,Supplies & Services,DKA,07/05/2015,02-10614,39396,Forest Town Garibaldi Comp School,,,,,,,,,
Nottinghamshire County Council,1111/1001,Children and Young People,CYP,Supplies & Services,DKA,08/05/2015,02-11023,12660,The Manor Academy,,,,,,,,,
Nottinghamshire County Council,1111/1001,Children and Young People,CYP,Supplies & Services,DKA,13/05/2015,02-11360,3800,Friesland School,,,,,,,,,
Nottinghamshire County Council,1111/1001,Children and Young People,CYP,Supplies & Services,DKA,13/05/2015,02-11361,1890,The Fernwood School,,,,,,,,,
Nottinghamshire County Council,1111/1001,Children and Young People,CYP,Supplies & Services,DKA,15/05/2015,02-10445,1900,Aukland College Liverpool,,,,,,,,,
Nottinghamshire County Council,1111/1001,Children and Young People,CYP,Supplies & Services,DKA,19/05/2015,02-15035,630,Long Eaton School,,,,,,,,,
Nottinghamshire County Council,1111/1001,Children and Young People,CYP,Supplies & Services,DKA,21/05/2015,02-15298,3800,The Carlton Academy,,,,,,,,,
Nottinghamshire County Council,1111/1001,Children and Young People,CYP,Supplies & Services,DKA,21/05/2015,02-15351,2107,The Priory Catholic Voluntary Acade,,,,,,,,,
Nottinghamshire County Council,1111/1001,Children and Young People,CYP,Supplies & Services,DKA,21/05/2015,02-15352,2107,The Priory Catholic Voluntary Acade,,,,,,,,,
Nottinghamshire County Council,1111/1001,Children and Young People,CYP,Supplies & Services,DKA,21/05/2015,02-15353,702,The Brunts Academy,,,,,,,,,
Nottinghamshire County Council,1111/1001,Children and Young People,CYP,Supplies & Services,DKA,21/05/2015,02-15354,1405,The Brunts Academy,,,,,,,,,
Nottinghamshire County Council,1111/1001,Children and Young People,CYP,Supplies & Services,DKA,21/05/2015,02-15355,702,Barnby Road Academy Prim & Nursery,,,,,,,,,
Nottinghamshire County Council,1111/1001,Children and Young People,CYP,Supplies & Services,DKA,22/05/2015,02-15391,5700,Redhill Academy,,,,,,,,,
Nottinghamshire County Council,1111/1001,Children and Young People,CYP,Supplies & Services,DKA,28/05/2015,02-10134,1900,Derbyshire County Council,,,,,,,,,
Nottinghamshire County Council,1111/1001,Children and Young People,CYP,Supplies & Services,DKA,28/05/2015,02-11022,1900,Derby City Council,,,,,,,,,
Nottinghamshire County Council,1111/1001,Children and Young People,CYP,Supplies & Services,DKA,28/05/2015,02-11060,1900,Peafield Lane Academy,,,,,,,,,
Nottinghamshire County Council,1111/1001,Children and Young People,CYP,Supplies & Services,DKA,29/05/2015,02-10135,1260,Priory CE VA Primary School,,,,,,,,,
Nottinghamshire County Council,1111/1001,Children and Young People,CYP,Supplies & Services,DKA,29/05/2015,02-10136,5700,Outwood Academy Portland,,,,,,,,,
Nottinghamshire County Council,1111/1001,Children and Young People,CYP,Supplies & Services,DKA,29/05/2015,02-10584,1260,Holy Trinity Catholic Voluntary Aca,,,,,,,,,
Nottinghamshire County Council,1111/1001,Children and Young People,CYP,Supplies & Services,DKA,29/05/2015,02-10585,1900,The Greville Primary School,,,,,,,,,
Nottinghamshire County Council,1111/1001,Children and Young People,CYP,Third Party Payments,EBA,20/05/2015,02-15206,34307.13,Home Group Limited,,,,,,,,,
Nottinghamshire County Council,1111/1001,Children and Young People,CYP,Third Party Payments,EBA,20/05/2015,02-15209,1681.84,Metropolitan Housing Trust,,,,,,,,,
Nottinghamshire County Council,1111/1001,Children and Young People,CYP,Third Party Payments,EBA,20/05/2015,02-15212,20912.09,Newark Emmaus Trust,,,,,,,,,
Nottinghamshire County Council,1111/1001,Children and Young People,CYP,Third Party Payments,EBA,20/05/2015,02-15216,24162.47,Framework Housing Association,,,,,,,,,
Nottinghamshire County Council,1111/1001,Children and Young People,CYP,Third Party Payments,EBA,20/05/2015,02-15218,22406.75,Nottingham Community Housing,,,,,,,,,
Nottinghamshire County Council,1111/1001,Children and Young People,CYP,Third Party Payments,EBA,27/05/2015,02-15433,1488726.94,Transform Schools,,,,,,,,,
Nottinghamshire County Council,1111/1001,Children and Young People,CYP,Third Party Payments,EBA,27/05/2015,02-15436,235722.02,East Leake Schools Ltd,,,,,,,,,
Nottinghamshire County Council,1111/1001,Children and Young People,CYP,Third Party Payments,EBA,27/05/2015,02-15441,17717.82,East Leake Schools Ltd,,,,,,,,,
Nottinghamshire County Council,1111/1001,Children and Young People,CYP,Third Party Payments,EBA,27/05/2015,02-15445,40375.7,Transform Schools,,,,,,,,,
Nottinghamshire County Council,1111/1001,Children and Young People,CYP,Third Party Payments,EBA,27/05/2015,02-15465,15717.53,Transform Schools,,,,,,,,,
Nottinghamshire County Council,1111/1001,Children and Young People,CYP,Third Party Payments,EBA,27/05/2015,02-15466,13678.25,Transform Schools,,,,,,,,,
Nottinghamshire County Council,1111/1001,Children and Young People,CYP,Third Party Payments,EBA,27/05/2015,02-15467,1595.01,Transform Schools,,,,,,,,,
Nottinghamshire County Council,1111/1001,Children and Young People,CYP,Third Party Payments,EDA,01/05/2015,02-10036,2580,Archbishop Cranmer C of E Academy,,,,,,,,,
Nottinghamshire County Council,1111/1001,Children and Young People,CYP,Third Party Payments,EDA,01/05/2015,02-10037,13331,The Holgate Academy,,,,,,,,,
Nottinghamshire County Council,1111/1001,Children and Young People,CYP,Third Party Payments,EDA,01/05/2015,02-10038,6010,Hillside Academy,,,,,,,,,
Nottinghamshire County Council,1111/1001,Children and Young People,CYP,Third Party Payments,EDA,01/05/2015,02-10039,2666,Bishop Alexander LEAD Academy,,,,,,,,,
Nottinghamshire County Council,1111/1001,Children and Young People,CYP,Third Party Payments,EDA,01/05/2015,02-10047,5000,The Beech Academy,,,,,,,,,
Nottinghamshire County Council,1111/1001,Children and Young People,CYP,Third Party Payments,EDA,01/05/2015,02-10048,51403,The Beech Academy,,,,,,,,,
Nottinghamshire County Council,1111/1001,Children and Young People,CYP,Third Party Payments,EDA,01/05/2015,02-10072,17725,Kingston Park Academy,,,,,,,,,
Nottinghamshire County Council,1111/1001,Children and Young People,CYP,Third Party Payments,EDA,01/05/2015,02-10073,31238,Peafield Lane Academy,,,,,,,,,
Nottinghamshire County Council,1111/1001,Children and Young People,CYP,Third Party Payments,EDA,01/05/2015,02-10074,35396,Leamington Primary & Nursery Academ,,,,,,,,,
Nottinghamshire County Council,1111/1001,Children and Young People,CYP,Third Party Payments,EDA,01/05/2015,02-10075,12836,Birklands Primary (Academy),,,,,,,,,
Nottinghamshire County Council,1111/1001,Children and Young People,CYP,Third Party Payments,EDA,01/05/2015,02-10076,10680,Sunnyside Spencer Academy,,,,,,,,,
Nottinghamshire County Council,1111/1001,Children and Young People,CYP,Third Party Payments,EDA,01/05/2015,02-10077,42820,Norbridge Academy,,,,,,,,,
Nottinghamshire County Council,1111/1001,Children and Young People,CYP,Third Party Payments,EDA,01/05/2015,02-10078,37104,Sparken Hill Academy,,,,,,,,,
Nottinghamshire County Council,1111/1001,Children and Young People,CYP,Third Party Payments,EDA,01/05/2015,02-10079,20906,The Bramble Academy,,,,,,,,,
Nottinghamshire County Council,1111/1001,Children and Young People,CYP,Third Party Payments,EDA,01/05/2015,02-10080,5315,St Peters C of E Academy,,,,,,,,,
Nottinghamshire County Council,1111/1001,Children and Young People,CYP,Third Party Payments,EDA,01/05/2015,02-10081,40638,Sir Donald Bailey Academy,,,,,,,,,
Nottinghamshire County Council,1111/1001,Children and Young People,CYP,Third Party Payments,EDA,01/05/2015,02-10082,2173,Archbishop Cranmer C of E Academy,,,,,,,,,
Nottinghamshire County Council,1111/1001,Children and Young People,CYP,Third Party Payments,EDA,01/05/2015,02-10083,18552,Sacred Heart Catholic Voluntary Aca,,,,,,,,,
Nottinghamshire County Council,1111/1001,Children and Young People,CYP,Third Party Payments,EDA,01/05/2015,02-10084,28981,Holy Trinity Catholic Voluntary Aca,,,,,,,,,
Nottinghamshire County Council,1111/1001,Children and Young People,CYP,Third Party Payments,EDA,01/05/2015,02-10085,24068,St Patricks Catholic Voluntary Acad,,,,,,,,,
Nottinghamshire County Council,1111/1001,Children and Young People,CYP,Third Party Payments,EDA,01/05/2015,02-10086,36051,St Philip Neri with St Bede Vol Aca,,,,,,,,,
Nottinghamshire County Council,1111/1001,Children and Young People,CYP,Third Party Payments,EDA,01/05/2015,02-10087,22714,Arnbrook Primary Academy,,,,,,,,,
Nottinghamshire County Council,1111/1001,Children and Young People,CYP,Third Party Payments,EDA,01/05/2015,02-10088,33594,Hillside Academy,,,,,,,,,
Nottinghamshire County Council,1111/1001,Children and Young People,CYP,Third Party Payments,EDA,01/05/2015,02-10089,29583,The Flying High Academy,,,,,,,,,
Nottinghamshire County Council,1111/1001,Children and Young People,CYP,Third Party Payments,EDA,01/05/2015,02-10090,35825,Serlby Park Academy,,,,,,,,,
Nottinghamshire County Council,1111/1001,Children and Young People,CYP,Third Party Payments,EDA,01/05/2015,02-10091,51520,The Candleby Lane Academy,,,,,,,,,
Nottinghamshire County Council,1111/1001,Children and Young People,CYP,Third Party Payments,EDA,01/05/2015,02-10092,39135,Barnby Road Academy Prim & Nursery,,,,,,,,,
Nottinghamshire County Council,1111/1001,Children and Young People,CYP,Third Party Payments,EDA,01/05/2015,02-10093,18101,Tuxford Primary Academy,,,,,,,,,
Nottinghamshire County Council,1111/1001,Children and Young People,CYP,Third Party Payments,EDA,01/05/2015,02-10094,28580,Bishop Alexander LEAD Academy,,,,,,,,,
Nottinghamshire County Council,1111/1001,Children and Young People,CYP,Third Party Payments,EDA,01/05/2015,02-10095,25644,Mansfield Primary Academy,,,,,,,,,
Nottinghamshire County Council,1111/1001,Children and Young People,CYP,Third Party Payments,EDA,06/05/2015,02-10570,1666,Foxwood Academy,,,,,,,,,
Nottinghamshire County Council,1111/1001,Children and Young People,CYP,Third Party Payments,EDA,06/05/2015,02-10571,81710,Foxwood Academy,,,,,,,,,
Nottinghamshire County Council,1111/1001,Children and Young People,CYP,Third Party Payments,EDA,06/05/2015,02-10572,5000,The Beech Academy,,,,,,,,,
Nottinghamshire County Council,1111/1001,Children and Young People,CYP,Third Party Payments,EDA,06/05/2015,02-10573,51403,The Beech Academy,,,,,,,,,
Nottinghamshire County Council,1111/1001,Children and Young People,CYP,Third Party Payments,EDA,07/05/2015,02-10611,32391,Wainwright Primary Academy,,,,,,,,,
Nottinghamshire County Council,1111/1001,Children and Young People,CYP,Third Party Payments,EDA,07/05/2015,02-10820,10987,St Philip Neri with St Bede Vol Aca,,,,,,,,,
Nottinghamshire County Council,1111/1001,Children and Young People,CYP,Third Party Payments,EDA,07/05/2015,02-10821,4648,Arnold Hill Academy,,,,,,,,,
Nottinghamshire County Council,1111/1001,Children and Young People,CYP,Third Party Payments,EDA,07/05/2015,02-10822,10987,St Philip Neri with St Bede Vol Aca,,,,,,,,,
Nottinghamshire County Council,1111/1001,Children and Young People,CYP,Third Party Payments,EDA,07/05/2015,02-10824,4648,Ashfield Academy,,,,,,,,,
Nottinghamshire County Council,1111/1001,Children and Young People,CYP,Third Party Payments,EDA,07/05/2015,02-10825,6339,Ashfield Academy,,,,,,,,,
Nottinghamshire County Council,1111/1001,Children and Young People,CYP,Third Party Payments,EDA,07/05/2015,02-10826,4648,Quarrydale Academy,,,,,,,,,
Nottinghamshire County Council,1111/1001,Children and Young People,CYP,Third Party Payments,EDA,07/05/2015,02-10827,3997,The Brunts Academy,,,,,,,,,
Nottinghamshire County Council,1111/1001,Children and Young People,CYP,Third Party Payments,EDA,07/05/2015,02-10829,4648,Ashfield Academy,,,,,,,,,
Nottinghamshire County Council,1111/1001,Children and Young People,CYP,Third Party Payments,EDA,07/05/2015,02-10837,19976,The Becket Catholic Voluntary Acade,,,,,,,,,
Nottinghamshire County Council,1111/1001,Children and Young People,CYP,Third Party Payments,EDA,07/05/2015,02-10838,4648,The Becket Catholic Voluntary Acade,,,,,,,,,
Nottinghamshire County Council,1111/1001,Children and Young People,CYP,Third Party Payments,EDA,07/05/2015,02-10839,10987,St Edmund Campion Voluntary Academy,,,,,,,,,
Nottinghamshire County Council,1111/1001,Children and Young People,CYP,Third Party Payments,EDA,07/05/2015,02-10840,4648,The Brunts Academy,,,,,,,,,
Nottinghamshire County Council,1111/1001,Children and Young People,CYP,Third Party Payments,EDA,07/05/2015,02-10841,4648,The Brunts Academy,,,,,,,,,
Nottinghamshire County Council,1111/1001,Children and Young People,CYP,Third Party Payments,EDA,07/05/2015,02-10842,10987,The Brunts Academy,,,,,,,,,
Nottinghamshire County Council,1111/1001,Children and Young People,CYP,Third Party Payments,EDA,07/05/2015,02-10843,4648,The Brunts Academy,,,,,,,,,
Nottinghamshire County Council,1111/1001,Children and Young People,CYP,Third Party Payments,EDA,07/05/2015,02-10844,10987,The Brunts Academy,,,,,,,,,
Nottinghamshire County Council,1111/1001,Children and Young People,CYP,Third Party Payments,EDA,07/05/2015,02-10845,10987,The Brunts Academy,,,,,,,,,
Nottinghamshire County Council,1111/1001,Children and Young People,CYP,Third Party Payments,EDA,07/05/2015,02-10846,15979,The Brunts Academy,,,,,,,,,
Nottinghamshire County Council,1111/1001,Children and Young People,CYP,Third Party Payments,EDA,07/05/2015,02-10848,15979,The Brunts Academy,,,,,,,,,
Nottinghamshire County Council,1111/1001,Children and Young People,CYP,Third Party Payments,EDA,07/05/2015,02-10849,10987,The Brunts Academy,,,,,,,,,
Nottinghamshire County Council,1111/1001,Children and Young People,CYP,Third Party Payments,EDA,07/05/2015,02-10850,4648,The Brunts Academy,,,,,,,,,
Nottinghamshire County Council,1111/1001,Children and Young People,CYP,Third Party Payments,EDA,07/05/2015,02-10851,10987,The Brunts Academy,,,,,,,,,
Nottinghamshire County Council,1111/1001,Children and Young People,CYP,Third Party Payments,EDA,07/05/2015,02-10852,10987,The Brunts Academy,,,,,,,,,
Nottinghamshire County Council,1111/1001,Children and Young People,CYP,Third Party Payments,EDA,07/05/2015,02-10855,10987,The Candleby Lane Academy,,,,,,,,,
Nottinghamshire County Council,1111/1001,Children and Young People,CYP,Third Party Payments,EDA,07/05/2015,02-10856,15979,The Candleby Lane Academy,,,,,,,,,
Nottinghamshire County Council,1111/1001,Children and Young People,CYP,Third Party Payments,EDA,07/05/2015,02-10857,10987,The Candleby Lane Academy,,,,,,,,,
Nottinghamshire County Council,1111/1001,Children and Young People,CYP,Third Party Payments,EDA,07/05/2015,02-10858,8240,Magnus Church of England Academy,,,,,,,,,
Nottinghamshire County Council,1111/1001,Children and Young People,CYP,Third Party Payments,EDA,07/05/2015,02-10859,4648,South Nottinghamshire Academy,,,,,,,,,
Nottinghamshire County Council,1111/1001,Children and Young People,CYP,Third Party Payments,EDA,07/05/2015,02-10860,13099,St Josephs Catholic Primary School,,,,,,,,,
Nottinghamshire County Council,1111/1001,Children and Young People,CYP,Third Party Payments,EDA,07/05/2015,02-10862,19976,Tuxford Academy,,,,,,,,,
Nottinghamshire County Council,1111/1001,Children and Young People,CYP,Third Party Payments,EDA,07/05/2015,02-10863,10987,Tuxford Academy,,,,,,,,,
Nottinghamshire County Council,1111/1001,Children and Young People,CYP,Third Party Payments,EDA,07/05/2015,02-10864,4648,Tuxford Academy,,,,,,,,,
Nottinghamshire County Council,1111/1001,Children and Young People,CYP,Third Party Payments,EDA,07/05/2015,02-10865,4648,The Brunts Academy,,,,,,,,,
Nottinghamshire County Council,1111/1001,Children and Young People,CYP,Third Party Payments,EDA,07/05/2015,02-10866,10987,The Priory Catholic Voluntary Acade,,,,,,,,,
Nottinghamshire County Council,1111/1001,Children and Young People,CYP,Third Party Payments,EDA,07/05/2015,02-10867,10987,Samworth Academy,,,,,,,,,
Nottinghamshire County Council,1111/1001,Children and Young People,CYP,Third Party Payments,EDA,07/05/2015,02-10868,10987,Kirkby College,,,,,,,,,
Nottinghamshire County Council,1111/1001,Children and Young People,CYP,Third Party Payments,EDA,07/05/2015,02-10869,10987,Magnus Church of England Academy,,,,,,,,,
Nottinghamshire County Council,1111/1001,Children and Young People,CYP,Third Party Payments,EDA,07/05/2015,02-10871,19976,Redhill Academy,,,,,,,,,
Nottinghamshire County Council,1111/1001,Children and Young People,CYP,Third Party Payments,EDA,07/05/2015,02-10872,4648,Redhill Academy,,,,,,,,,
Nottinghamshire County Council,1111/1001,Children and Young People,CYP,Third Party Payments,EDA,07/05/2015,02-10873,10987,Redhill Academy,,,,,,,,,
Nottinghamshire County Council,1111/1001,Children and Young People,CYP,Third Party Payments,EDA,07/05/2015,02-10874,10987,Redhill Academy,,,,,,,,,
Nottinghamshire County Council,1111/1001,Children and Young People,CYP,Third Party Payments,EDA,07/05/2015,02-10875,10987,Retford Oaks Academy,,,,,,,,,
Nottinghamshire County Council,1111/1001,Children and Young People,CYP,Third Party Payments,EDA,07/05/2015,02-10880,10987,Serlby Park Academy,,,,,,,,,
Nottinghamshire County Council,1111/1001,Children and Young People,CYP,Third Party Payments,EDA,07/05/2015,02-10881,4424,Tuxford Academy,,,,,,,,,
Nottinghamshire County Council,1111/1001,Children and Young People,CYP,Third Party Payments,EDA,07/05/2015,02-10882,10987,Tuxford Academy,,,,,,,,,
Nottinghamshire County Council,1111/1001,Children and Young People,CYP,Third Party Payments,EDA,07/05/2015,02-10883,10987,Tuxford Academy,,,,,,,,,
Nottinghamshire County Council,1111/1001,Children and Young People,CYP,Third Party Payments,EDA,07/05/2015,02-10884,10987,West Bridgford Academy,,,,,,,,,
Nottinghamshire County Council,1111/1001,Children and Young People,CYP,Third Party Payments,EDA,08/05/2015,02-11020,10987,Wainwright Primary Academy,,,,,,,,,
Nottinghamshire County Council,1111/1001,Children and Young People,CYP,Third Party Payments,EDA,08/05/2015,02-11021,10987,Wainwright Primary Academy,,,,,,,,,
Nottinghamshire County Council,1111/1001,Children and Young People,CYP,Third Party Payments,EDA,14/05/2015,02-10861,10987,Leverton C Of E Academy,,,,,,,,,
Nottinghamshire County Council,1111/1001,Children and Young People,CYP,Third Party Payments,EDA,19/05/2015,02-15036,7024,The Manor Academy,,,,,,,,,
Nottinghamshire County Council,1111/1001,Children and Young People,CYP,Third Party Payments,EDA,20/05/2015,02-15068,36632.5,Christ The King Catholic Voluntary,,,,,,,,,
Nottinghamshire County Council,1111/1001,Children and Young People,CYP,Third Party Payments,EDA,20/05/2015,02-15069,42752.5,Christ The King Catholic Voluntary,,,,,,,,,
Nottinghamshire County Council,1111/1001,Children and Young People,CYP,Third Party Payments,EDA,20/05/2015,02-15070,42752.5,Arnold Hill Academy,,,,,,,,,
Nottinghamshire County Council,1111/1001,Children and Young People,CYP,Third Party Payments,EDA,20/05/2015,02-15071,42752.5,Carlton Le Willows Academy,,,,,,,,,
Nottinghamshire County Council,1111/1001,Children and Young People,CYP,Third Party Payments,EDA,20/05/2015,02-15072,36632.5,Carlton Le Willows Academy,,,,,,,,,
Nottinghamshire County Council,1111/1001,Children and Young People,CYP,Third Party Payments,EDA,20/05/2015,02-15073,36632.5,Arnold Hill Academy,,,,,,,,,
Nottinghamshire County Council,1111/1001,Children and Young People,CYP,Third Party Payments,EDA,20/05/2015,02-15074,46531,Toothill Academy,,,,,,,,,
Nottinghamshire County Council,1111/1001,Children and Young People,CYP,Third Party Payments,EDA,20/05/2015,02-15075,49854,Toothill Academy,,,,,,,,,
Nottinghamshire County Council,1111/1001,Children and Young People,CYP,Third Party Payments,EDA,20/05/2015,02-15076,44332,Joseph Whittaker Academy,,,,,,,,,
Nottinghamshire County Council,1111/1001,Children and Young People,CYP,Third Party Payments,EDA,20/05/2015,02-15077,40750,Dukeries Academy,,,,,,,,,
Nottinghamshire County Council,1111/1001,Children and Young People,CYP,Third Party Payments,EDA,20/05/2015,02-15078,15300,Dukeries Academy,,,,,,,,,
Nottinghamshire County Council,1111/1001,Children and Young People,CYP,Third Party Payments,EDA,20/05/2015,02-15079,42833,Serlby Park Academy,,,,,,,,,
Nottinghamshire County Council,1111/1001,Children and Young People,CYP,Third Party Payments,EDA,20/05/2015,02-15080,48674,Serlby Park Academy,,,,,,,,,
Nottinghamshire County Council,1111/1001,Children and Young People,CYP,Third Party Payments,EDA,20/05/2015,02-15198,20000,Toothill Academy,,,,,,,,,
Nottinghamshire County Council,1111/1001,Children and Young People,CYP,Third Party Payments,EDA,20/05/2015,02-15203,22800,Joseph Whittaker Academy,,,,,,,,,
Nottinghamshire County Council,1111/1001,Children and Young People,CYP,Third Party Payments,EDA,20/05/2015,02-15204,15100,Dukeries Academy,,,,,,,,,
Nottinghamshire County Council,1111/1001,Children and Young People,CYP,Third Party Payments,EDA,20/05/2015,02-15205,21660,St Philip Neri with St Bede Vol Aca,,,,,,,,,
Nottinghamshire County Council,1111/1001,Children and Young People,CYP,Third Party Payments,EDA,20/05/2015,02-15237,39563,The Minster School,,,,,,,,,
Nottinghamshire County Council,1111/1001,Children and Young People,CYP,Third Party Payments,EDA,20/05/2015,02-15238,56229,The Minster School,,,,,,,,,
Nottinghamshire County Council,1111/1001,Children and Young People,CYP,Third Party Payments,EDA,21/05/2015,02-15242,23630,The South Wolds Academy & Sixth For,,,,,,,,,
Nottinghamshire County Council,1111/1001,Children and Young People,CYP,Third Party Payments,EDA,21/05/2015,02-15245,2756,The Brunts Academy,,,,,,,,,
Nottinghamshire County Council,1111/1001,Children and Young People,CYP,Third Party Payments,EDA,21/05/2015,02-15246,38630,West Bridgford Academy,,,,,,,,,
Nottinghamshire County Council,1111/1001,Children and Young People,CYP,Third Party Payments,EDA,21/05/2015,02-15247,36647,West Bridgford Academy,,,,,,,,,
Nottinghamshire County Council,1111/1001,Children and Young People,CYP,Third Party Payments,EDA,21/05/2015,02-15248,38630,South Nottinghamshire Academy,,,,,,,,,
Nottinghamshire County Council,1111/1001,Children and Young People,CYP,Third Party Payments,EDA,21/05/2015,02-15249,36647,South Nottinghamshire Academy,,,,,,,,,
Nottinghamshire County Council,1111/1001,Children and Young People,CYP,Third Party Payments,EDA,21/05/2015,02-15250,36647,The South Wolds Academy & Sixth For,,,,,,,,,
Nottinghamshire County Council,1111/1001,Children and Young People,CYP,Third Party Payments,EDA,21/05/2015,02-15251,25240,Joseph Whittaker Academy,,,,,,,,,
Nottinghamshire County Council,1111/1001,Children and Young People,CYP,Third Party Payments,EDA,21/05/2015,02-15252,15488,Dukeries Academy,,,,,,,,,
Nottinghamshire County Council,1111/1001,Children and Young People,CYP,Third Party Payments,EDA,21/05/2015,02-15253,38630,The Becket Catholic Voluntary Acade,,,,,,,,,
Nottinghamshire County Council,1111/1001,Children and Young People,CYP,Third Party Payments,EDA,21/05/2015,02-15254,36647,The Becket Catholic Voluntary Acade,,,,,,,,,
Nottinghamshire County Council,1111/1001,Children and Young People,CYP,Third Party Payments,EDA,21/05/2015,02-15255,56945,Magnus Church of England Academy,,,,,,,,,
Nottinghamshire County Council,1111/1001,Children and Young People,CYP,Third Party Payments,EDA,21/05/2015,02-15256,94483,Magnus Church of England Academy,,,,,,,,,
Nottinghamshire County Council,1111/1001,Children and Young People,CYP,Third Party Payments,EDA,22/05/2015,02-15418,65016,Tuxford Academy,,,,,,,,,
Nottinghamshire County Council,1111/1001,Children and Young People,CYP,Third Party Payments,EDA,22/05/2015,02-15419,66408.5,Kirkby College,,,,,,,,,
Nottinghamshire County Council,1111/1001,Children and Young People,CYP,Third Party Payments,EDA,22/05/2015,02-15420,67841.5,Kirkby College,,,,,,,,,
Nottinghamshire County Council,1111/1001,Children and Young People,CYP,Third Party Payments,EDA,26/05/2015,02-15424,66408.5,Kirkby College,,,,,,,,,
Nottinghamshire County Council,1111/1001,Children and Young People,CYP,Third Party Payments,EDA,26/05/2015,02-15425,62666,Tuxford Academy,,,,,,,,,
Nottinghamshire County Council,1111/1001,Children and Young People,CYP,Third Party Payments,EDA,26/05/2015,02-15426,62666,Tuxford Academy,,,,,,,,,
Nottinghamshire County Council,1111/1001,Children and Young People,CYP,Third Party Payments,EDA,26/05/2015,02-15427,65016,Tuxford Academy,,,,,,,,,
Nottinghamshire County Council,1111/1001,Children and Young People,CYP,Third Party Payments,EDA,26/05/2015,02-15471,67841.5,Kirkby College,,,,,,,,,
Nottinghamshire County Council,1111/1001,Children and Young People,CYP,Third Party Payments,EDA,29/05/2015,02-10823,19976,Outwood Academy Portland,,,,,,,,,
Nottinghamshire County Council,1111/1001,Children and Young People,CYP,Third Party Payments,EDA,29/05/2015,02-10828,10987,Outwood Academy Portland,,,,,,,,,
Nottinghamshire County Council,1111/1001,Children and Young People,CYP,Third Party Payments,EDA,29/05/2015,02-10830,8240,Alderman White School,,,,,,,,,
Nottinghamshire County Council,1111/1001,Children and Young People,CYP,Third Party Payments,EDA,29/05/2015,02-10831,4648,Alderman White School,,,,,,,,,
Nottinghamshire County Council,1111/1001,Children and Young People,CYP,Third Party Payments,EDA,29/05/2015,02-10832,10987,Alderman White School,,,,,,,,,
Nottinghamshire County Council,1111/1001,Children and Young People,CYP,Third Party Payments,EDA,29/05/2015,02-10833,10987,Alderman White School,,,,,,,,,
Nottinghamshire County Council,1111/1001,Children and Young People,CYP,Third Party Payments,EDA,29/05/2015,02-10834,4648,All Saints Catholic Voluntary Acade,,,,,,,,,
Nottinghamshire County Council,1111/1001,Children and Young People,CYP,Third Party Payments,EDA,29/05/2015,02-10835,10987,All Saints Catholic Voluntary Acade,,,,,,,,,
Nottinghamshire County Council,1111/1001,Children and Young People,CYP,Third Party Payments,EDA,29/05/2015,02-10836,10987,All Saints Catholic Voluntary Acade,,,,,,,,,
Nottinghamshire County Council,1111/1001,Children and Young People,CYP,Third Party Payments,EDA,29/05/2015,02-10847,4648,Alderman White School,,,,,,,,,
Nottinghamshire County Council,1111/1001,Children and Young People,CYP,Third Party Payments,EDA,29/05/2015,02-10853,10987,Mansfield Primary Academy,,,,,,,,,
Nottinghamshire County Council,1111/1001,Children and Young People,CYP,Third Party Payments,EDA,29/05/2015,02-10854,10987,Mansfield Primary Academy,,,,,,,,,
Nottinghamshire County Council,1111/1001,Children and Young People,CYP,Third Party Payments,EDA,29/05/2015,02-10870,10987,The Flying High Academy,,,,,,,,,
Nottinghamshire County Council,1111/1001,Children and Young People,CYP,Third Party Payments,EDA,29/05/2015,02-10876,10987,Rushcliffe School Academy Trust,,,,,,,,,
Nottinghamshire County Council,1111/1001,Children and Young People,CYP,Third Party Payments,EDA,29/05/2015,02-10877,10987,Rushcliffe School Academy Trust,,,,,,,,,
Nottinghamshire County Council,1111/1001,Children and Young People,CYP,Third Party Payments,EDA,29/05/2015,02-10878,10987,Rushcliffe School Academy Trust,,,,,,,,,
Nottinghamshire County Council,1111/1001,Children and Young People,CYP,Third Party Payments,EDA,29/05/2015,02-10879,15979,Rushcliffe School Academy Trust,,,,,,,,,
Nottinghamshire County Council,1111/1001,Children and Young People,CYP,Third Party Payments,EFA,01/05/2015,02-16092,960,Hill Holt Wood,,,,,,,,,
Nottinghamshire County Council,1111/1001,Children and Young People,CYP,Third Party Payments,EGA,01/05/2015,02-10062,14322.42,Young Rascals Day Nursery,,,,,,,,,
Nottinghamshire County Council,1111/1001,Children and Young People,CYP,Third Party Payments,EGA,01/05/2015,02-10063,16340.94,Coteswood House School,,,,,,,,,
Nottinghamshire County Council,1111/1001,Children and Young People,CYP,Third Party Payments,EGA,05/05/2015,02-10146,26387.42,Whitehouse Day Nursery,,,,,,,,,
Nottinghamshire County Council,1111/1001,Children and Young People,CYP,Third Party Payments,EGA,05/05/2015,02-10147,641.34,[Redacted],,,,,,,,,
Nottinghamshire County Council,1111/1001,Children and Young People,CYP,Third Party Payments,EGA,05/05/2015,02-10148,1282.68,Leo's Childrens Nurseries Ltd,,,,,,,,,
Nottinghamshire County Council,1111/1001,Children and Young People,CYP,Third Party Payments,EGA,05/05/2015,02-10149,22912.68,Leos Childrens Nurseries Ltd,,,,,,,,,
Nottinghamshire County Council,1111/1001,Children and Young People,CYP,Third Party Payments,EGA,05/05/2015,02-10150,1282.68,Hucknall Day Nursery,,,,,,,,,
Nottinghamshire County Council,1111/1001,Children and Young People,CYP,Third Party Payments,EGA,05/05/2015,02-10151,5541.9,Fledglings Playgroup,,,,,,,,,
Nottinghamshire County Council,1111/1001,Children and Young People,CYP,Third Party Payments,EGA,05/05/2015,02-10153,1425.06,Chetwynd Barracks Pre-School,,,,,,,,,
Nottinghamshire County Council,1111/1001,Children and Young People,CYP,Third Party Payments,EGA,05/05/2015,02-10154,23229.36,Cherubs Childrens Centre Pleasley,,,,,,,,,
Nottinghamshire County Council,1111/1001,Children and Young People,CYP,Third Party Payments,EGA,05/05/2015,02-10155,29993.8,Alphabet House Day Nursery Worksop,,,,,,,,,
Nottinghamshire County Council,1111/1001,Children and Young People,CYP,Third Party Payments,EGA,05/05/2015,02-10156,1282.68,Brooklyn Day Nursery,,,,,,,,,
Nottinghamshire County Council,1111/1001,Children and Young People,CYP,Third Party Payments,EGA,05/05/2015,02-10157,641.34,[Redacted],,,,,,,,,
Nottinghamshire County Council,1111/1001,Children and Young People,CYP,Third Party Payments,EGA,06/05/2015,02-16091,64024.99,Esland North Ltd,,,,,,,,,
Nottinghamshire County Council,1111/1001,Children and Young People,CYP,Third Party Payments,EGA,06/05/2015,02-16093,18279.54,Team Fostering,,,,,,,,,
Nottinghamshire County Council,1111/1001,Children and Young People,CYP,Third Party Payments,EGA,06/05/2015,02-16107,1130074.33,Nottinghamshire Healthcare Nhs Trus,,,,,,,,,
Nottinghamshire County Council,1111/1001,Children and Young People,CYP,Third Party Payments,EGA,07/05/2015,02-10591,1924.02,Toddlers University (Bee),,,,,,,,,
Nottinghamshire County Council,1111/1001,Children and Young People,CYP,Third Party Payments,EGA,07/05/2015,02-10592,1282.68,The Learning Tree Day Nursery 2,,,,,,,,,
Nottinghamshire County Council,1111/1001,Children and Young People,CYP,Third Party Payments,EGA,07/05/2015,02-10593,570.02,[Redacted],,,,,,,,,
Nottinghamshire County Council,1111/1001,Children and Young People,CYP,Third Party Payments,EGA,07/05/2015,02-10594,641.34,[Redacted],,,,,,,,,
Nottinghamshire County Council,1111/1001,Children and Young People,CYP,Third Party Payments,EGA,07/05/2015,02-10623,1924.02,Ashfield Plaza Day Nursery,,,,,,,,,
Nottinghamshire County Council,1111/1001,Children and Young People,CYP,Third Party Payments,EGA,07/05/2015,02-10624,5130.72,Fun Farm Day Nursery,,,,,,,,,
Nottinghamshire County Council,1111/1001,Children and Young People,CYP,Third Party Payments,EGA,11/05/2015,02-11075,8629.53,Grosvenor House Day Nursery,,,,,,,,,
Nottinghamshire County Council,1111/1001,Children and Young People,CYP,Third Party Payments,EGA,11/05/2015,02-11076,674.34,[Redacted],,,,,,,,,
Nottinghamshire County Council,1111/1001,Children and Young People,CYP,Third Party Payments,EGA,11/05/2015,02-11077,1282.68,Childrens Corner Day Nursery,,,,,,,,,
Nottinghamshire County Council,1111/1001,Children and Young People,CYP,Third Party Payments,EGA,11/05/2015,02-11078,13681.08,Awsworth Schoolhouse Day Nursery,,,,,,,,,
Nottinghamshire County Council,1111/1001,Children and Young People,CYP,Third Party Payments,EGA,12/05/2015,02-11239,570.02,[Redacted],,,,,,,,,
Nottinghamshire County Council,1111/1001,Children and Young People,CYP,Third Party Payments,EGA,12/05/2015,02-11240,4481.02,Speckled Frogs Pre-School,,,,,,,,,
Nottinghamshire County Council,1111/1001,Children and Young People,CYP,Third Party Payments,EGA,12/05/2015,02-11261,367.2,Fozcabs Newark Taxis,,,,,,,,,
Nottinghamshire County Council,1111/1001,Children and Young People,CYP,Third Party Payments,EGA,14/05/2015,02-11464,1591.38,Sues Childminding Services,,,,,,,,,
Nottinghamshire County Council,1111/1001,Children and Young People,CYP,Third Party Payments,EGA,21/05/2015,02-15356,11329.92,Carousel Under 5'S Playgroup,,,,,,,,,
Nottinghamshire County Council,1111/1001,Children and Young People,CYP,Third Party Payments,EGA,21/05/2015,02-15357,641.34,Amandas Birth - 11 Childcare,,,,,,,,,
Nottinghamshire County Council,1111/1001,Children and Young People,CYP,Third Party Payments,EGA,21/05/2015,02-15358,6333.73,Elston Pre-school Playgroup Newark,,,,,,,,,
Nottinghamshire County Council,1111/1001,Children and Young People,CYP,Third Party Payments,EGA,22/05/2015,02-15416,3657.78,Stepping Stones II,,,,,,,,,
Nottinghamshire County Council,1111/1001,Children and Young People,CYP,Third Party Payments,EGA,22/05/2015,02-15422,630,Alphabet House Day Nursery,,,,,,,,,
Nottinghamshire County Council,1111/1001,Children and Young People,CYP,Third Party Payments,EGA,22/05/2015,02-15423,756,Cared 4 Ltd,,,,,,,,,
Nottinghamshire County Council,1111/1001,Children and Young People,CYP,Third Party Payments,EGA,26/05/2015,02-15428,546,Papermoon Day Nursery Sutton In Ash,,,,,,,,,
Nottinghamshire County Council,1111/1001,Children and Young People,CYP,Third Party Payments,EGA,26/05/2015,02-15429,1512,Alphabet House Day Nursery WB,,,,,,,,,
Nottinghamshire County Council,1111/1001,Children and Young People,CYP,Third Party Payments,EGA,26/05/2015,02-15430,896,The Learning Tree Nursery,,,,,,,,,
Nottinghamshire County Council,1111/1001,Children and Young People,CYP,Third Party Payments,EGA,29/05/2015,02-10152,6840.54,Dragonflies Day Nursery ltd,,,,,,,,,
Nottinghamshire County Council,1111/1001,Children and Young People,CYP,Support Services,HAA,05/05/2015,02-10199,935,All Wayz Travel,,,,,,,,,
Nottinghamshire County Council,1111/1001,Children and Young People,CYP,Support Services,HAA,05/05/2015,02-10200,770,All Wayz Travel,,,,,,,,,
Nottinghamshire County Council,1111/1001,Children and Young People,CYP,Support Services,HAA,05/05/2015,02-10211,758.9,Arrow Specialised Transport Ltd,,,,,,,,,
Nottinghamshire County Council,1111/1001,Children and Young People,CYP,Support Services,HAA,05/05/2015,02-10229,640.92,Fozcabs Newark Taxis,,,,,,,,,
Nottinghamshire County Council,1111/1001,Children and Young People,CYP,Support Services,HAA,05/05/2015,02-10230,785.4,Fozcabs Newark Taxis,,,,,,,,,
Nottinghamshire County Council,1111/1001,Children and Young People,CYP,Support Services,HAA,05/05/2015,02-10241,990,Nottingham Minibuses & Coaches,,,,,,,,,
Nottinghamshire County Council,1111/1001,Children and Young People,CYP,Support Services,HAA,05/05/2015,02-10242,1650,Nottingham Minibuses & Coaches,,,,,,,,,
Nottinghamshire County Council,1111/1001,Children and Young People,CYP,Support Services,HAA,05/05/2015,02-10251,1050,Travel Liner,,,,,,,,,
Nottinghamshire County Council,1111/1001,Children and Young People,CYP,Support Services,HAA,06/05/2015,02-10496,334.73,Bridges Transport Services,,,,,,,,,
Nottinghamshire County Council,1111/1001,Children and Young People,CYP,Support Services,HAA,06/05/2015,02-10508,1323.96,Sprays Transport Ltd,,,,,,,,,
Nottinghamshire County Council,1111/1001,Children and Young People,CYP,Support Services,HAA,06/05/2015,02-10528,880,P & P Taxis,,,,,,,,,
Nottinghamshire County Council,1111/1001,Children and Young People,CYP,Support Services,HAA,06/05/2015,02-10532,1597.4,Freeway Coaches Ltd,,,,,,,,,
Nottinghamshire County Council,1111/1001,Children and Young People,CYP,Support Services,HAA,06/05/2015,02-10533,4185.6,Freeway Coaches Ltd,,,,,,,,,
Nottinghamshire County Council,1111/1001,Children and Young People,CYP,Support Services,HAA,06/05/2015,02-10534,1599.68,Freeway Coaches Ltd,,,,,,,,,
Nottinghamshire County Council,1111/1001,Children and Young People,CYP,Support Services,HAA,06/05/2015,02-10535,1430.55,Freeway Coaches Ltd,,,,,,,,,
Nottinghamshire County Council,1111/1001,Children and Young People,CYP,Support Services,HAA,06/05/2015,02-10536,874.4,Freeway Coaches Ltd,,,,,,,,,
Nottinghamshire County Council,1111/1001,Children and Young People,CYP,Support Services,HAA,06/05/2015,02-10537,1375,Freeway Coaches Ltd,,,,,,,,,
Nottinghamshire County Council,1111/1001,Children and Young People,CYP,Support Services,HAA,06/05/2015,02-10540,1471.2,Nottingham Coaches,,,,,,,,,
Nottinghamshire County Council,1111/1001,Children and Young People,CYP,Support Services,HAA,06/05/2015,02-10541,1529,Nottingham Coaches,,,,,,,,,
Nottinghamshire County Council,1111/1001,Children and Young People,CYP,Support Services,HAA,06/05/2015,02-10542,1586,Nottingham Coaches,,,,,,,,,
Nottinghamshire County Council,1111/1001,Children and Young People,CYP,Support Services,HAA,06/05/2015,02-10543,1634.5,Nottingham Coaches,,,,,,,,,
Nottinghamshire County Council,1111/1001,Children and Young People,CYP,Support Services,HAA,07/05/2015,02-10890,1396.4,Sharpes Of Nottingham,,,,,,,,,
Nottinghamshire County Council,1111/1001,Children and Young People,CYP,Support Services,HAA,07/05/2015,02-10893,1685.2,Sharpes Of Nottingham,,,,,,,,,
Nottinghamshire County Council,1111/1001,Children and Young People,CYP,Support Services,HAA,07/05/2015,02-10894,1584.6,Sharpes Of Nottingham,,,,,,,,,
Nottinghamshire County Council,1111/1001,Children and Young People,CYP,Support Services,HAA,07/05/2015,02-10895,1677.5,Sharpes Of Nottingham,,,,,,,,,
Nottinghamshire County Council,1111/1001,Children and Young People,CYP,Support Services,HAA,07/05/2015,02-10966,858.33,F & J Marriott T/A Unity Coaches,,,,,,,,,
Nottinghamshire County Council,1111/1001,Children and Young People,CYP,Support Services,HAA,07/05/2015,02-10967,1419,F & J Marriott T/A Unity Coaches,,,,,,,,,
Nottinghamshire County Council,1111/1001,Children and Young People,CYP,Support Services,HAA,07/05/2015,02-10968,1033,F & J Marriott T/A Unity Coaches,,,,,,,,,
Nottinghamshire County Council,1111/1001,Children and Young People,CYP,Support Services,HAA,07/05/2015,02-10983,660,K & R Cars,,,,,,,,,
Nottinghamshire County Council,1111/1001,Children and Young People,CYP,Support Services,HAA,07/05/2015,02-10990,1089,Marshalls Of Sutton On Trent Ltd,,,,,,,,,
Nottinghamshire County Council,1111/1001,Children and Young People,CYP,Support Services,HAA,07/05/2015,02-10991,1815,Marshalls Of Sutton On Trent Ltd,,,,,,,,,
Nottinghamshire County Council,1111/1001,Children and Young People,CYP,Support Services,HAA,07/05/2015,02-10992,1872.75,Marshalls Of Sutton On Trent Ltd,,,,,,,,,
Nottinghamshire County Council,1111/1001,Children and Young People,CYP,Support Services,HAA,07/05/2015,02-10994,693,Meden Travel,,,,,,,,,
Nottinghamshire County Council,1111/1001,Children and Young People,CYP,Support Services,HAA,07/05/2015,02-10995,669.9,Nunns Cars,,,,,,,,,
Nottinghamshire County Council,1111/1001,Children and Young People,CYP,Support Services,HAA,07/05/2015,02-10997,1078,Wilfreda Beehive,,,,,,,,,
Nottinghamshire County Council,1111/1001,Children and Young People,CYP,Support Services,HAA,07/05/2015,02-10999,1303.5,Kettlewell Retford Ltd,,,,,,,,,
Nottinghamshire County Council,1111/1001,Children and Young People,CYP,Support Services,HAA,07/05/2015,02-11000,1347.5,Kettlewell Retford Ltd,,,,,,,,,
Nottinghamshire County Council,1111/1001,Children and Young People,CYP,Support Services,HAA,07/05/2015,02-11001,1204.5,Kettlewell Retford Ltd,,,,,,,,,
Nottinghamshire County Council,1111/1001,Children and Young People,CYP,Support Services,HAA,07/05/2015,02-11002,1754.5,Kettlewell Retford Ltd,,,,,,,,,
Nottinghamshire County Council,1111/1001,Children and Young People,CYP,Support Services,HAA,07/05/2015,02-11003,1413.5,Kettlewell Retford Ltd,,,,,,,,,
Nottinghamshire County Council,1111/1001,Children and Young People,CYP,Support Services,HAA,07/05/2015,02-11004,1413.5,Kettlewell Retford Ltd,,,,,,,,,
Nottinghamshire County Council,1111/1001,Children and Young People,CYP,Support Services,HAA,07/05/2015,02-11010,605,Broadsword Cars,,,,,,,,,
Nottinghamshire County Council,1111/1001,Children and Young People,CYP,Support Services,HAA,12/05/2015,02-11254,880,Midland Fleet Maintenance,,,,,,,,,
Nottinghamshire County Council,1111/1001,Children and Young People,CYP,Support Services,HAA,12/05/2015,02-11290,1638,AOT Coaches,,,,,,,,,
Nottinghamshire County Council,1111/1001,Children and Young People,CYP,Support Services,HAA,12/05/2015,02-11291,1407,AOT Coaches,,,,,,,,,
Nottinghamshire County Council,1111/1001,Children and Young People,CYP,Support Services,HAA,12/05/2015,02-11298,7208.3,Travel Wright Ltd,,,,,,,,,
Nottinghamshire County Council,1111/1001,Children and Young People,CYP,Support Services,HAA,12/05/2015,02-11299,2532.88,Travel Wright Ltd,,,,,,,,,
Nottinghamshire County Council,1111/1001,Children and Young People,CYP,Support Services,HAA,12/05/2015,02-11300,1968.45,Travel Wright Ltd,,,,,,,,,
Nottinghamshire County Council,1111/1001,Children and Young People,CYP,Support Services,HAA,12/05/2015,02-11301,4570.31,Travel Wright Ltd,,,,,,,,,
Nottinghamshire County Council,1111/1001,Children and Young People,CYP,Support Services,HAA,12/05/2015,02-11303,120,Travel Wright Ltd,,,,,,,,,
Nottinghamshire County Council,1111/1001,Children and Young People,CYP,Support Services,HAA,12/05/2015,02-11305,2464.43,Travel Wright Ltd,,,,,,,,,
Nottinghamshire County Council,1111/1001,Children and Young People,CYP,Support Services,HAA,12/05/2015,02-11308,1759.45,Travel Wright Ltd,,,,,,,,,
Nottinghamshire County Council,1111/1001,Children and Young People,CYP,Support Services,HAA,12/05/2015,02-11309,1857.31,Travel Wright Ltd,,,,,,,,,
Nottinghamshire County Council,1111/1001,Children and Young People,CYP,Support Services,HAA,12/05/2015,02-11311,1800,Kettlewell Retford Ltd,,,,,,,,,
Nottinghamshire County Council,1111/1001,Children and Young People,CYP,Support Services,HAA,12/05/2015,02-11313,2231.35,C W Moxon Ltd,,,,,,,,,
Nottinghamshire County Council,1111/1001,Children and Young People,CYP,Support Services,HAA,12/05/2015,02-11314,3630,C W Moxon Ltd,,,,,,,,,
Nottinghamshire County Council,1111/1001,Children and Young People,CYP,Support Services,HAA,12/05/2015,02-11315,2313.9,C W Moxon Ltd,,,,,,,,,
Nottinghamshire County Council,1111/1001,Children and Young People,CYP,Support Services,HAA,12/05/2015,02-11316,2102,C W Moxon Ltd,,,,,,,,,
Nottinghamshire County Council,1111/1001,Children and Young People,CYP,Support Services,HAA,12/05/2015,02-11317,2377.2,C W Moxon Ltd,,,,,,,,,
Nottinghamshire County Council,1111/1001,Children and Young People,CYP,Support Services,HAA,12/05/2015,02-11318,1974,C W Moxon Ltd,,,,,,,,,
Nottinghamshire County Council,1111/1001,Children and Young People,CYP,Support Services,HAA,13/05/2015,02-11398,1540,Johnson Bros Tours Ltd,,,,,,,,,
Nottinghamshire County Council,1111/1001,Children and Young People,CYP,Support Services,HAA,13/05/2015,02-11399,2889.55,Johnson Bros Tours Ltd,,,,,,,,,
Nottinghamshire County Council,1111/1001,Children and Young People,CYP,Support Services,HAA,13/05/2015,02-11400,1739.1,Johnson Bros Tours Ltd,,,,,,,,,
Nottinghamshire County Council,1111/1001,Children and Young People,CYP,Support Services,HAA,13/05/2015,02-11401,9350,Johnson Bros Tours Ltd,,,,,,,,,
Nottinghamshire County Council,1111/1001,Children and Young People,CYP,Support Services,HAA,13/05/2015,02-11402,10700.35,Johnson Bros Tours Ltd,,,,,,,,,
Nottinghamshire County Council,1111/1001,Children and Young People,CYP,Support Services,HAA,13/05/2015,02-11403,1538.55,Johnson Bros Tours Ltd,,,,,,,,,
Nottinghamshire County Council,1111/1001,Children and Young People,CYP,Support Services,HAA,13/05/2015,02-11404,1948.55,Johnson Bros Tours Ltd,,,,,,,,,
Nottinghamshire County Council,1111/1001,Children and Young People,CYP,Support Services,HAA,13/05/2015,02-11405,6720.7,Johnson Bros Tours Ltd,,,,,,,,,
Nottinghamshire County Council,1111/1001,Children and Young People,CYP,Support Services,HAA,13/05/2015,02-11407,1419.1,Butler Brothers Ltd,,,,,,,,,
Nottinghamshire County Council,1111/1001,Children and Young People,CYP,Support Services,HAA,13/05/2015,02-11412,1760,AOT Coaches,,,,,,,,,
Nottinghamshire County Council,1111/1001,Children and Young People,CYP,Support Services,HAA,13/05/2015,02-11413,1760,AOT Coaches,,,,,,,,,
Nottinghamshire County Council,1111/1001,Children and Young People,CYP,Support Services,HAA,13/05/2015,02-11416,1404.63,AOT Coaches,,,,,,,,,
Nottinghamshire County Council,1111/1001,Children and Young People,CYP,Support Services,HAA,13/05/2015,02-11417,1392.63,AOT Coaches,,,,,,,,,
Nottinghamshire County Council,1111/1001,Children and Young People,CYP,Support Services,HAA,13/05/2015,02-11418,1434.74,AOT Coaches,,,,,,,,,
Nottinghamshire County Council,1111/1001,Children and Young People,CYP,Support Services,HAA,13/05/2015,02-11419,1319,AOT Coaches,,,,,,,,,
Nottinghamshire County Council,1111/1001,Children and Young People,CYP,Support Services,HAA,13/05/2015,02-11420,1292,AOT Coaches,,,,,,,,,
Nottinghamshire County Council,1111/1001,Children and Young People,CYP,Support Services,HAA,13/05/2015,02-11421,2145.4,Gem Mini Travel Ltd,,,,,,,,,
Nottinghamshire County Council,1111/1001,Children and Young People,CYP,Support Services,HAA,13/05/2015,02-11422,1745.2,Gem Mini Travel Ltd,,,,,,,,,
Nottinghamshire County Council,1111/1001,Children and Young People,CYP,Support Services,HAA,13/05/2015,02-11423,2297.65,Gem Mini Travel Ltd,,,,,,,,,
Nottinghamshire County Council,1111/1001,Children and Young People,CYP,Support Services,HAA,13/05/2015,02-11424,2469.4,Gem Mini Travel Ltd,,,,,,,,,
Nottinghamshire County Council,1111/1001,Children and Young People,CYP,Support Services,HAA,13/05/2015,02-11436,2828,Stagecoach Services Ltd,,,,,,,,,
Nottinghamshire County Council,1111/1001,Children and Young People,CYP,Support Services,HAA,13/05/2015,02-11437,2796.9,Stagecoach Services Ltd,,,,,,,,,
Nottinghamshire County Council,1111/1001,Children and Young People,CYP,Support Services,HAA,13/05/2015,02-11438,1694,Tiger European Uk Ltd,,,,,,,,,
Nottinghamshire County Council,1111/1001,Children and Young People,CYP,Support Services,HAA,13/05/2015,02-11439,1615,Tiger European Uk Ltd,,,,,,,,,
Nottinghamshire County Council,1111/1001,Children and Young People,CYP,Support Services,HAA,13/05/2015,02-11440,1603.9,Tiger European Uk Ltd,,,,,,,,,
Nottinghamshire County Council,1111/1001,Children and Young People,CYP,Support Services,HAA,13/05/2015,02-11441,1874.8,Tiger European Uk Ltd,,,,,,,,,
Nottinghamshire County Council,1111/1001,Children and Young People,CYP,Support Services,HAA,13/05/2015,02-11442,869,Paul S Winson Coaches,,,,,,,,,
Nottinghamshire County Council,1111/1001,Children and Young People,CYP,Support Services,HAA,14/05/2015,02-11528,2564.2,Glenn Ryder Coaches,,,,,,,,,
Nottinghamshire County Council,1111/1001,Children and Young People,CYP,Support Services,HAA,14/05/2015,02-11529,1843.15,Glenn Ryder Coaches,,,,,,,,,
Nottinghamshire County Council,1111/1001,Children and Young People,CYP,Support Services,HAA,14/05/2015,02-11554,1381.4,Jb Tours Watnall Ltd,,,,,,,,,
Nottinghamshire County Council,1111/1001,Children and Young People,CYP,Support Services,HAA,14/05/2015,02-11555,1027,Jb Tours Watnall Ltd,,,,,,,,,
Nottinghamshire County Council,1111/1001,Children and Young People,CYP,Support Services,HAA,14/05/2015,02-11556,1399.3,Jb Tours Watnall Ltd,,,,,,,,,
Nottinghamshire County Council,1111/1001,Children and Young People,CYP,Support Services,HAA,14/05/2015,02-11557,1314.5,Silverdale Tours Nottm Ltd,,,,,,,,,
Nottinghamshire County Council,1111/1001,Children and Young People,CYP,Support Services,HAA,14/05/2015,02-11558,1768.8,Silverdale Tours Nottm Ltd,,,,,,,,,
Nottinghamshire County Council,1111/1001,Children and Young People,CYP,Support Services,HAA,14/05/2015,02-11559,1524.6,Silverdale Tours Nottm Ltd,,,,,,,,,
Nottinghamshire County Council,1111/1001,Children and Young People,CYP,Support Services,HAA,14/05/2015,02-11560,1609.3,Silverdale Tours Nottm Ltd,,,,,,,,,
Nottinghamshire County Council,1111/1001,Children and Young People,CYP,Support Services,HAA,14/05/2015,02-11561,1476.2,Silverdale Tours Nottm Ltd,,,,,,,,,
Nottinghamshire County Council,1111/1001,Children and Young People,CYP,Support Services,HAA,14/05/2015,02-11562,1179.5,Silverdale Tours Nottm Ltd,,,,,,,,,
Nottinghamshire County Council,1111/1001,Children and Young People,CYP,Support Services,HAA,14/05/2015,02-11563,1550.5,Silverdale Tours Nottm Ltd,,,,,,,,,
Nottinghamshire County Council,1111/1001,Children and Young People,CYP,Support Services,HAA,14/05/2015,02-11564,1644.5,Silverdale Tours Nottm Ltd,,,,,,,,,
Nottinghamshire County Council,1111/1001,Children and Young People,CYP,Support Services,HAA,14/05/2015,02-11565,1165,Silverdale Tours Nottm Ltd,,,,,,,,,
Nottinghamshire County Council,1111/1001,Children and Young People,CYP,Support Services,HAA,14/05/2015,02-11569,2182.44,Stagecoach Services Ltd,,,,,,,,,
Nottinghamshire County Council,1111/1001,Children and Young People,CYP,Support Services,HAA,14/05/2015,02-11571,1027.96,Stagecoach Services Ltd,,,,,,,,,
Nottinghamshire County Council,1111/1001,Children and Young People,CYP,Support Services,HAA,14/05/2015,02-11573,1750.91,Stagecoach Services Ltd,,,,,,,,,
Nottinghamshire County Council,1111/1001,Children and Young People,CYP,Support Services,HAA,14/05/2015,02-11577,2391.47,Stagecoach Services Ltd,,,,,,,,,
Nottinghamshire County Council,1111/1001,Children and Young People,CYP,Support Services,HAA,14/05/2015,02-11585,3944.17,Stagecoach Services Ltd,,,,,,,,,
Nottinghamshire County Council,1111/1001,Children and Young People,CYP,Support Services,HAA,14/05/2015,02-11588,688.69,Stagecoach Services Ltd,,,,,,,,,
Nottinghamshire County Council,1111/1001,Children and Young People,CYP,Support Services,HAA,14/05/2015,02-11595,1514,Tiger European Uk Ltd,,,,,,,,,
Nottinghamshire County Council,1111/1001,Children and Young People,CYP,Support Services,HAA,14/05/2015,02-11596,1454,Tiger European Uk Ltd,,,,,,,,,
Nottinghamshire County Council,1111/1001,Children and Young People,CYP,Support Services,HAA,14/05/2015,02-11597,1396.5,Tiger European Uk Ltd,,,,,,,,,
Nottinghamshire County Council,1111/1001,Children and Young People,CYP,Support Services,HAA,14/05/2015,02-11598,1592,Tiger European Uk Ltd,,,,,,,,,
Nottinghamshire County Council,1111/1001,Children and Young People,CYP,Support Services,HAA,14/05/2015,02-11599,630,Tiger European Uk Ltd,,,,,,,,,
Nottinghamshire County Council,1111/1001,Children and Young People,CYP,Support Services,HAA,14/05/2015,02-11600,1735,Tiger European Uk Ltd,,,,,,,,,
Nottinghamshire County Council,1111/1001,Children and Young People,CYP,Support Services,HAA,14/05/2015,02-11601,1646.48,Tiger European Uk Ltd,,,,,,,,,
Nottinghamshire County Council,1111/1001,Children and Young People,CYP,Support Services,HAA,14/05/2015,02-11602,2035,Tiger European Uk Ltd,,,,,,,,,
Nottinghamshire County Council,1111/1001,Children and Young People,CYP,Support Services,HAA,14/05/2015,02-11608,1048.72,Cotswold CVS Trading Ltd,,,,,,,,,
Nottinghamshire County Council,1111/1001,Children and Young People,CYP,Support Services,HAA,18/05/2015,02-11656,2088.3,Sharpes Of Nottingham,,,,,,,,,
Nottinghamshire County Council,1111/1001,Children and Young People,CYP,Support Services,HAA,18/05/2015,02-11657,2144.8,Sharpes Of Nottingham,,,,,,,,,
Nottinghamshire County Council,1111/1001,Children and Young People,CYP,Support Services,HAA,18/05/2015,02-11658,1941.8,Sharpes Of Nottingham,,,,,,,,,
Nottinghamshire County Council,1111/1001,Children and Young People,CYP,Support Services,HAA,18/05/2015,02-11659,2124.65,Sharpes Of Nottingham,,,,,,,,,
Nottinghamshire County Council,1111/1001,Children and Young People,CYP,Support Services,HAA,18/05/2015,02-11660,1856.4,Sharpes Of Nottingham,,,,,,,,,
Nottinghamshire County Council,1111/1001,Children and Young People,CYP,Support Services,HAA,18/05/2015,02-11661,2056.8,Sharpes Of Nottingham,,,,,,,,,
Nottinghamshire County Council,1111/1001,Children and Young People,CYP,Support Services,HAA,18/05/2015,02-11668,1271.49,Arnold Acorn Travel,,,,,,,,,
Nottinghamshire County Council,1111/1001,Children and Young People,CYP,Support Services,HAA,18/05/2015,02-11672,1456.42,Marshalls Of Sutton On Trent Ltd,,,,,,,,,
Nottinghamshire County Council,1111/1001,Children and Young People,CYP,Support Services,HAA,18/05/2015,02-11674,2310,Marshalls Of Sutton On Trent Ltd,,,,,,,,,
Nottinghamshire County Council,1111/1001,Children and Young People,CYP,Support Services,HAA,18/05/2015,02-11678,697.07,Bassetlaw Action Centre,,,,,,,,,
Nottinghamshire County Council,1111/1001,Children and Young People,CYP,Support Services,HAA,18/05/2015,02-11679,2019.6,Bassetlaw Action Centre,,,,,,,,,
Nottinghamshire County Council,1111/1001,Children and Young People,CYP,Support Services,HAA,18/05/2015,02-11680,957.88,Wallis Coachways,,,,,,,,,
Nottinghamshire County Council,1111/1001,Children and Young People,CYP,Support Services,HAA,18/05/2015,02-11681,3043.17,Isle Coaches,,,,,,,,,
Nottinghamshire County Council,1111/1001,Children and Young People,CYP,Support Services,HAA,18/05/2015,02-11682,1565,Nottingham Coaches,,,,,,,,,
Nottinghamshire County Council,1111/1001,Children and Young People,CYP,Support Services,HAA,19/05/2015,02-15000,1248.5,Sharpes Of Nottingham,,,,,,,,,
Nottinghamshire County Council,1111/1001,Children and Young People,CYP,Support Services,HAA,20/05/2015,02-15109,650,D G Private Hire Ltd,,,,,,,,,
Nottinghamshire County Council,1111/1001,Children and Young People,CYP,Support Services,HAA,20/05/2015,02-15110,540,D G Private Hire Ltd,,,,,,,,,
Nottinghamshire County Council,1111/1001,Children and Young People,CYP,Support Services,HAA,20/05/2015,02-15117,520,D G Private Hire Ltd,,,,,,,,,
Nottinghamshire County Council,1111/1001,Children and Young People,CYP,Support Services,HAA,20/05/2015,02-15126,2037.69,Stagecoach Services Ltd,,,,,,,,,
Nottinghamshire County Council,1111/1001,Children and Young People,CYP,Support Services,HAA,20/05/2015,02-15128,875.6,Stagecoach Services Ltd,,,,,,,,,
Nottinghamshire County Council,1111/1001,Children and Young People,CYP,Support Services,HAA,20/05/2015,02-15129,875.6,Stagecoach Services Ltd,,,,,,,,,
Nottinghamshire County Council,1111/1001,Children and Young People,CYP,Support Services,HAA,21/05/2015,02-15276,255,D G Private Hire Ltd,,,,,,,,,
Nottinghamshire County Council,1111/1001,Children and Young People,CYP,Support Services,HAA,22/05/2015,02-15386,840,Abacus Cars,,,,,,,,,
Nottinghamshire County Council,1111/1001,Children and Young People,CYP,Support Services,HAA,29/05/2015,02-15961,1190,All Wayz Travel,,,,,,,,,
Nottinghamshire County Council,1111/1001,Children and Young People,CYP,Support Services,HAA,29/05/2015,02-15962,910,All Wayz Travel,,,,,,,,,
Nottinghamshire County Council,1111/1001,Children and Young People,CYP,Support Services,HAA,29/05/2015,02-15972,1170.45,F & J Marriott T/A Unity Coaches,,,,,,,,,
Nottinghamshire County Council,1111/1001,Children and Young People,CYP,Support Services,HAA,29/05/2015,02-15973,1935,F & J Marriott T/A Unity Coaches,,,,,,,,,
Nottinghamshire County Council,1111/1001,Children and Young People,CYP,Support Services,HAA,29/05/2015,02-15974,1389.5,F & J Marriott T/A Unity Coaches,,,,,,,,,
Nottinghamshire County Council,1111/1001,Children and Young People,CYP,Support Services,HAA,29/05/2015,02-15982,1350,Nottingham Minibuses & Coaches,,,,,,,,,
Nottinghamshire County Council,1111/1001,Children and Young People,CYP,Support Services,HAA,29/05/2015,02-15985,2250,Nottingham Minibuses & Coaches,,,,,,,,,
Nottinghamshire County Council,1111/1001,Children and Young People,CYP,Support Services,HAA,29/05/2015,02-15997,1200,P & P Taxis,,,,,,,,,
Nottinghamshire County Council,1111/1001,Children and Young People,CYP,Support Services,HAA,29/05/2015,02-16000,2189.4,Freeway Coaches Ltd,,,,,,,,,
Nottinghamshire County Council,1111/1001,Children and Young People,CYP,Support Services,HAA,29/05/2015,02-16001,5830.8,Freeway Coaches Ltd,,,,,,,,,
Nottinghamshire County Council,1111/1001,Children and Young People,CYP,Support Services,HAA,29/05/2015,02-16002,2176.95,Freeway Coaches Ltd,,,,,,,,,
Nottinghamshire County Council,1111/1001,Children and Young People,CYP,Support Services,HAA,29/05/2015,02-16003,1950.75,Freeway Coaches Ltd,,,,,,,,,
Nottinghamshire County Council,1111/1001,Children and Young People,CYP,Support Services,HAA,29/05/2015,02-16004,1111.2,Freeway Coaches Ltd,,,,,,,,,
Nottinghamshire County Council,1111/1001,Children and Young People,CYP,Support Services,HAA,29/05/2015,02-16005,1875,Freeway Coaches Ltd,,,,,,,,,
Nottinghamshire County Council,1111/1001,Children and Young People,CYP,Support Services,HAA,29/05/2015,02-16006,1777.5,Kettlewell Retford Ltd,,,,,,,,,
Nottinghamshire County Council,1111/1001,Children and Young People,CYP,Support Services,HAA,29/05/2015,02-16007,1837.5,Kettlewell Retford Ltd,,,,,,,,,
Nottinghamshire County Council,1111/1001,Children and Young People,CYP,Support Services,HAA,29/05/2015,02-16008,2250,Kettlewell Retford Ltd,,,,,,,,,
Nottinghamshire County Council,1111/1001,Children and Young People,CYP,Support Services,HAA,29/05/2015,02-16009,1642.5,Kettlewell Retford Ltd,,,,,,,,,
Nottinghamshire County Council,1111/1001,Children and Young People,CYP,Support Services,HAA,29/05/2015,02-16010,2392.5,Kettlewell Retford Ltd,,,,,,,,,
Nottinghamshire County Council,1111/1001,Children and Young People,CYP,Support Services,HAA,29/05/2015,02-16011,1927.5,Kettlewell Retford Ltd,,,,,,,,,
Nottinghamshire County Council,1111/1001,Children and Young People,CYP,Support Services,HAA,29/05/2015,02-16016,825,Broadsword Cars,,,,,,,,,
Nottinghamshire County Council,1111/1001,Children and Young People,CYP,Support Services,HAA,29/05/2015,02-16017,2000,Nottingham Coaches,,,,,,,,,
Nottinghamshire County Council,1111/1001,Children and Young People,CYP,Support Services,HAA,29/05/2015,02-16018,1803,Nottingham Coaches,,,,,,,,,
Nottinghamshire County Council,1111/1001,Children and Young People,CYP,Support Services,HAA,29/05/2015,02-16019,2196.5,Nottingham Coaches,,,,,,,,,
Nottinghamshire County Council,1111/1001,Adult Social Care and Health,ASCH,Premises Related,BAA,06/05/2015,02-10450,740.5,Sues Maintenance Services,,,,,,,,,
Nottinghamshire County Council,1111/1001,Adult Social Care and Health,ASCH,Premises Related,BAA,11/05/2015,02-11125,512.5,Elf Property Care,,,,,,,,,
Nottinghamshire County Council,1111/1001,Adult Social Care and Health,ASCH,Premises Related,BAA,11/05/2015,02-11126,653,Handyman Plus,,,,,,,,,
Nottinghamshire County Council,1111/1001,Adult Social Care and Health,ASCH,Premises Related,BAA,13/05/2015,02-10590,550.5,Intex Building & Maintenance,,,,,,,,,
Nottinghamshire County Council,1111/1001,Adult Social Care and Health,ASCH,Premises Related,BEA,12/05/2015,02-11236,1770.73,Newark & Sherwood District Council,,,,,,,,,
Nottinghamshire County Council,1111/1001,Adult Social Care and Health,ASCH,Premises Related,BEA,15/05/2015,02-11610,511.4,Gedling Borough Council,,,,,,,,,
Nottinghamshire County Council,1111/1001,Adult Social Care and Health,ASCH,Premises Related,BEA,21/05/2015,02-15300,3507.08,Newark & Sherwood District Council,,,,,,,,,
Nottinghamshire County Council,1111/1001,Adult Social Care and Health,ASCH,Premises Related,BEA,22/05/2015,02-11252,1770.73,Newark & Sherwood District Council,,,,,,,,,
Nottinghamshire County Council,1111/1001,Adult Social Care and Health,ASCH,Premises Related,BEA,22/05/2015,02-15039,1461.28,Newark & Sherwood District Council,,,,,,,,,
Nottinghamshire County Council,1111/1001,Adult Social Care and Health,ASCH,Transport Related,CBA,05/05/2015,02-10248,1771.05,Aj Travel,,,,,,,,,
Nottinghamshire County Council,1111/1001,Adult Social Care and Health,ASCH,Transport Related,CBA,07/05/2015,02-10946,2281,Ja Travel Ltd,,,,,,,,,
Nottinghamshire County Council,1111/1001,Adult Social Care and Health,ASCH,Transport Related,CBA,07/05/2015,02-10949,3246.2,Mct Uk Ltd,,,,,,,,,
Nottinghamshire County Council,1111/1001,Adult Social Care and Health,ASCH,Transport Related,CBA,07/05/2015,02-10972,3313.84,F & J Marriott T/A Unity Coaches,,,,,,,,,
Nottinghamshire County Council,1111/1001,Adult Social Care and Health,ASCH,Transport Related,CBA,07/05/2015,02-10974,3183.2,F & J Marriott T/A Unity Coaches,,,,,,,,,
Nottinghamshire County Council,1111/1001,Adult Social Care and Health,ASCH,Transport Related,CBA,07/05/2015,02-10975,3355.8,Vallances Coaches,,,,,,,,,
Nottinghamshire County Council,1111/1001,Adult Social Care and Health,ASCH,Transport Related,CBA,14/05/2015,02-11606,4825.55,Cotswold CVS Trading Ltd,,,,,,,,,
Nottinghamshire County Council,1111/1001,Adult Social Care and Health,ASCH,Transport Related,CCA,05/05/2015,02-10237,1249.2,Midfield Travel,,,,,,,,,
Nottinghamshire County Council,1111/1001,Adult Social Care and Health,ASCH,Transport Related,CCA,06/05/2015,02-10457,111.18,Alpha Cars,,,,,,,,,
Nottinghamshire County Council,1111/1001,Adult Social Care and Health,ASCH,Transport Related,CCA,06/05/2015,02-10484,642.6,Bridges Transport Services,,,,,,,,,
Nottinghamshire County Council,1111/1001,Adult Social Care and Health,ASCH,Transport Related,CCA,06/05/2015,02-10501,2958,Bridges Transport Services,,,,,,,,,
Nottinghamshire County Council,1111/1001,Adult Social Care and Health,ASCH,Transport Related,CCA,06/05/2015,02-10504,693.6,Bridges Transport Services,,,,,,,,,
Nottinghamshire County Council,1111/1001,Adult Social Care and Health,ASCH,Transport Related,CCA,06/05/2015,02-10529,1377,P & P Taxis,,,,,,,,,
Nottinghamshire County Council,1111/1001,Adult Social Care and Health,ASCH,Transport Related,CCA,06/05/2015,02-10539,676.26,Town Cars (UK) Ltd,,,,,,,,,
Nottinghamshire County Council,1111/1001,Adult Social Care and Health,ASCH,Transport Related,CCA,07/05/2015,02-10898,567.7,SJW (Muskham) Ltd T/A Z Cars,,,,,,,,,
Nottinghamshire County Council,1111/1001,Adult Social Care and Health,ASCH,Transport Related,CCA,07/05/2015,02-10902,493.92,Acorn Contracts,,,,,,,,,
Nottinghamshire County Council,1111/1001,Adult Social Care and Health,ASCH,Transport Related,CCA,07/05/2015,02-10942,464.6,Erewash Community Transport,,,,,,,,,
Nottinghamshire County Council,1111/1001,Adult Social Care and Health,ASCH,Transport Related,CCA,14/05/2015,02-11522,256.38,All Wayz Travel,,,,,,,,,
Nottinghamshire County Council,1111/1001,Adult Social Care and Health,ASCH,Transport Related,CCA,18/05/2015,02-11663,273.01,F4Control Ltd (t/a First4care),,,,,,,,,
Nottinghamshire County Council,1111/1001,Adult Social Care and Health,ASCH,Transport Related,CCA,18/05/2015,02-11677,984.5,P & P Taxis,,,,,,,,,
Nottinghamshire County Council,1111/1001,Adult Social Care and Health,ASCH,Transport Related,CCA,19/05/2015,02-15033,920,AAA Cabs,,,,,,,,,
Nottinghamshire County Council,1111/1001,Adult Social Care and Health,ASCH,Transport Related,CCA,20/05/2015,02-15120,734.4,Abacus Cars,,,,,,,,,
Nottinghamshire County Council,1111/1001,Adult Social Care and Health,ASCH,Transport Related,CCA,29/05/2015,02-15959,276.1,All Wayz Travel,,,,,,,,,
Nottinghamshire County Council,1111/1001,Adult Social Care and Health,ASCH,Transport Related,CCA,29/05/2015,02-15998,891,P & P Taxis,,,,,,,,,
Nottinghamshire County Council,1111/1001,Adult Social Care and Health,ASCH,Transport Related,CDA,05/05/2015,02-10183,2958,Taxicover Uk Ltd,,,,,,,,,
Nottinghamshire County Council,1111/1001,Adult Social Care and Health,ASCH,Transport Related,CDA,05/05/2015,02-10190,669,Southside Cars,,,,,,,,,
Nottinghamshire County Council,1111/1001,Adult Social Care and Health,ASCH,Transport Related,CDA,05/05/2015,02-10234,2397.6,Hawkins Taxis & Transport,,,,,,,,,
Nottinghamshire County Council,1111/1001,Adult Social Care and Health,ASCH,Transport Related,CDA,05/05/2015,02-10237,1249.2,Midfield Travel,,,,,,,,,
Nottinghamshire County Council,1111/1001,Adult Social Care and Health,ASCH,Transport Related,CDA,05/05/2015,02-10248,268.15,Aj Travel,,,,,,,,,
Nottinghamshire County Council,1111/1001,Adult Social Care and Health,ASCH,Transport Related,CDA,06/05/2015,02-10451,878.1,CBC Taxis Ltd,,,,,,,,,
Nottinghamshire County Council,1111/1001,Adult Social Care and Health,ASCH,Transport Related,CDA,06/05/2015,02-10452,665,CBC Taxis Ltd,,,,,,,,,
Nottinghamshire County Council,1111/1001,Adult Social Care and Health,ASCH,Transport Related,CDA,06/05/2015,02-10453,728.3,CBC Taxis Ltd,,,,,,,,,
Nottinghamshire County Council,1111/1001,Adult Social Care and Health,ASCH,Transport Related,CDA,06/05/2015,02-10456,669,CBC Taxis Ltd,,,,,,,,,
Nottinghamshire County Council,1111/1001,Adult Social Care and Health,ASCH,Transport Related,CDA,06/05/2015,02-10463,605.88,Arrow Specialised Transport Ltd,,,,,,,,,
Nottinghamshire County Council,1111/1001,Adult Social Care and Health,ASCH,Transport Related,CDA,06/05/2015,02-10466,2320,Arrow Specialised Transport Ltd,,,,,,,,,
Nottinghamshire County Council,1111/1001,Adult Social Care and Health,ASCH,Transport Related,CDA,06/05/2015,02-10467,1100.7,Arrow Specialised Transport Ltd,,,,,,,,,
Nottinghamshire County Council,1111/1001,Adult Social Care and Health,ASCH,Transport Related,CDA,06/05/2015,02-10471,130.24,Arrow Specialised Transport Ltd,,,,,,,,,
Nottinghamshire County Council,1111/1001,Adult Social Care and Health,ASCH,Transport Related,CDA,06/05/2015,02-10474,246.62,Arrow Specialised Transport Ltd,,,,,,,,,
Nottinghamshire County Council,1111/1001,Adult Social Care and Health,ASCH,Transport Related,CDA,06/05/2015,02-10476,453.2,Arrow Specialised Transport Ltd,,,,,,,,,
Nottinghamshire County Council,1111/1001,Adult Social Care and Health,ASCH,Transport Related,CDA,06/05/2015,02-10478,663,Bridges Transport Services,,,,,,,,,
Nottinghamshire County Council,1111/1001,Adult Social Care and Health,ASCH,Transport Related,CDA,06/05/2015,02-10479,1142.4,Bridges Transport Services,,,,,,,,,
Nottinghamshire County Council,1111/1001,Adult Social Care and Health,ASCH,Transport Related,CDA,06/05/2015,02-10480,3219,Bridges Transport Services,,,,,,,,,
Nottinghamshire County Council,1111/1001,Adult Social Care and Health,ASCH,Transport Related,CDA,06/05/2015,02-10481,1988.8,Bridges Transport Services,,,,,,,,,
Nottinghamshire County Council,1111/1001,Adult Social Care and Health,ASCH,Transport Related,CDA,06/05/2015,02-10482,867,Bridges Transport Services,,,,,,,,,
Nottinghamshire County Council,1111/1001,Adult Social Care and Health,ASCH,Transport Related,CDA,06/05/2015,02-10483,1259.7,Bridges Transport Services,,,,,,,,,
Nottinghamshire County Council,1111/1001,Adult Social Care and Health,ASCH,Transport Related,CDA,06/05/2015,02-10485,1224,Bridges Transport Services,,,,,,,,,
Nottinghamshire County Council,1111/1001,Adult Social Care and Health,ASCH,Transport Related,CDA,06/05/2015,02-10486,571.2,Bridges Transport Services,,,,,,,,,
Nottinghamshire County Council,1111/1001,Adult Social Care and Health,ASCH,Transport Related,CDA,06/05/2015,02-10527,1632,P & P Taxis,,,,,,,,,
Nottinghamshire County Council,1111/1001,Adult Social Care and Health,ASCH,Transport Related,CDA,06/05/2015,02-10530,940,P & P Taxis,,,,,,,,,
Nottinghamshire County Council,1111/1001,Adult Social Care and Health,ASCH,Transport Related,CDA,06/05/2015,02-10531,1080,P & P Taxis,,,,,,,,,
Nottinghamshire County Council,1111/1001,Adult Social Care and Health,ASCH,Transport Related,CDA,06/05/2015,02-10538,2490,Town Cars (UK) Ltd,,,,,,,,,
Nottinghamshire County Council,1111/1001,Adult Social Care and Health,ASCH,Transport Related,CDA,07/05/2015,02-10899,804.17,Ace Of Mansfield Ltd,,,,,,,,,
Nottinghamshire County Council,1111/1001,Adult Social Care and Health,ASCH,Transport Related,CDA,07/05/2015,02-10901,1285.12,Acorn Contracts,,,,,,,,,
Nottinghamshire County Council,1111/1001,Adult Social Care and Health,ASCH,Transport Related,CDA,07/05/2015,02-10955,643.62,Shelleys Taxis Ltd,,,,,,,,,
Nottinghamshire County Council,1111/1001,Adult Social Care and Health,ASCH,Transport Related,CDA,07/05/2015,02-10972,355.56,F & J Marriott T/A Unity Coaches,,,,,,,,,
Nottinghamshire County Council,1111/1001,Adult Social Care and Health,ASCH,Transport Related,CDA,12/05/2015,02-11280,1516.88,Abacus Cars,,,,,,,,,
Nottinghamshire County Council,1111/1001,Adult Social Care and Health,ASCH,Transport Related,CDA,12/05/2015,02-11283,816,Abacus Cars,,,,,,,,,
Nottinghamshire County Council,1111/1001,Adult Social Care and Health,ASCH,Transport Related,CDA,12/05/2015,02-11284,532.8,Abacus Cars,,,,,,,,,
Nottinghamshire County Council,1111/1001,Adult Social Care and Health,ASCH,Transport Related,CDA,12/05/2015,02-11285,1966.44,Abacus Cars,,,,,,,,,
Nottinghamshire County Council,1111/1001,Adult Social Care and Health,ASCH,Transport Related,CDA,12/05/2015,02-11321,1319.7,In Taxis,,,,,,,,,
Nottinghamshire County Council,1111/1001,Adult Social Care and Health,ASCH,Transport Related,CDA,13/05/2015,02-11409,601.62,Aaeron Cars,,,,,,,,,
Nottinghamshire County Council,1111/1001,Adult Social Care and Health,ASCH,Transport Related,CDA,13/05/2015,02-11410,559.85,Aaeron Cars,,,,,,,,,
Nottinghamshire County Council,1111/1001,Adult Social Care and Health,ASCH,Transport Related,CDA,14/05/2015,02-11481,528.58,Alert Cars Ltd,,,,,,,,,
Nottinghamshire County Council,1111/1001,Adult Social Care and Health,ASCH,Transport Related,CDA,14/05/2015,02-11482,514.86,Alert Cars Ltd,,,,,,,,,
Nottinghamshire County Council,1111/1001,Adult Social Care and Health,ASCH,Transport Related,CDA,14/05/2015,02-11499,426.12,6 Five 2s,,,,,,,,,
Nottinghamshire County Council,1111/1001,Adult Social Care and Health,ASCH,Transport Related,CDA,14/05/2015,02-11502,394.66,6 Five 2s,,,,,,,,,
Nottinghamshire County Council,1111/1001,Adult Social Care and Health,ASCH,Transport Related,CDA,14/05/2015,02-11511,672.9,6 Five 2s,,,,,,,,,
Nottinghamshire County Council,1111/1001,Adult Social Care and Health,ASCH,Transport Related,CDA,14/05/2015,02-11519,480.48,6 Five 2s,,,,,,,,,
Nottinghamshire County Council,1111/1001,Adult Social Care and Health,ASCH,Transport Related,CDA,14/05/2015,02-11524,2300.32,F4Control Ltd (t/a First4care),,,,,,,,,
Nottinghamshire County Council,1111/1001,Adult Social Care and Health,ASCH,Transport Related,CDA,14/05/2015,02-11541,1142.68,Carlton Cars Ltd T/A Trent Cars,,,,,,,,,
Nottinghamshire County Council,1111/1001,Adult Social Care and Health,ASCH,Transport Related,CDA,14/05/2015,02-11544,498.85,BN Gibson Ltd,,,,,,,,,
Nottinghamshire County Council,1111/1001,Adult Social Care and Health,ASCH,Transport Related,CDA,14/05/2015,02-11550,3960,BN Gibson Ltd,,,,,,,,,
Nottinghamshire County Council,1111/1001,Adult Social Care and Health,ASCH,Transport Related,CDA,14/05/2015,02-11605,1836,[Redacted],,,,,,,,,
Nottinghamshire County Council,1111/1001,Adult Social Care and Health,ASCH,Transport Related,CDA,18/05/2015,02-11663,273.01,F4Control Ltd (t/a First4care),,,,,,,,,
Nottinghamshire County Council,1111/1001,Adult Social Care and Health,ASCH,Transport Related,CDA,18/05/2015,02-11666,1815.6,F4Control Ltd (t/a First4care),,,,,,,,,
Nottinghamshire County Council,1111/1001,Adult Social Care and Health,ASCH,Transport Related,CDA,18/05/2015,02-11667,1361.7,F4Control Ltd (t/a First4care),,,,,,,,,
Nottinghamshire County Council,1111/1001,Adult Social Care and Health,ASCH,Transport Related,CDA,19/05/2015,02-14999,2651,F4Control Ltd (t/a First4care),,,,,,,,,
Nottinghamshire County Council,1111/1001,Adult Social Care and Health,ASCH,Transport Related,CDA,19/05/2015,02-15005,581.4,Alpha Cars,,,,,,,,,
Nottinghamshire County Council,1111/1001,Adult Social Care and Health,ASCH,Transport Related,CDA,20/05/2015,02-15115,1120,D G Private Hire Ltd,,,,,,,,,
Nottinghamshire County Council,1111/1001,Adult Social Care and Health,ASCH,Transport Related,CDA,20/05/2015,02-15116,590.66,D G Private Hire Ltd,,,,,,,,,
Nottinghamshire County Council,1111/1001,Adult Social Care and Health,ASCH,Transport Related,CDA,20/05/2015,02-15118,902,D G Private Hire Ltd,,,,,,,,,
Nottinghamshire County Council,1111/1001,Adult Social Care and Health,ASCH,Transport Related,CDA,20/05/2015,02-15121,654,Abacus Cars,,,,,,,,,
Nottinghamshire County Council,1111/1001,Adult Social Care and Health,ASCH,Transport Related,CDA,20/05/2015,02-15124,822.62,Abacus Cars,,,,,,,,,
Nottinghamshire County Council,1111/1001,Adult Social Care and Health,ASCH,Transport Related,CDA,22/05/2015,02-15377,2530.5,F4Control Ltd (t/a First4care),,,,,,,,,
Nottinghamshire County Council,1111/1001,Adult Social Care and Health,ASCH,Transport Related,CDA,22/05/2015,02-15379,114.4,F4Control Ltd (t/a First4care),,,,,,,,,
Nottinghamshire County Council,1111/1001,Adult Social Care and Health,ASCH,Transport Related,CDA,22/05/2015,02-15381,384.84,F4Control Ltd (t/a First4care),,,,,,,,,
Nottinghamshire County Council,1111/1001,Adult Social Care and Health,ASCH,Transport Related,CDA,22/05/2015,02-15384,771.12,Abacus Cars,,,,,,,,,
Nottinghamshire County Council,1111/1001,Adult Social Care and Health,ASCH,Transport Related,CDA,29/05/2015,02-15965,2277.72,Hawkins Taxis & Transport,,,,,,,,,
Nottinghamshire County Council,1111/1001,Adult Social Care and Health,ASCH,Transport Related,CDA,29/05/2015,02-15981,826.63,Beechwood Taxis,,,,,,,,,
Nottinghamshire County Council,1111/1001,Adult Social Care and Health,ASCH,Supplies & Services,DBA,06/05/2015,02-10429,770.61,Brake Bros Ltd,,,,,,,,,
Nottinghamshire County Council,1111/1001,Adult Social Care and Health,ASCH,Supplies & Services,DBA,06/05/2015,02-10437,4451.34,Brake Bros Ltd,,,,,,,,,
Nottinghamshire County Council,1111/1001,Adult Social Care and Health,ASCH,Supplies & Services,DBA,06/05/2015,02-10441,630.46,Brake Bros Ltd,,,,,,,,,
Nottinghamshire County Council,1111/1001,Adult Social Care and Health,ASCH,Supplies & Services,DBA,06/05/2015,02-10442,2009.85,Brake Bros Ltd,,,,,,,,,
Nottinghamshire County Council,1111/1001,Adult Social Care and Health,ASCH,Supplies & Services,DBA,12/05/2015,02-11241,1970.18,Hallam Country Fresh Foods Ltd,,,,,,,,,
Nottinghamshire County Council,1111/1001,Adult Social Care and Health,ASCH,Supplies & Services,DBA,12/05/2015,02-11245,1161.77,Hallam Country Fresh Foods Ltd,,,,,,,,,
Nottinghamshire County Council,1111/1001,Adult Social Care and Health,ASCH,Supplies & Services,DBA,13/05/2015,02-11350,168.41,Brake Bros Ltd,,,,,,,,,
Nottinghamshire County Council,1111/1001,Adult Social Care and Health,ASCH,Supplies & Services,DBA,14/05/2015,02-11466,951.02,Brake Bros Ltd,,,,,,,,,
Nottinghamshire County Council,1111/1001,Adult Social Care and Health,ASCH,Supplies & Services,DBA,14/05/2015,02-11467,1384.17,Brake Bros Ltd,,,,,,,,,
Nottinghamshire County Council,1111/1001,Adult Social Care and Health,ASCH,Supplies & Services,DBA,14/05/2015,02-11470,2066.98,Brake Bros Ltd,,,,,,,,,
Nottinghamshire County Council,1111/1001,Adult Social Care and Health,ASCH,Supplies & Services,DBA,19/05/2015,02-15044,1600.38,Hallam Country Fresh Foods Ltd,,,,,,,,,
Nottinghamshire County Council,1111/1001,Adult Social Care and Health,ASCH,Supplies & Services,DBA,21/05/2015,02-15286,1232.82,Brake Bros Ltd,,,,,,,,,
Nottinghamshire County Council,1111/1001,Adult Social Care and Health,ASCH,Supplies & Services,DBA,21/05/2015,02-15289,1213.21,Brake Bros Ltd,,,,,,,,,
Nottinghamshire County Council,1111/1001,Adult Social Care and Health,ASCH,Supplies & Services,DBA,21/05/2015,02-15292,2100.35,Brake Bros Ltd,,,,,,,,,
Nottinghamshire County Council,1111/1001,Adult Social Care and Health,ASCH,Supplies & Services,DBA,22/05/2015,02-16098,668.1,Nestle Uk Ltd,,,,,,,,,
Nottinghamshire County Council,1111/1001,Adult Social Care and Health,ASCH,Supplies & Services,DBA,26/05/2015,02-15431,920.13,Brake Bros Ltd,,,,,,,,,
Nottinghamshire County Council,1111/1001,Adult Social Care and Health,ASCH,Supplies & Services,DBA,26/05/2015,02-15472,3337.91,M Maloney Country Butchers & B Ltd,,,,,,,,,
Nottinghamshire County Council,1111/1001,Adult Social Care and Health,ASCH,Supplies & Services,DBA,27/05/2015,02-15820,593.48,Brake Bros Ltd,,,,,,,,,
Nottinghamshire County Council,1111/1001,Adult Social Care and Health,ASCH,Supplies & Services,DBA,27/05/2015,02-15822,884.9,Brake Bros Ltd,,,,,,,,,
Nottinghamshire County Council,1111/1001,Adult Social Care and Health,ASCH,Supplies & Services,DBA,27/05/2015,02-15823,1430.74,Brake Bros Ltd,,,,,,,,,
Nottinghamshire County Council,1111/1001,Adult Social Care and Health,ASCH,Supplies & Services,DBA,27/05/2015,02-15829,2203.46,Brake Bros Ltd,,,,,,,,,
Nottinghamshire County Council,1111/1001,Adult Social Care and Health,ASCH,Supplies & Services,DBA,27/05/2015,02-15832,4448.03,M Maloney Country Butchers & B Ltd,,,,,,,,,
Nottinghamshire County Council,1111/1001,Adult Social Care and Health,ASCH,Supplies & Services,DBA,27/05/2015,02-15836,4340.54,M Maloney Country Butchers & B Ltd,,,,,,,,,
Nottinghamshire County Council,1111/1001,Adult Social Care and Health,ASCH,Supplies & Services,DBA,27/05/2015,02-15852,1779.24,Hallam Country Fresh Foods Ltd,,,,,,,,,
Nottinghamshire County Council,1111/1001,Adult Social Care and Health,ASCH,Supplies & Services,DBA,27/05/2015,02-15856,2079.59,M Maloney Country Butchers & B Ltd,,,,,,,,,
Nottinghamshire County Council,1111/1001,Adult Social Care and Health,ASCH,Supplies & Services,DEA,29/05/2015,02-11355,72.28,Security Plus Ltd,,,,,,,,,
Nottinghamshire County Council,1111/1001,Adult Social Care and Health,ASCH,Supplies & Services,DFA,07/05/2015,02-10607,670.86,Lantec Services Ltd,,,,,,,,,
Nottinghamshire County Council,1111/1001,Adult Social Care and Health,ASCH,Supplies & Services,DFA,12/05/2015,02-11251,646.45,Lantec Services Ltd,,,,,,,,,
Nottinghamshire County Council,1111/1001,Adult Social Care and Health,ASCH,Supplies & Services,DHA,22/05/2015,02-15361,11710,Mansfield Community Voluntary Serv,,,,,,,,,
Nottinghamshire County Council,1111/1001,Adult Social Care and Health,ASCH,Third Party Payments,EBA,20/05/2015,02-15207,9320,Aspirations (Midlands) Ltd,,,,,,,,,
Nottinghamshire County Council,1111/1001,Adult Social Care and Health,ASCH,Third Party Payments,EBA,20/05/2015,02-15208,1080,Reach Housing Gloria Miller,,,,,,,,,
Nottinghamshire County Council,1111/1001,Adult Social Care and Health,ASCH,Third Party Payments,EBA,20/05/2015,02-15209,5488,Metropolitan Housing Trust,,,,,,,,,
Nottinghamshire County Council,1111/1001,Adult Social Care and Health,ASCH,Third Party Payments,EBA,20/05/2015,02-15211,44936.99,Royal Society Mencap,,,,,,,,,
Nottinghamshire County Council,1111/1001,Adult Social Care and Health,ASCH,Third Party Payments,EBA,20/05/2015,02-15213,73990.36,Eden Supported Living Ltd,,,,,,,,,
Nottinghamshire County Council,1111/1001,Adult Social Care and Health,ASCH,Third Party Payments,EBA,20/05/2015,02-15214,2920,Care UK Learning Disabilities Servi,,,,,,,,,
Nottinghamshire County Council,1111/1001,Adult Social Care and Health,ASCH,Third Party Payments,EBA,20/05/2015,02-15215,2160,Oakdale Ozier Ltd,,,,,,,,,
Nottinghamshire County Council,1111/1001,Adult Social Care and Health,ASCH,Third Party Payments,EBA,20/05/2015,02-15216,317756.28,Framework Housing Association,,,,,,,,,
Nottinghamshire County Council,1111/1001,Adult Social Care and Health,ASCH,Third Party Payments,EBA,20/05/2015,02-15218,4638.18,Nottingham Community Housing,,,,,,,,,
Nottinghamshire County Council,1111/1001,Adult Social Care and Health,ASCH,Third Party Payments,EBA,20/05/2015,02-15220,9560,Fitzroy,,,,,,,,,
Nottinghamshire County Council,1111/1001,Adult Social Care and Health,ASCH,Third Party Payments,EBA,20/05/2015,02-15221,16087.92,Lifeways Community Care Ltd,,,,,,,,,
Nottinghamshire County Council,1111/1001,Adult Social Care and Health,ASCH,Third Party Payments,EBA,20/05/2015,02-15222,5720,Voyage Ltd,,,,,,,,,
Nottinghamshire County Council,1111/1001,Adult Social Care and Health,ASCH,Third Party Payments,EBA,20/05/2015,02-15223,25810.37,Thera East Midlands,,,,,,,,,
Nottinghamshire County Council,1111/1001,Adult Social Care and Health,ASCH,Third Party Payments,EBA,20/05/2015,02-15224,14160,Choice Support,,,,,,,,,
Nottinghamshire County Council,1111/1001,Adult Social Care and Health,ASCH,Third Party Payments,EBA,20/05/2015,02-15225,12040,United Response,,,,,,,,,
Nottinghamshire County Council,1111/1001,Adult Social Care and Health,ASCH,Third Party Payments,EBA,20/05/2015,02-15226,1840,Heritage Care,,,,,,,,,
Nottinghamshire County Council,1111/1001,Adult Social Care and Health,ASCH,Third Party Payments,EBA,20/05/2015,02-15227,2360,Real Life Options,,,,,,,,,
Nottinghamshire County Council,1111/1001,Adult Social Care and Health,ASCH,Third Party Payments,EBA,20/05/2015,02-15228,8001.2,NCHA Ltd,,,,,,,,,
Nottinghamshire County Council,1111/1001,Adult Social Care and Health,ASCH,Third Party Payments,ECA,05/05/2015,02-10282,1352.86,Bramcote Hills Care Home,,,,,,,,,
Nottinghamshire County Council,1111/1001,Adult Social Care and Health,ASCH,Third Party Payments,ECA,05/05/2015,02-10284,861.78,The Grange Nursing Home,,,,,,,,,
Nottinghamshire County Council,1111/1001,Adult Social Care and Health,ASCH,Third Party Payments,ECA,05/05/2015,02-10286,624,Kingsthorpe View Nursing Home,,,,,,,,,
Nottinghamshire County Council,1111/1001,Adult Social Care and Health,ASCH,Third Party Payments,ECA,05/05/2015,02-10292,624,Avalon Nursing Home,,,,,,,,,
Nottinghamshire County Council,1111/1001,Adult Social Care and Health,ASCH,Third Party Payments,ECA,05/05/2015,02-10296,316.83,Churchfield Nursing Home,,,,,,,,,
Nottinghamshire County Council,1111/1001,Adult Social Care and Health,ASCH,Third Party Payments,ECA,05/05/2015,02-10305,1162.77,Lawn Park Nursing Home,,,,,,,,,
Nottinghamshire County Council,1111/1001,Adult Social Care and Health,ASCH,Third Party Payments,ECA,05/05/2015,02-10318,160,Eton Park Nursing Home,,,,,,,,,
Nottinghamshire County Council,1111/1001,Adult Social Care and Health,ASCH,Third Party Payments,ECA,05/05/2015,02-10325,160,Clifton Manor Care Complex,,,,,,,,,
Nottinghamshire County Council,1111/1001,Adult Social Care and Health,ASCH,Third Party Payments,ECA,05/05/2015,02-10334,332.67,Victoria Care Home,,,,,,,,,
Nottinghamshire County Council,1111/1001,Adult Social Care and Health,ASCH,Third Party Payments,ECA,05/05/2015,02-10336,1542.96,Millington Springs,,,,,,,,,
Nottinghamshire County Council,1111/1001,Adult Social Care and Health,ASCH,Third Party Payments,ECA,05/05/2015,02-10343,224,Lound Hall Nursing Home,,,,,,,,,
Nottinghamshire County Council,1111/1001,Adult Social Care and Health,ASCH,Third Party Payments,ECA,05/05/2015,02-10353,112,Pathfinders Neurological Care Centr,,,,,,,,,
Nottinghamshire County Council,1111/1001,Adult Social Care and Health,ASCH,Third Party Payments,ECA,05/05/2015,02-10362,685.78,Boughton Manor Nursing Homes Limite,,,,,,,,,
Nottinghamshire County Council,1111/1001,Adult Social Care and Health,ASCH,Third Party Payments,ECA,05/05/2015,02-10364,512,Boughton Manor Nursing Homes Limite,,,,,,,,,
Nottinghamshire County Council,1111/1001,Adult Social Care and Health,ASCH,Third Party Payments,ECA,05/05/2015,02-10374,511.05,Forest Manor Care Home,,,,,,,,,
Nottinghamshire County Council,1111/1001,Adult Social Care and Health,ASCH,Third Party Payments,ECA,05/05/2015,02-10384,221.78,Jubilee Court Nursing Home,,,,,,,,,
Nottinghamshire County Council,1111/1001,Adult Social Care and Health,ASCH,Third Party Payments,ECA,05/05/2015,02-10387,336,Jubilee Court Nursing Home,,,,,,,,,
Nottinghamshire County Council,1111/1001,Adult Social Care and Health,ASCH,Third Party Payments,ECA,08/05/2015,02-11024,234000,NHS Nottingham West CCG,,,,,,,,,
Nottinghamshire County Council,1111/1001,Adult Social Care and Health,ASCH,Third Party Payments,ECA,08/05/2015,02-11025,378000,NHS Bassetlaw CCG,,,,,,,,,
Nottinghamshire County Council,1111/1001,Adult Social Care and Health,ASCH,Third Party Payments,ECA,08/05/2015,02-11026,746000,Mansfield & Ashfield CCG,,,,,,,,,
Nottinghamshire County Council,1111/1001,Adult Social Care and Health,ASCH,Third Party Payments,ECA,08/05/2015,02-11027,480000,NHS Newark & Sherwood CCG,,,,,,,,,
Nottinghamshire County Council,1111/1001,Adult Social Care and Health,ASCH,Third Party Payments,ECA,08/05/2015,02-11028,380000,NHS Nottingham North and East CCG,,,,,,,,,
Nottinghamshire County Council,1111/1001,Adult Social Care and Health,ASCH,Third Party Payments,ECA,08/05/2015,02-11029,286000,NHS Rushcliffe CCG,,,,,,,,,
Nottinghamshire County Council,1111/1001,Adult Social Care and Health,ASCH,Third Party Payments,ECA,11/05/2015,02-11139,224,Beauvale Nursing Home,,,,,,,,,
Nottinghamshire County Council,1111/1001,Adult Social Care and Health,ASCH,Third Party Payments,ECA,11/05/2015,02-11150,112,Ashley House Nursing Home,,,,,,,,,
Nottinghamshire County Council,1111/1001,Adult Social Care and Health,ASCH,Third Party Payments,ECA,11/05/2015,02-11156,112,Elmbank Nursing Home,,,,,,,,,
Nottinghamshire County Council,1111/1001,Adult Social Care and Health,ASCH,Third Party Payments,ECA,11/05/2015,02-11163,224,Lound Hall Nursing Home,,,,,,,,,
Nottinghamshire County Council,1111/1001,Adult Social Care and Health,ASCH,Third Party Payments,ECA,11/05/2015,02-11167,448,Stoke House Nursing Home,,,,,,,,,
Nottinghamshire County Council,1111/1001,Adult Social Care and Health,ASCH,Third Party Payments,ECA,11/05/2015,02-11169,352,Pathfinders Neurological Care Centr,,,,,,,,,
Nottinghamshire County Council,1111/1001,Adult Social Care and Health,ASCH,Third Party Payments,ECA,11/05/2015,02-11178,496,Churchfield Park,,,,,,,,,
Nottinghamshire County Council,1111/1001,Adult Social Care and Health,ASCH,Third Party Payments,ECA,11/05/2015,02-11191,190.1,Sherwood Grange Care Ltd,,,,,,,,,
Nottinghamshire County Council,1111/1001,Adult Social Care and Health,ASCH,Third Party Payments,ECA,18/05/2015,02-11741,448,Bramcote Hills Care Home,,,,,,,,,
Nottinghamshire County Council,1111/1001,Adult Social Care and Health,ASCH,Third Party Payments,ECA,18/05/2015,02-11746,448,Bramcote Hills Care Home,,,,,,,,,
Nottinghamshire County Council,1111/1001,Adult Social Care and Health,ASCH,Third Party Payments,ECA,18/05/2015,02-11749,448,Bramcote Hills Care Home,,,,,,,,,
Nottinghamshire County Council,1111/1001,Adult Social Care and Health,ASCH,Third Party Payments,ECA,18/05/2015,02-11761,448,The Grange Nursing Home,,,,,,,,,
Nottinghamshire County Council,1111/1001,Adult Social Care and Health,ASCH,Third Party Payments,ECA,18/05/2015,02-11764,448,The Grange Nursing Home,,,,,,,,,
Nottinghamshire County Council,1111/1001,Adult Social Care and Health,ASCH,Third Party Payments,ECA,18/05/2015,02-11768,448,The Grange Nursing Home,,,,,,,,,
Nottinghamshire County Council,1111/1001,Adult Social Care and Health,ASCH,Third Party Payments,ECA,18/05/2015,02-11778,448,Belle Vue,,,,,,,,,
Nottinghamshire County Council,1111/1001,Adult Social Care and Health,ASCH,Third Party Payments,ECA,18/05/2015,02-11787,448,Ashcroft,,,,,,,,,
Nottinghamshire County Council,1111/1001,Adult Social Care and Health,ASCH,Third Party Payments,ECA,18/05/2015,02-11789,448,Ashcroft,,,,,,,,,
Nottinghamshire County Council,1111/1001,Adult Social Care and Health,ASCH,Third Party Payments,ECA,18/05/2015,02-11792,448,Ashcroft,,,,,,,,,
Nottinghamshire County Council,1111/1001,Adult Social Care and Health,ASCH,Third Party Payments,ECA,18/05/2015,02-11795,448,Ashcroft,,,,,,,,,
Nottinghamshire County Council,1111/1001,Adult Social Care and Health,ASCH,Third Party Payments,ECA,18/05/2015,02-11799,448,Ashcroft,,,,,,,,,
Nottinghamshire County Council,1111/1001,Adult Social Care and Health,ASCH,Third Party Payments,ECA,18/05/2015,02-11803,448,Ashcroft,,,,,,,,,
Nottinghamshire County Council,1111/1001,Adult Social Care and Health,ASCH,Third Party Payments,ECA,18/05/2015,02-11805,448,Ashcroft,,,,,,,,,
Nottinghamshire County Council,1111/1001,Adult Social Care and Health,ASCH,Third Party Payments,ECA,18/05/2015,02-11810,448,Ashcroft,,,,,,,,,
Nottinghamshire County Council,1111/1001,Adult Social Care and Health,ASCH,Third Party Payments,ECA,18/05/2015,02-11815,448,Ashcroft,,,,,,,,,
Nottinghamshire County Council,1111/1001,Adult Social Care and Health,ASCH,Third Party Payments,ECA,18/05/2015,02-11817,448,Ashcroft,,,,,,,,,
Nottinghamshire County Council,1111/1001,Adult Social Care and Health,ASCH,Third Party Payments,ECA,18/05/2015,02-11820,448,Ashcroft,,,,,,,,,
Nottinghamshire County Council,1111/1001,Adult Social Care and Health,ASCH,Third Party Payments,ECA,18/05/2015,02-11822,448,Ashcroft,,,,,,,,,
Nottinghamshire County Council,1111/1001,Adult Social Care and Health,ASCH,Third Party Payments,ECA,18/05/2015,02-11824,448,Ashcroft,,,,,,,,,
Nottinghamshire County Council,1111/1001,Adult Social Care and Health,ASCH,Third Party Payments,ECA,18/05/2015,02-11826,448,Ashcroft,,,,,,,,,
Nottinghamshire County Council,1111/1001,Adult Social Care and Health,ASCH,Third Party Payments,ECA,18/05/2015,02-11830,448,Kingsthorpe View Nursing Home,,,,,,,,,
Nottinghamshire County Council,1111/1001,Adult Social Care and Health,ASCH,Third Party Payments,ECA,18/05/2015,02-11847,448,Beauvale Nursing Home,,,,,,,,,
Nottinghamshire County Council,1111/1001,Adult Social Care and Health,ASCH,Third Party Payments,ECA,18/05/2015,02-11849,448,Beauvale Nursing Home,,,,,,,,,
Nottinghamshire County Council,1111/1001,Adult Social Care and Health,ASCH,Third Party Payments,ECA,18/05/2015,02-11852,448,Beauvale Nursing Home,,,,,,,,,
Nottinghamshire County Council,1111/1001,Adult Social Care and Health,ASCH,Third Party Payments,ECA,18/05/2015,02-11855,448,Beauvale Nursing Home,,,,,,,,,
Nottinghamshire County Council,1111/1001,Adult Social Care and Health,ASCH,Third Party Payments,ECA,18/05/2015,02-11857,448,Beauvale Nursing Home,,,,,,,,,
Nottinghamshire County Council,1111/1001,Adult Social Care and Health,ASCH,Third Party Payments,ECA,18/05/2015,02-11859,448,Beauvale Nursing Home,,,,,,,,,
Nottinghamshire County Council,1111/1001,Adult Social Care and Health,ASCH,Third Party Payments,ECA,18/05/2015,02-11861,720,Beauvale Nursing Home,,,,,,,,,
Nottinghamshire County Council,1111/1001,Adult Social Care and Health,ASCH,Third Party Payments,ECA,18/05/2015,02-11863,448,Beauvale Nursing Home,,,,,,,,,
Nottinghamshire County Council,1111/1001,Adult Social Care and Health,ASCH,Third Party Payments,ECA,18/05/2015,02-11867,448,Beauvale Nursing Home,,,,,,,,,
Nottinghamshire County Council,1111/1001,Adult Social Care and Health,ASCH,Third Party Payments,ECA,18/05/2015,02-11869,448,Beauvale Nursing Home,,,,,,,,,
Nottinghamshire County Council,1111/1001,Adult Social Care and Health,ASCH,Third Party Payments,ECA,18/05/2015,02-11880,448,Avalon Nursing Home,,,,,,,,,
Nottinghamshire County Council,1111/1001,Adult Social Care and Health,ASCH,Third Party Payments,ECA,18/05/2015,02-11883,448,Avalon Nursing Home,,,,,,,,,
Nottinghamshire County Council,1111/1001,Adult Social Care and Health,ASCH,Third Party Payments,ECA,18/05/2015,02-11888,448,Avalon Nursing Home,,,,,,,,,
Nottinghamshire County Council,1111/1001,Adult Social Care and Health,ASCH,Third Party Payments,ECA,18/05/2015,02-11890,448,Avalon Nursing Home,,,,,,,,,
Nottinghamshire County Council,1111/1001,Adult Social Care and Health,ASCH,Third Party Payments,ECA,18/05/2015,02-11892,448,Avalon Nursing Home,,,,,,,,,
Nottinghamshire County Council,1111/1001,Adult Social Care and Health,ASCH,Third Party Payments,ECA,18/05/2015,02-11895,448,Avalon Nursing Home,,,,,,,,,
Nottinghamshire County Council,1111/1001,Adult Social Care and Health,ASCH,Third Party Payments,ECA,18/05/2015,02-11901,448,Avalon Nursing Home,,,,,,,,,
Nottinghamshire County Council,1111/1001,Adult Social Care and Health,ASCH,Third Party Payments,ECA,18/05/2015,02-11903,448,Avalon Nursing Home,,,,,,,,,
Nottinghamshire County Council,1111/1001,Adult Social Care and Health,ASCH,Third Party Payments,ECA,18/05/2015,02-11905,400.48,Avalon Nursing Home,,,,,,,,,
Nottinghamshire County Council,1111/1001,Adult Social Care and Health,ASCH,Third Party Payments,ECA,18/05/2015,02-11907,448,Avalon Nursing Home,,,,,,,,,
Nottinghamshire County Council,1111/1001,Adult Social Care and Health,ASCH,Third Party Payments,ECA,18/05/2015,02-11913,608,Silverwood Care Home,,,,,,,,,
Nottinghamshire County Council,1111/1001,Adult Social Care and Health,ASCH,Third Party Payments,ECA,18/05/2015,02-11914,448,Silverwood Care Home,,,,,,,,,
Nottinghamshire County Council,1111/1001,Adult Social Care and Health,ASCH,Third Party Payments,ECA,18/05/2015,02-11918,448,Silverwood Care Home,,,,,,,,,
Nottinghamshire County Council,1111/1001,Adult Social Care and Health,ASCH,Third Party Payments,ECA,18/05/2015,02-11921,448,Silverwood Care Home,,,,,,,,,
Nottinghamshire County Council,1111/1001,Adult Social Care and Health,ASCH,Third Party Payments,ECA,18/05/2015,02-11923,448,Silverwood Care Home,,,,,,,,,
Nottinghamshire County Council,1111/1001,Adult Social Care and Health,ASCH,Third Party Payments,ECA,18/05/2015,02-11926,448,Silverwood Care Home,,,,,,,,,
Nottinghamshire County Council,1111/1001,Adult Social Care and Health,ASCH,Third Party Payments,ECA,18/05/2015,02-11929,448,Silverwood Care Home,,,,,,,,,
Nottinghamshire County Council,1111/1001,Adult Social Care and Health,ASCH,Third Party Payments,ECA,18/05/2015,02-11933,448,Silverwood Care Home,,,,,,,,,
Nottinghamshire County Council,1111/1001,Adult Social Care and Health,ASCH,Third Party Payments,ECA,18/05/2015,02-11935,896,Silverwood Care Home,,,,,,,,,
Nottinghamshire County Council,1111/1001,Adult Social Care and Health,ASCH,Third Party Payments,ECA,18/05/2015,02-11936,448,Silverwood Care Home,,,,,,,,,
Nottinghamshire County Council,1111/1001,Adult Social Care and Health,ASCH,Third Party Payments,ECA,18/05/2015,02-11938,448,Silverwood Care Home,,,,,,,,,
Nottinghamshire County Council,1111/1001,Adult Social Care and Health,ASCH,Third Party Payments,ECA,18/05/2015,02-11946,448,Silverwood Care Home,,,,,,,,,
Nottinghamshire County Council,1111/1001,Adult Social Care and Health,ASCH,Third Party Payments,ECA,18/05/2015,02-11955,448,Spring Water Lodge,,,,,,,,,
Nottinghamshire County Council,1111/1001,Adult Social Care and Health,ASCH,Third Party Payments,ECA,18/05/2015,02-11958,110.89,Spring Water Lodge,,,,,,,,,
Nottinghamshire County Council,1111/1001,Adult Social Care and Health,ASCH,Third Party Payments,ECA,18/05/2015,02-11960,448,Spring Water Lodge,,,,,,,,,
Nottinghamshire County Council,1111/1001,Adult Social Care and Health,ASCH,Third Party Payments,ECA,18/05/2015,02-11963,448,Spring Water Lodge,,,,,,,,,
Nottinghamshire County Council,1111/1001,Adult Social Care and Health,ASCH,Third Party Payments,ECA,18/05/2015,02-11970,448,Spring Water Lodge,,,,,,,,,
Nottinghamshire County Council,1111/1001,Adult Social Care and Health,ASCH,Third Party Payments,ECA,18/05/2015,02-11998,750.89,Oaks Care Centre,,,,,,,,,
Nottinghamshire County Council,1111/1001,Adult Social Care and Health,ASCH,Third Party Payments,ECA,18/05/2015,02-12008,448,Howson Care Centre,,,,,,,,,
Nottinghamshire County Council,1111/1001,Adult Social Care and Health,ASCH,Third Party Payments,ECA,18/05/2015,02-12010,448,Howson Care Centre,,,,,,,,,
Nottinghamshire County Council,1111/1001,Adult Social Care and Health,ASCH,Third Party Payments,ECA,18/05/2015,02-12012,616.56,Howson Care Centre,,,,,,,,,
Nottinghamshire County Council,1111/1001,Adult Social Care and Health,ASCH,Third Party Payments,ECA,18/05/2015,02-12015,616.56,Howson Care Centre,,,,,,,,,
Nottinghamshire County Council,1111/1001,Adult Social Care and Health,ASCH,Third Party Payments,ECA,18/05/2015,02-12017,448,Howson Care Centre,,,,,,,,,
Nottinghamshire County Council,1111/1001,Adult Social Care and Health,ASCH,Third Party Payments,ECA,18/05/2015,02-12019,448,Howson Care Centre,,,,,,,,,
Nottinghamshire County Council,1111/1001,Adult Social Care and Health,ASCH,Third Party Payments,ECA,18/05/2015,02-12052,448,Stoneyford Christian Nursing Home,,,,,,,,,
Nottinghamshire County Council,1111/1001,Adult Social Care and Health,ASCH,Third Party Payments,ECA,18/05/2015,02-12054,448,Stoneyford Christian Nursing Home,,,,,,,,,
Nottinghamshire County Council,1111/1001,Adult Social Care and Health,ASCH,Third Party Payments,ECA,18/05/2015,02-12058,448,Stoneyford Christian Nursing Home,,,,,,,,,
Nottinghamshire County Council,1111/1001,Adult Social Care and Health,ASCH,Third Party Payments,ECA,18/05/2015,02-12060,448,Stoneyford Christian Nursing Home,,,,,,,,,
Nottinghamshire County Council,1111/1001,Adult Social Care and Health,ASCH,Third Party Payments,ECA,18/05/2015,02-12062,448,Stoneyford Christian Nursing Home,,,,,,,,,
Nottinghamshire County Council,1111/1001,Adult Social Care and Health,ASCH,Third Party Payments,ECA,18/05/2015,02-12065,448,Stoneyford Christian Nursing Home,,,,,,,,,
Nottinghamshire County Council,1111/1001,Adult Social Care and Health,ASCH,Third Party Payments,ECA,18/05/2015,02-12070,448,Stoneyford Christian Nursing Home,,,,,,,,,
Nottinghamshire County Council,1111/1001,Adult Social Care and Health,ASCH,Third Party Payments,ECA,18/05/2015,02-12072,448,Stoneyford Christian Nursing Home,,,,,,,,,
Nottinghamshire County Council,1111/1001,Adult Social Care and Health,ASCH,Third Party Payments,ECA,18/05/2015,02-12074,448,Stoneyford Christian Nursing Home,,,,,,,,,
Nottinghamshire County Council,1111/1001,Adult Social Care and Health,ASCH,Third Party Payments,ECA,18/05/2015,02-12076,448,Stoneyford Christian Nursing Home,,,,,,,,,
Nottinghamshire County Council,1111/1001,Adult Social Care and Health,ASCH,Third Party Payments,ECA,18/05/2015,02-12083,448,Stoneyford Christian Nursing Home,,,,,,,,,
Nottinghamshire County Council,1111/1001,Adult Social Care and Health,ASCH,Third Party Payments,ECA,18/05/2015,02-12085,448,Stoneyford Christian Nursing Home,,,,,,,,,
Nottinghamshire County Council,1111/1001,Adult Social Care and Health,ASCH,Third Party Payments,ECA,18/05/2015,02-12089,448,Stoneyford Christian Nursing Home,,,,,,,,,
Nottinghamshire County Council,1111/1001,Adult Social Care and Health,ASCH,Third Party Payments,ECA,18/05/2015,02-12097,448,Beeches Nursing Home,,,,,,,,,
Nottinghamshire County Council,1111/1001,Adult Social Care and Health,ASCH,Third Party Payments,ECA,18/05/2015,02-12103,448,Beeches Nursing Home,,,,,,,,,
Nottinghamshire County Council,1111/1001,Adult Social Care and Health,ASCH,Third Party Payments,ECA,18/05/2015,02-12105,448,Beeches Nursing Home,,,,,,,,,
Nottinghamshire County Council,1111/1001,Adult Social Care and Health,ASCH,Third Party Payments,ECA,18/05/2015,02-12108,448,Beeches Nursing Home,,,,,,,,,
Nottinghamshire County Council,1111/1001,Adult Social Care and Health,ASCH,Third Party Payments,ECA,18/05/2015,02-12112,448,Beeches Nursing Home,,,,,,,,,
Nottinghamshire County Council,1111/1001,Adult Social Care and Health,ASCH,Third Party Payments,ECA,18/05/2015,02-12114,448,Beeches Nursing Home,,,,,,,,,
Nottinghamshire County Council,1111/1001,Adult Social Care and Health,ASCH,Third Party Payments,ECA,18/05/2015,02-12116,448,Beeches Nursing Home,,,,,,,,,
Nottinghamshire County Council,1111/1001,Adult Social Care and Health,ASCH,Third Party Payments,ECA,18/05/2015,02-12119,448,Beeches Nursing Home,,,,,,,,,
Nottinghamshire County Council,1111/1001,Adult Social Care and Health,ASCH,Third Party Payments,ECA,18/05/2015,02-12121,448,Beeches Nursing Home,,,,,,,,,
Nottinghamshire County Council,1111/1001,Adult Social Care and Health,ASCH,Third Party Payments,ECA,18/05/2015,02-12125,448,Berry Hill Park,,,,,,,,,
Nottinghamshire County Council,1111/1001,Adult Social Care and Health,ASCH,Third Party Payments,ECA,18/05/2015,02-12128,448,Berry Hill Park,,,,,,,,,
Nottinghamshire County Council,1111/1001,Adult Social Care and Health,ASCH,Third Party Payments,ECA,18/05/2015,02-12130,448,Berry Hill Park,,,,,,,,,
Nottinghamshire County Council,1111/1001,Adult Social Care and Health,ASCH,Third Party Payments,ECA,18/05/2015,02-12132,448,Berry Hill Park,,,,,,,,,
Nottinghamshire County Council,1111/1001,Adult Social Care and Health,ASCH,Third Party Payments,ECA,18/05/2015,02-12135,448,Berry Hill Park,,,,,,,,,
Nottinghamshire County Council,1111/1001,Adult Social Care and Health,ASCH,Third Party Payments,ECA,18/05/2015,02-12137,448,Berry Hill Park,,,,,,,,,
Nottinghamshire County Council,1111/1001,Adult Social Care and Health,ASCH,Third Party Payments,ECA,18/05/2015,02-12140,448,Berry Hill Park,,,,,,,,,
Nottinghamshire County Council,1111/1001,Adult Social Care and Health,ASCH,Third Party Payments,ECA,18/05/2015,02-12142,448,Berry Hill Park,,,,,,,,,
Nottinghamshire County Council,1111/1001,Adult Social Care and Health,ASCH,Third Party Payments,ECA,18/05/2015,02-12144,448,Berry Hill Park,,,,,,,,,
Nottinghamshire County Council,1111/1001,Adult Social Care and Health,ASCH,Third Party Payments,ECA,18/05/2015,02-12146,448,Berry Hill Park,,,,,,,,,
Nottinghamshire County Council,1111/1001,Adult Social Care and Health,ASCH,Third Party Payments,ECA,18/05/2015,02-12148,448,Berry Hill Park,,,,,,,,,
Nottinghamshire County Council,1111/1001,Adult Social Care and Health,ASCH,Third Party Payments,ECA,18/05/2015,02-12151,544,Berry Hill Park,,,,,,,,,
Nottinghamshire County Council,1111/1001,Adult Social Care and Health,ASCH,Third Party Payments,ECA,18/05/2015,02-12153,448,Berry Hill Park,,,,,,,,,
Nottinghamshire County Council,1111/1001,Adult Social Care and Health,ASCH,Third Party Payments,ECA,18/05/2015,02-12155,448,Berry Hill Park,,,,,,,,,
Nottinghamshire County Council,1111/1001,Adult Social Care and Health,ASCH,Third Party Payments,ECA,18/05/2015,02-12170,396.04,Countrywide Care Homes Ltd T/A Clum,,,,,,,,,
Nottinghamshire County Council,1111/1001,Adult Social Care and Health,ASCH,Third Party Payments,ECA,18/05/2015,02-12177,448,Landermeads Nursing Home,,,,,,,,,
Nottinghamshire County Council,1111/1001,Adult Social Care and Health,ASCH,Third Party Payments,ECA,18/05/2015,02-12179,448,Landermeads Nursing Home,,,,,,,,,
Nottinghamshire County Council,1111/1001,Adult Social Care and Health,ASCH,Third Party Payments,ECA,18/05/2015,02-12182,448,Landermeads Nursing Home,,,,,,,,,
Nottinghamshire County Council,1111/1001,Adult Social Care and Health,ASCH,Third Party Payments,ECA,18/05/2015,02-12184,448,Landermeads Nursing Home,,,,,,,,,
Nottinghamshire County Council,1111/1001,Adult Social Care and Health,ASCH,Third Party Payments,ECA,18/05/2015,02-12186,448,Landermeads Nursing Home,,,,,,,,,
Nottinghamshire County Council,1111/1001,Adult Social Care and Health,ASCH,Third Party Payments,ECA,18/05/2015,02-12188,448,Landermeads Nursing Home,,,,,,,,,
Nottinghamshire County Council,1111/1001,Adult Social Care and Health,ASCH,Third Party Payments,ECA,18/05/2015,02-12190,448,Landermeads Nursing Home,,,,,,,,,
Nottinghamshire County Council,1111/1001,Adult Social Care and Health,ASCH,Third Party Payments,ECA,18/05/2015,02-12192,616.56,Landermeads Nursing Home,,,,,,,,,
Nottinghamshire County Council,1111/1001,Adult Social Care and Health,ASCH,Third Party Payments,ECA,18/05/2015,02-12196,448,Landermeads Nursing Home,,,,,,,,,
Nottinghamshire County Council,1111/1001,Adult Social Care and Health,ASCH,Third Party Payments,ECA,18/05/2015,02-12198,448,Landermeads Nursing Home,,,,,,,,,
Nottinghamshire County Council,1111/1001,Adult Social Care and Health,ASCH,Third Party Payments,ECA,18/05/2015,02-12200,448,Landermeads Nursing Home,,,,,,,,,
Nottinghamshire County Council,1111/1001,Adult Social Care and Health,ASCH,Third Party Payments,ECA,18/05/2015,02-12202,448,Landermeads Nursing Home,,,,,,,,,
Nottinghamshire County Council,1111/1001,Adult Social Care and Health,ASCH,Third Party Payments,ECA,18/05/2015,02-12204,448,Landermeads Nursing Home,,,,,,,,,
Nottinghamshire County Council,1111/1001,Adult Social Care and Health,ASCH,Third Party Payments,ECA,18/05/2015,02-12206,448,Landermeads Nursing Home,,,,,,,,,
Nottinghamshire County Council,1111/1001,Adult Social Care and Health,ASCH,Third Party Payments,ECA,18/05/2015,02-12210,448,Landermeads Nursing Home,,,,,,,,,
Nottinghamshire County Council,1111/1001,Adult Social Care and Health,ASCH,Third Party Payments,ECA,18/05/2015,02-12213,448,Landermeads Nursing Home,,,,,,,,,
Nottinghamshire County Council,1111/1001,Adult Social Care and Health,ASCH,Third Party Payments,ECA,18/05/2015,02-12215,448,Landermeads Nursing Home,,,,,,,,,
Nottinghamshire County Council,1111/1001,Adult Social Care and Health,ASCH,Third Party Payments,ECA,18/05/2015,02-12218,448,Landermeads Nursing Home,,,,,,,,,
Nottinghamshire County Council,1111/1001,Adult Social Care and Health,ASCH,Third Party Payments,ECA,18/05/2015,02-12220,448,Landermeads Nursing Home,,,,,,,,,
Nottinghamshire County Council,1111/1001,Adult Social Care and Health,ASCH,Third Party Payments,ECA,18/05/2015,02-12279,448,Albemarle Hall Nursing Home,,,,,,,,,
Nottinghamshire County Council,1111/1001,Adult Social Care and Health,ASCH,Third Party Payments,ECA,18/05/2015,02-12282,448,Albemarle Hall Nursing Home,,,,,,,,,
Nottinghamshire County Council,1111/1001,Adult Social Care and Health,ASCH,Third Party Payments,ECA,18/05/2015,02-12284,448,Albemarle Hall Nursing Home,,,,,,,,,
Nottinghamshire County Council,1111/1001,Adult Social Care and Health,ASCH,Third Party Payments,ECA,18/05/2015,02-12286,448,Albemarle Hall Nursing Home,,,,,,,,,
Nottinghamshire County Council,1111/1001,Adult Social Care and Health,ASCH,Third Party Payments,ECA,18/05/2015,02-12288,448,Albemarle Hall Nursing Home,,,,,,,,,
Nottinghamshire County Council,1111/1001,Adult Social Care and Health,ASCH,Third Party Payments,ECA,18/05/2015,02-12291,448,Alexandra House Nursing Home,,,,,,,,,
Nottinghamshire County Council,1111/1001,Adult Social Care and Health,ASCH,Third Party Payments,ECA,18/05/2015,02-12295,448,Alexandra House Nursing Home,,,,,,,,,
Nottinghamshire County Council,1111/1001,Adult Social Care and Health,ASCH,Third Party Payments,ECA,18/05/2015,02-12297,448,Alexandra House Nursing Home,,,,,,,,,
Nottinghamshire County Council,1111/1001,Adult Social Care and Health,ASCH,Third Party Payments,ECA,18/05/2015,02-12300,448,Alexandra House Nursing Home,,,,,,,,,
Nottinghamshire County Council,1111/1001,Adult Social Care and Health,ASCH,Third Party Payments,ECA,18/05/2015,02-12304,448,Alexandra House Nursing Home,,,,,,,,,
Nottinghamshire County Council,1111/1001,Adult Social Care and Health,ASCH,Third Party Payments,ECA,18/05/2015,02-12306,448,Alexandra House Nursing Home,,,,,,,,,
Nottinghamshire County Council,1111/1001,Adult Social Care and Health,ASCH,Third Party Payments,ECA,18/05/2015,02-12315,448,Bluebell Lodge,,,,,,,,,
Nottinghamshire County Council,1111/1001,Adult Social Care and Health,ASCH,Third Party Payments,ECA,18/05/2015,02-12349,448,Ashley House Nursing Home,,,,,,,,,
Nottinghamshire County Council,1111/1001,Adult Social Care and Health,ASCH,Third Party Payments,ECA,18/05/2015,02-12352,448,Ashley House Nursing Home,,,,,,,,,
Nottinghamshire County Council,1111/1001,Adult Social Care and Health,ASCH,Third Party Payments,ECA,18/05/2015,02-12354,448,Ashley House Nursing Home,,,,,,,,,
Nottinghamshire County Council,1111/1001,Adult Social Care and Health,ASCH,Third Party Payments,ECA,18/05/2015,02-12357,616.56,Ashley House Nursing Home,,,,,,,,,
Nottinghamshire County Council,1111/1001,Adult Social Care and Health,ASCH,Third Party Payments,ECA,18/05/2015,02-12360,448,Ashley House Nursing Home,,,,,,,,,
Nottinghamshire County Council,1111/1001,Adult Social Care and Health,ASCH,Third Party Payments,ECA,18/05/2015,02-12362,448,Ashley House Nursing Home,,,,,,,,,
Nottinghamshire County Council,1111/1001,Adult Social Care and Health,ASCH,Third Party Payments,ECA,18/05/2015,02-12364,448,Ashley House Nursing Home,,,,,,,,,
Nottinghamshire County Council,1111/1001,Adult Social Care and Health,ASCH,Third Party Payments,ECA,18/05/2015,02-12366,448,Ashley House Nursing Home,,,,,,,,,
Nottinghamshire County Council,1111/1001,Adult Social Care and Health,ASCH,Third Party Payments,ECA,18/05/2015,02-12368,448,Ashley House Nursing Home,,,,,,,,,
Nottinghamshire County Council,1111/1001,Adult Social Care and Health,ASCH,Third Party Payments,ECA,18/05/2015,02-12371,448,Ashley House Nursing Home,,,,,,,,,
Nottinghamshire County Council,1111/1001,Adult Social Care and Health,ASCH,Third Party Payments,ECA,18/05/2015,02-12373,448,Ashley House Nursing Home,,,,,,,,,
Nottinghamshire County Council,1111/1001,Adult Social Care and Health,ASCH,Third Party Payments,ECA,18/05/2015,02-12375,448,Ashley House Nursing Home,,,,,,,,,
Nottinghamshire County Council,1111/1001,Adult Social Care and Health,ASCH,Third Party Payments,ECA,18/05/2015,02-12377,616.56,Ashley House Nursing Home,,,,,,,,,
Nottinghamshire County Council,1111/1001,Adult Social Care and Health,ASCH,Third Party Payments,ECA,18/05/2015,02-12378,616.56,Ashley House Nursing Home,,,,,,,,,
Nottinghamshire County Council,1111/1001,Adult Social Care and Health,ASCH,Third Party Payments,ECA,18/05/2015,02-12379,448,Ashley House Nursing Home,,,,,,,,,
Nottinghamshire County Council,1111/1001,Adult Social Care and Health,ASCH,Third Party Payments,ECA,18/05/2015,02-12381,448,Ashley House Nursing Home,,,,,,,,,
Nottinghamshire County Council,1111/1001,Adult Social Care and Health,ASCH,Third Party Payments,ECA,18/05/2015,02-12384,448,Ashley House Nursing Home,,,,,,,,,
Nottinghamshire County Council,1111/1001,Adult Social Care and Health,ASCH,Third Party Payments,ECA,18/05/2015,02-12388,448,Ashley House Nursing Home,,,,,,,,,
Nottinghamshire County Council,1111/1001,Adult Social Care and Health,ASCH,Third Party Payments,ECA,18/05/2015,02-12393,448,Ashley House Nursing Home,,,,,,,,,
Nottinghamshire County Council,1111/1001,Adult Social Care and Health,ASCH,Third Party Payments,ECA,18/05/2015,02-12395,616.56,Ashley House Nursing Home,,,,,,,,,
Nottinghamshire County Council,1111/1001,Adult Social Care and Health,ASCH,Third Party Payments,ECA,18/05/2015,02-12396,448,Ashley House Nursing Home,,,,,,,,,
